Workbook

Sheet Instructions
A1: Instructions for DEED Allowable Space Calculation Workbook
A2: This workbook uses macros, for full functionality ensure that macros are enabled.
A3: TAB: ADM
A4: 0 | B4: The "ADM" tab is used to select the school name and school type for a proposed project that is adding or replacing space in a district attendance area. Once the school is selected, the historical average daily membership (ADM) of the school's associated attendance area is displayed and an average annual ADM change is calculated. This percent change is used to forecast the school ADM to a date "five-years post-occupancy" of a proposed project. The projected ADM enrollment is the basis of the eligible/allowable gross square footage (GSF). Alternative ADM projection methods besides this straight-line method are available, and may be preferable in cases of small enrollment numbers.
A5: 1 | B5: Select the desired School name from the pull down menu in cell C7;
A6: 2 | B6: Select the School Type from the pull down menu in cell C9 Definitions: "Elementary" schools with a combination of grades K through 6 "Secondary" schools with a combination of grades 7 through 12 "Secondary+6" schools with grades 6 through 8 or higher "Mixed Grade" schools with combination of elementary and secondary (typically K-8) "K-12" schools with all grades K through 12
A7: 3 | B7: If desired, enter the district’s student population projections in cells C13 to J13 (elementary K-6) and/or C14 to J14 (secondary 7-12).
A8: 4 | B8: For districts with more than one High School in an attendance area, the number of students in cells C13 and C14 must be entered manually from Columns C (K-6) and D (7-12) in the “Current ADM” worksheet, and the existing square footage entered on the “Allow SF” worksheet in cell B9 must include all square footage for the appropriate School Type in the attendance area. For additional information contact DEED staff.
A9: TAB: Allow SF
A10: 0 | B10: The "Allow SF" tab is used to document the existing gross square footage (GSF) associated with the school or the school type in an attendance area as denoted in the DEED School Facility Database: https://education.alaska.gov/facilities/SchoolFacilityReport/SearchforSchoolFac.cfm If the district believes there to be an error in the data, please contact Facilities staff. The tab compares the eligible GSF, based upon projected ADM, to the existing GSF, and calculates whether additional GSF is allowable. Available allowances for water treatment/storage and exterior covered spaces are aso provided.
A11: 1 | B11: Enter the appropriate existing square footage into cell B9 on sheet “Allow SF”. Square footage will be for the entire attendance area in the School Type identified in cell B5, including support facilities.
A12: 2 | B12: Enter additional GSF data based on the proposed project: what existing GSF will remain; how much GSF is proposed to be added.
A13: TAB: Current Capacity
A14: 0 | B14: The "Current Capacity" tab compares the existing DEED-designated GSF from "Allow SF" tab to the current ADM.
A15: 1 | B15: Run the macro "Module2.ELEM", or press the "Calculate Capacity" button, to see capacity and percentages. If any numbers change in the "ADM" or "Allow SF" tabs, this macro must be re-run.
A16: TAB: Projected Capacity
A17: 0 | B17: The "Projected Capacity" tab compares the existing DEED-designated GSF from "Allow SF" tab to the projected ADM.
A18: 1 | B18: Run the macro "Module2.ELEM", or press the "Calculate Capacity" button, to see capacity and percentages. If any numbers change in the "ADM" or "Allow SF" tabs, this macro must be re-run.
A19: TAB: Current ADM
A20: 0 | B20: The "Current ADM" tab provides ADM data by school, and lists each school's attendance area. This information may be used for manually updating the "ADM" cells B13 and/or B14 for attendance areas with more than one school in a school type.
A21: TAB: Historical ADM by Area
A22: 0 | B22: The "Historical ADM by Area" provides data used to calculate the average annual ADM change of an attendance area in the "ADM" tab.
A23: end of instructions

Sheet ADM
A1: ADM Projection Comparison To start: select School in cell B4, then select School Enrollment Type in B6 District can provide alternative ADM projections in B13 to J14
A2: ADM Year: | B2: 2023
A3: School District: | B3: =VLOOKUP(NAME,'Current ADM'!$B$3:$L$575,11,FALSE) -> 
A4: School Name:
A5: Project Number: | B5: 25-xxx
A6: School Type: | B6: K-12
A7: Attendance Area: | B7: =VLOOKUP(NAME,'Current ADM'!$B$3:$F$575,5,FALSE) -> 
A8: Historical Attendance Area ADM by Fiscal Year
A9: Fiscal Year | B9: =B2-8 -> 2015 | C9: =B9+1 -> 2016 | D9: =C9+1 -> 2017 | E9: 2018 | F9: 2019 | G9: 2020 | H9: 2021 | I9: 2022 | J9: =I9+1 -> 2023 | K9: Average Annual ADM Change | L9: Overall ADM Growth
A10: Attendance Area Total ADM | B10: =IF($B$7="community"," ",VLOOKUP($B$7,'Historical ADM by Area'!$C$3:$AQ$365,26,FALSE)) ->  | C10: =IF($B$7="community"," ",VLOOKUP($B$7,'Historical ADM by Area'!$C$3:$AQ$365,27,FALSE)) ->  | D10: =IF($B$7="community"," ",VLOOKUP($B$7,'Historical ADM by Area'!$C$3:$AQ$365,28,FALSE)) ->  | E10: =IF($B$7="community"," ",VLOOKUP($B$7,'Historical ADM by Area'!$C$3:$AQ$365,29,FALSE)) ->  | F10: =IF($B$7="community"," ",VLOOKUP($B$7,'Historical ADM by Area'!$C$3:$AQ$365,30,FALSE)) ->  | G10: =IF($B$7="community"," ",VLOOKUP($B$7,'Historical ADM by Area'!$C$3:$AQ$365,31,FALSE)) ->  | H10: =IF($B$7="community"," ",VLOOKUP($B$7,'Historical ADM by Area'!$C$3:$AQ$365,32,FALSE)) ->  | I10: =IF($B$7="community"," ",VLOOKUP($B$7,'Historical ADM by Area'!$C$3:$AQ$365,33,FALSE)) ->  | J10: =IF($B$7="community"," ",VLOOKUP($B$7,'Historical ADM by Area'!$C$3:$AQ$365,34,FALSE)) ->  | K10: =IF(B7="community"," ",(((C10-B10)/B10+(D10-C10)/C10+(E10-D10)/D10+(F10-E10)/E10+(G10-F10)/F10+(H10-G10)/G10+(I10-H10)/H10+(J10-I10)/I10))/8) ->  | L10: =IF(B7="community"," ",(J10-B10)/B10) -> 
A11: Future School ADM Projections by School Year
A12: Projection Type | B12: Current School Year ADM | C12: =VLOOKUP(J9,$O$23:$P$116,2) -> 2023-2024 | D12: =VLOOKUP(J9+1,$O$23:$P$116,2) -> 2024-2025 | E12: =VLOOKUP(J9+2,$O$23:$P$116,2) -> 2025-2026 | F12: =VLOOKUP(J9+3,$O$23:$P$116,2) -> 2026-2027 | G12: =VLOOKUP(J9+4,$O$23:$P$116,2) -> 2027-2028 | H12: =VLOOKUP(J9+5,$O$23:$P$116,2) -> 2028-2029 | I12: =VLOOKUP(J9+6,$O$23:$P$116,2) -> 2029-2030 | J12: =VLOOKUP(J9+7,$O$23:$P$116,2) -> 2030-2031 | K12: Average Annual ADM Change | L12: Overall ADM Growth
A13: District's K-6 Projection | B13: =ELEM ->  | C13: =IF(FCrate>0,ELEM+(ELEM*FCrate),ELEM) ->  | D13: =IF(FCrate>0,C13+C13*FCrate,C13) ->  | E13: =IF(FCrate>0,D13+D13*FCrate,D13) ->  | G13: =IF(FCrate>0,F13+F13*FCrate,F13) ->  | J13: =IF(FCrate>0,I13+I13*FCrate,I13) ->  | K13: =IF(ELEM=0, " ",(((C13-ELEM)/ELEM+(D13-C13)/C13+(E13-D13)/D13+(F13-E13)/E13+(G13-F13)/F13+(H13-G13)/G13+(I13-H13)/H13+(J13-I13)/I13))/8) ->  | L13: =IF(ELEM=0, " ", (J13-ELEM)/ELEM) -> 
A14: District's 7-12 Projection | B14: =SEC ->  | C14: =IF(FCrate>0,SEC+(SEC*FCrate),SEC) ->  | K14: =IF(SEC=0, " ",(((C14-SEC)/SEC+(D14-C14)/C14+(E14-D14)/D14+(F14-E14)/E14+(G14-F14)/F14+(H14-G14)/G14+(I14-H14)/H14+(J14-I14)/I14))/8) ->  | L14: =IF(SEC=0, " ",(J14-SEC)/SEC) -> 
A15: DEED's K-6 Projection | B15: =VLOOKUP(NAME,'Current ADM'!$B$3:$F$575,2,FALSE) ->  | C15: =IF(ELEM=0, " ", ELEM*(1+doek6)) ->  | D15: =IF(ELEM=0, " ", C15*(1+doek6)) ->  | F15: =IF(ELEM=0, " ", E15*(1+doek6)) ->  | K15: =IF(ELEM=0, " ", IF(_sdk6>=FCrate, IF(AVERAGE(_sdk6,FCrate)<0,0,AVERAGE(_sdk6,FCrate)), IF(FCrate<0, 0, _sdk6))) ->  | L15: =IF(ELEM=0, " ", (J15-ELEM)/ELEM) -> 
A16: DEED's 7-12 Projection | B16: =VLOOKUP(NAME,'Current ADM'!$B$3:$F$575,3,FALSE) ->  | C16: =IF(SEC=0," ", SEC*(1+_doe712)) ->  | D16: =IF(SEC=0," ", C16*(1+_doe712)) ->  | K16: =IF(SEC=0, " ",IF(_sd712>=FCrate, IF(AVERAGE(_sd712,FCrate)<0,0,AVERAGE(_sd712,FCrate)), IF(FCrate<0, 0, _sd712))) ->  | L16: =IF(SEC=0, " ", (J16-SEC)/SEC) -> 
A17: Note: If District projection numbers match DEED projection, numbers were not provided by the school district. | L17: end of sheet
N23: Academy Charter School | O23: 2006 | P23: 2006-2007 | R23: Elementary
N24: Adak School | O24: 2007 | P24: 2007-2008 | R24: Secondary
N25: Akhiok School | O25: 2008 | P25: 2008-2009 | R25: Secondary+6
N26: Akiachak School | O26: 2009 | P26: 2009-2010 | R26: Mixed Grade
N27: Akiak School | O27: 2010 | P27: 2010-2011 | R27: K-12
N28: Akiuk Memorial School (Kasigluk) | O28: 2011 | P28: 2011-2012
N29: Akula Elitnauvik School (Kasigluk) | O29: 2012 | P29: 2012-2013
N30: Akutan School | O30: 2013 | P30: 2013-2014
N31: Alak School | O31: 2014 | P31: 2014-2015
N32: Alakanuk School | O32: 2015 | P32: 2015-2016
N33: Aleknagik North School | O33: 2016 | P33: 2016-2017
N34: Allakaket School | O34: 2017 | P34: 2017-2018
N35: Ambler School | O35: 2018 | P35: 2018-2019
N36: Anderson School | O36: 2019 | P36: 2019-2020
N37: Andrew K. Demoski School (Nulato) | O37: 2020 | P37: 2020-2021
N38: Angoon School | O38: 2021 | P38: 2021-2022
N39: Aniak Jr/Sr High School | O39: 2022 | P39: 2022-2023
N40: Aniguiin School (Elim) | O40: 2023 | P40: 2023-2024
N41: Anna Tobeluk Memorial School (Nunapitchuk) | O41: 2024 | P41: 2024-2025
N42: Anne Wien Elementary School | O42: 2025 | P42: 2025-2026
N43: Anthony A. Andrews School (St. Michael) | O43: 2026 | P43: 2026-2027
N44: Anvil City Science Academy | O44: 2027 | P44: 2027-2028
N45: Aqqaluk School | O45: 2028 | P45: 2028-2029
N46: Aquarian Charter (K-6) | O46: 2029 | P46: 2029-2030
N47: Arctic Light Elementary School | O47: 2030 | P47: 2030-2031
N48: Arctic Village School | O48: 2031 | P48: 2031-2032
N49: Arviq School [Platinum] | O49: 2032 | P49: 2032-2033
N50: Auke Bay Elementary School | O50: 2033 | P50: 2033-2034
N51: Auntie Mary Nicoli Elementary (Aniak) | O51: 2034 | P51: 2034-2035
N52: Aurora Borealis Charter (Soldotna) | O52: 2035 | P52: 2035-2036
N53: Ayagina'ar Elitnaurvik School (Kongiganak) | O53: 2036 | P53: 2036-2037
N54: Ayaprun School (Newtok) | O54: 2037 | P54: 2037-2038
O55: 2038 | P55: 2038-2039
N56: Baranof Elementary School | O56: 2039 | P56: 2039-2040
N57: Barnette Elementary School | O57: 2040 | P57: 2040-2041
N58: Barrow High School (Barrow) | O58: 2041 | P58: 2041-2042
N59: Barry Craig Stewart Kasaan School | O59: 2042 | P59: 2042-2043
N60: Beaver "Cruikshank" School | O60: 2043 | P60: 2043-2044
N61: Ben Eielson Jr/Sr High School | O61: 2044 | P61: 2044-2045
N62: Benny Benson Secondary/S.E.A.R.C.H. (7-12) | O62: 2045 | P62: 2045-2046
N63: Beryozova School | O63: 2046 | P63: 2046-2047
N64: Bethel Regional High School | O64: 2047 | P64: 2047-2048
N65: Big Lake Elementary | O65: 2048 | P65: 2048-2049
N66: Blackwell School (Anvik) | O66: 2049 | P66: 2049-2050
N67: Blatchely Middle School | O67: 2050 | P67: 2050-2051
N68: Brevig Mission School | O68: 2051 | P68: 2051-2052
N69: Bristol Bay School | O69: 2052 | P69: 2052-2053
N70: Buckland School | O70: 2053 | P70: 2053-2054
N71: Burchell Alternative High School | O71: 2054 | P71: 2054-2055
N72: Butte School | O72: 2055 | P72: 2055-2056
O73: 2056 | P73: 2056-2057
N74: Cantwell School | O74: 2057 | P74: 2057-2058
N75: Chapman School (Anchor Point) | O75: 2058 | P75: 2058-2059
N76: Chaputnguak School (Chefornak) | O76: 2059 | P76: 2059-2060
N77: Chenega Bay School | O77: 2060 | P77: 2060-2061
N78: Chevak School | O78: 2061 | P78: 2061-2062
N79: Chief Ivan Blunka (New Stuyahok) | O79: 2062 | P79: 2062-2063
N80: Chief Paul Memorial (Kipnuk) | O80: 2063 | P80: 2063-2064
N81: Chignik Bay School | O81: 2064 | P81: 2064-2065
N82: Chignik Lagoon School | O82: 2065 | P82: 2065-2066
N83: Chignik Lake School | O83: 2066 | P83: 2066-2067
N84: Chiniak School | O84: 2067 | P84: 2067-2068
N85: Circle School | O85: 2068 | P85: 2068-2069
N86: Clarks Point School | O86: 2069 | P86: 2069-2070
N87: Colony High School | O87: 2070 | P87: 2070-2071
N88: Colony Middle School | O88: 2071 | P88: 2071-2072
N89: Cooper Landing School (K-12) | O89: 2072 | P89: 2072-2073
N90: Cordova High School [Jr/Sr HS] | O90: 2073 | P90: 2073-2074
N91: Cottonwood Creek | O91: 2074 | P91: 2074-2075
N92: Craig Elementary | O92: 2075 | P92: 2075-2076
N93: Craig High School | O93: 2076 | P93: 2076-2077
N94: Craig Middle School | O94: 2077 | P94: 2077-2078
N95: Crawford Elementary School | O95: 2078 | P95: 2078-2079
N96: Crow Village Sam School (Chuathbaluk) | O96: 2079 | P96: 2079-2080
O97: 2080 | P97: 2080-2081
N98: David-Louis Memorial School (Grayling) | O98: 2081 | P98: 2081-2082
N99: Davis-Ramoth Memorial (Selawik) | O99: 2082 | P99: 2082-2083
N100: Deering School | O100: 2083 | P100: 2083-2084
N101: Delta Junction Elementary School (K-5) | O101: 2084 | P101: 2084-2085
N102: Delta Junction Jr High School (6-8) | O102: 2085 | P102: 2085-2086
N103: Delta Junction Sr High School (9-12) | O103: 2086 | P103: 2086-2087
N104: Dena'ina Elementary | O104: 2087 | P104: 2087-2088
N105: Denali Elementary School | O105: 2088 | P105: 2088-2089
N106: Dillingham Elementary | O106: 2089 | P106: 2089-2090
N107: Dillingham Middle & High School | O107: 2090 | P107: 2090-2091
N108: Diomede School | O108: 2091 | P108: 2091-2092
N109: Dot Lake School | O109: 2092 | P109: 2092-2093
N110: Dzantik'i Heeni Middle School | O110: 2093 | P110: 2093-2094
O111: 2094 | P111: 2094-2095
N112: Eagle Community School | O112: 2095 | P112: 2095-2096
N113: East Elementary School (Kodiak) | O113: 2096 | P113: 2096-2097
N114: Eben Hopson Middle (Barrow) | O114: 2097 | P114: 2097-2098
N115: Eek School | O115: 2098 | P115: 2098-2099
N116: Effie Kokrine Charter School | O116: 2099 | P116: 2099-2100
N117: Ella B. Vernetti (Koyukuk)
N118: Emmonak School
N120: False Pass School
N121: Fawn Mountain Elementary
N122: Finger Lake School
N123: Fireweed Academy Charter (Homer)
N124: Floyd Dryden Middle School
N125: Fort Yukon School
N126: Fred & Sara Machetanz Elementary [K-5]
N127: Fred Ipalook (Barrow)
N129: Galena Interior Learning Academy
N130: Gambell School
N131: George H. Gilson Jr. High
N132: George Morgan Jr/Sr. High School (Kalskag)
N133: Gerstle River School
N134: Glacier View School
N135: Gladys Dart School (Manley Hot Springs)
N136: Gladys Jung Elementary (Bethel)
N137: Glennallen School [Jr/Sr HS]
N138: Glennallen School K-6
N139: Golovin School (Martin L. Olson)
N140: Goose Bay K-2
N141: Gustavus School
N142: Gusty Michael School (Stony River)
N144: Haines Elementary School K-8
N145: Haines High School
N146: Harborview Elementary School
N147: Harold Kaveolook School (Kaktovik)
N148: Hermon Hutchens Elementary
N149: Hollis School
N150: Homer Flex
N151: Homer High School
N152: Homer Middle School
N153: Hoonah City School
N154: Hooper Bay School
N155: Hope School
N156: Houghtaling Elementary School
N157: Houston High School
N158: Houston Middle School
N159: Howard Valentine Coffman Cove School
N160: Hunter Elementary School
N161: Hutchison High School
N162: Hydaburg School
N164: Iditarod School
N165: Igugig School
N166: Innoko River School (Shageluk)
N168: Jack Egnaty Sr. School (Sleetmute)
N169: James C. Isabell School (Teller)
N170: Jeffery A. Bader Memorial School (Holy Cross)
N171: Jimmy Huntington School (Huslia)
N172: Joann A. Alexie Memorial School (Atmautlak)
N173: Joe Redington Senior Jr/Sr High School
N174: John Shaw Elementary
N175: Johnnie John Sr School (Crooked Creek)
N176: Johnny Oldman School (Hughes)
N177: Joseph & Olinga Gregory School (Kalskag)
N178: June Nelson Elementary School (Kotzebue)
N179: Juneau Community Charter School
N180: Juneau Douglas High School
N182: K-6 Abbott Loop Elementary
N183: K-6 Airport Heights Elementary
N184: K-6 Alpenglow Elementary
N185: K-6 Aurora Elementary
N186: K-6 Baxter Elementary
N187: K-6 Bayshore Elementary
N188: K-6 Bear Valley Elementary
N189: K-6 Birchwood ABC
N190: K-6 Bowman Elementary
N191: K-6 Campbell Elementary
N192: K-6 Chester Valley Elementary (K-5)
N193: K-6 Chinook Elementary
N194: K-6 Chugach Optional Elementary
N195: K-6 Chugiak Elementary (K-5)
N196: K-6 College Gate Elementary
N197: K-6 Creekside Park (K-5)
N198: K-6 Denali Elementary
N199: K-6 Dr. Etheldra Davis - Fairview Elementary
N200: K-6 Eagle River Elementary
N201: K-6 Fire Lake Elementary (K-5)
N202: K-6 Girdwood School (K-8)
N203: K-6 Gladys Wood Elementary
N204: K-6 Government Hill Elementary
N205: K-6 Homestead Elementary
N206: K-6 Huffman Elementary
N207: K-6 Inlet View Elementary
N208: K-6 Kasuun Elementary
N209: K-6 Kincaid Elementary
N210: K-6 Klatt Elementary
N211: K-6 Lake Hood Elementary
... 258 more rows

Sheet Allow SF
A1: Allowable Gross Square Footage
A2: District: | B2: =SD -> 
A3: School: | B3: =NAME -> 0
A4: Project Number: | B4: =PROJNO -> 25-xxx
A5: School Type: | B5: =ADM!B6 -> K-12
A6: Eligible Gross Square Footage (GSF) Data Type | B6: GSF Values
A7: Projected ADM (K-6): | B7: =IF(ABS(_sdk6-FCrate)>0.005,k6ADM,ADM!J13) -> 
A8: Projected ADM (7-12): | B8: =IF(ABS(_sd712-FCrate)>0.005,_ADM712,ADM!J14) -> 
A9: Existing DEED designated GSF | B9: 0
A10: Existing GSF To Remain: | B10: 0
A11: Additional GSF Requested: | B11: 0
A12: Total GSF Proposed: | B12: =B10+B11 -> 0
A13: Eligible Base GSF: | B13: =IF(ADM!$B$6="Elementary",114*B7,IF(ADM!$B$6="Secondary",B8*165,IF(ADM!$B$6="K-12",B7*114+B8*165,IF(ADM!$B$6="Mixed Grade",B7*114+B8*165,IF(ADM!$B$6="Secondary+6",(B7+B8)*165," "))))) -> 
A14: Eligible Supplemental GSF: | B14: =IF(ADM!$B$6="Elementary",B7*130*10^(-B7/250),IF(ADM!$B$6="Secondary",B8*300*10^(-B8/300),IF(ADM!$B$6="K-12",(B7+B8)*213*10^(-(B7+B8)/483),IF(ADM!$B$6="Mixed Grade",(B7+B8)*250*10^(-(B7+B8)/250),IF(ADM!$B$6="Secondary+6",(B7+B8)*250*10^(-(B7+B8)/250)," "))))) -> 
A15: Total GSF Eligible: | B15: =IF(B13=" ",0,B13+B14) -> 
A16: Additional GSF Allowable: | B16: =IF((B15-B10)<0,0,(B15-B10)) -> 
A17: Additional GSF Reduction: | B17: =IF(B16=0,"Not Eligible for Space",IF(B16>B11,"No Reduction",B16-B11)) -> 
A18: 4 AAC 31.020(e)(2) Additional GSF Allowances
A19: Allowance for Covered Exterior Areas: | B19: =IF(OR(B15<B12,B12=0),(IF((B15*0.15)<3000,3000,(IF((B15*0.15)>9000,9000,B15*0.15)))),(IF((B12*0.15)<3000,3000,(IF((B12*0.15)>9000,9000,B12*0.15))))) -> 
A20: Allowance for Water/Sewer Storage & Treatment: | B20: =IF(B12=0,B15*0.05,IF(B15<B12,B15*0.05,B12*0.05)) -> 

Sheet Current Capacity
A1: Current Capacity and Unhoused Run Macro Capacity_Calc (shortcut CTRL+e) to calculate current school capacity
A2: District: | B2: ='Allow SF'!B2 -> 
A3: School: | B3: ='Allow SF'!B3 -> 0
A4: Project Number: | B4: ='Allow SF'!B4 -> 25-xxx
A5: School Type: | B5: =ADM!B6 -> K-12
A6: Capacity Data Type | B6: Capacity Values
A7: Current ADM (K-6): | B7: =ELEM -> 
A8: Current ADM (7-12): | B8: =SEC -> 
A9: Existing GSF: | B9: ='Allow SF'!B9 -> 0
A10: Existing GSF Elementary Capacity:
A11: Existing GSF Secondary Capacity: | B11: =IF(EXSF=0," ",IF(TYPE="Elementary",0,IF(TYPE="Secondary",O19,EADM*csadm/ceadm))) -> 
A12: Existing Base GSF: | B12: =IF($B$5="Elementary",114*B10,IF($B$5="Secondary",B11*165,IF($B$5="K-12",B10*114+B11*165,IF($B$5="Mixed Grade",B10*114+B11*165,IF($B$5="Secondary+6",(B10+B11)*165," "))))) -> 
A13: Existing Supplemental GSF: | B13: =IF($B$5="Elementary",B10*130*10^(-B10/250),IF($B$5="Secondary",B11*300*10^(-B11/300),IF($B$5="K-12",(B10+B11)*213*10^(-(B10+B11)/483),IF($B$5="Mixed Grade",(B10+B11)*250*10^(-(B10+B11)/250),IF($B$5="Secondary+6",(B10+B11)*250*10^(-(B10+B11)/250)," "))))) -> 
A14: Existing GSF Serving Total ADM: | B14: =IF(EXSF=0," ",B12+B13) -> 
A15: Unhoused Students: | B15: =IF(EXSF=0," ",IF(B5="Elementary",B7-B10,IF(B5="Secondary",B8-B11,(B7+B8)-(B10+B11)))) -> 
A16: Current Percent Capacity: | B16: =IF(EXSF=0," ",IF(TYPE="Elementary",ceadm/EADM,IF(TYPE="Secondary",csadm/SADM,(B7+B8)/(EADM+SADM)))) -> 

Sheet Projected Capacity
A1: Projected Capacity and Unhoused Run Macro Capacity_Calc (shortcut CTRL+e) to calculate projected school capacity
A2: District: | B2: ='Allow SF'!B2 -> 
A3: School: | B3: ='Allow SF'!B3 -> 0
A4: Project Number: | B4: ='Allow SF'!B4 -> 25-xxx
A5: School Type: | B5: =ADM!B6 -> K-12
A6: Capacity Data Type | B6: Capacity Values
A7: Projected ADM (K-6): | B7: ='Allow SF'!B7 -> 
A8: Projected ADM (7-12): | B8: ='Allow SF'!B8 -> 
A9: Existing GSF: | B9: ='Allow SF'!B9 -> 0
A10: Existing GSF Elementary Capacity:
A11: Existing GSF Secondary Capacity: | B11: =IF(EXSF=0," ",IF(TYPE="Elementary",0,IF(TYPE="Secondary",O19,EADM*csadm/ceadm))) -> 
A12: Existing Base GSF: | B12: =IF($B$5="Elementary",114*B10,IF($B$5="Secondary",B11*165,IF($B$5="K-12",B10*114+B11*165,IF($B$5="Mixed Grade",B10*114+B11*165,IF($B$5="Secondary+6",(B10+B11)*165," "))))) -> 
A13: Existing Supplemental GSF: | B13: =IF($B$5="Elementary",B10*130*10^(-B10/250),IF($B$5="Secondary",B11*300*10^(-B11/300),IF($B$5="K-12",(B10+B11)*213*10^(-(B10+B11)/483),IF($B$5="Mixed Grade",(B10+B11)*250*10^(-(B10+B11)/250),IF($B$5="Secondary+6",(B10+B11)*250*10^(-(B10+B11)/250)," "))))) -> 
A14: Existing GSF Serving Total ADM: | B14: =IF(EXSF=0," ",B12+B13) -> 
A15: Unhoused Students: | B15: =IF(EXSF=0," ",IF(B5="Elementary",B7-B10,IF(B5="Secondary",B8-B11,(B7+B8)-(B10+B11)))) -> 
A16: Projected Percent Capacity: | B16: =IF(EXSF=0," ",IF(TYPE="Elementary",ceadm/EADM,IF(TYPE="Secondary",csadm/SADM,(B7+B8)/(EADM+SADM)))) -> 

Sheet Current ADM
A1: Department of Education & Early Development Prepared by School Finance 3/8/2023 FY2023 ADM Report
A2: District | B2: School Name | C2: K-6* | D2: 7-12 | E2: Total ADM | F2: Attendance Area | H2: Attendance Area | I2: K-6 | J2: 7-12 | K2: Total | L2: District
A3: Alaska Gateway | B3: Dot Lake School | C3: 8 | D3: 6 | E3: =IF((C3+D3=0),"",C3+D3) -> 14 | F3: Dot Lake | H3: Dot Lake | I3: =SUMIF($F$3:$F$522,H3,$C$3:$C$522) -> 8 | J3: =SUMIF($F$3:$F$522,H3,$D$3:$D$522) -> 6 | K3: =SUM(I3:J3) -> 14 | L3: Alaska Gateway
A4: Alaska Gateway | B4: Eagle Community School | C4: 5 | D4: 5.55 | E4: 10.55 | F4: Eagle | H4: Eagle | I4: 5 | J4: 5.55 | K4: =SUM(I4:J4) -> 10.55 | L4: Alaska Gateway
A5: Alaska Gateway | B5: Mentasta Lake School | C5: 15 | D5: 18 | E5: 33 | F5: Mentasta Lake | H5: Mentasta Lake | I5: 15 | J5: 18 | K5: =SUM(I5:J5) -> 33 | L5: Alaska Gateway
A6: Alaska Gateway | B6: Tanacross School | C6: 10 | D6: 0 | E6: 10 | F6: Tanacross | H6: Northway | I6: 28 | J6: 29 | K6: =SUM(I6:J6) -> 57 | L6: Alaska Gateway
A7: Alaska Gateway | B7: Tetlin School | C7: 22 | D7: 15 | E7: 37 | F7: Tetlin | H7: Tanacross | I7: 10 | J7: 0 | K7: 10 | L7: Alaska Gateway
A8: Alaska Gateway | B8: Tok School | C8: 89.2 | D8: 89.4 | E8: 178.6 | F8: Tok | H8: Tetlin | I8: 22 | J8: 15 | K8: 37 | L8: Alaska Gateway
A9: Alaska Gateway | B9: Walter Northway School | C9: 28 | D9: 29 | E9: 57 | F9: Northway | H9: Tok | I9: 89.2 | J9: 89.4 | K9: 178.6 | L9: Alaska Gateway
A10: Alaska Gateway | B10: TOTAL | C10: =SUM(C3:C9) -> 177.2 | D10: =SUM(D3:D9) -> 162.95 | E10: =SUM(E3:E9) -> 340.15 | K10: =SUM(K3:K9) -> 340.15
A11: Aleutian Region | B11: Adak School | C11: 2 | D11: 3 | E11: =IF((C11+D11=0),"",C11+D11) -> 5 | F11: Adak | H11: atka | I11: =SUMIF($F$3:$F$522,H11,$C$3:$C$522) -> 8.25 | J11: =SUMIF($F$3:$F$522,H11,$D$3:$D$522) -> 3 | K11: 11.25 | L11: Aleutian Region
A12: Aleutian Region | B12: Yakov E. Netsvetov School | C12: 8.25 | D12: 3 | E12: =IF((C12+D12=0),"",C12+D12) -> 11.25 | F12: Atka | H12: adak | I12: =SUMIF($F$3:$F$522,H12,$C$3:$C$522) -> 2 | J12: =SUMIF($F$3:$F$522,H12,$D$3:$D$522) -> 3 | K12: 5 | L12: Aleutian Region
A13: Aleutian Region | B13: TOTAL | C13: =SUM(C11:C12) -> 10.25 | D13: =SUM(D11:D12) -> 6 | E13: =SUM(E11:E12) -> 16.25 | K13: =SUM(K11:K12) -> 16.25
A14: Aleutians East | B14: Akutan School | C14: 15 | D14: 5 | E14: =IF((C14+D14=0),"",C14+D14) -> 20 | F14: Akutan | H14: Akutan | I14: =SUMIF($F$3:$F$522,H14,$C$3:$C$522) -> 15 | J14: =SUMIF($F$3:$F$522,H14,$D$3:$D$522) -> 5 | K14: 20 | L14: Aleutians East
A15: Aleutians East | B15: False Pass School | C15: 5 | D15: 4 | E15: =IF((C15+D15=0),"",C15+D15) -> 9 | F15: False Pass | H15: False Pass | I15: =SUMIF($F$3:$F$522,H15,$C$3:$C$522) -> 5 | J15: =SUMIF($F$3:$F$522,H15,$D$3:$D$522) -> 4 | K15: 9 | L15: Aleutians East
A16: Aleutians East | B16: King Cove School | C16: 37 | D16: 40 | E16: =IF((C16+D16=0),"",C16+D16) -> 77 | F16: King Cove | H16: King Cove | I16: =SUMIF($F$3:$F$522,H16,$C$3:$C$522) -> 37 | J16: =SUMIF($F$3:$F$522,H16,$D$3:$D$522) -> 40 | K16: 77 | L16: Aleutians East
A17: Aleutians East | B17: Sand Point School | C17: 45 | D17: 46 | E17: =IF((C17+D17=0),"",C17+D17) -> 91 | F17: Sand Point | H17: Sand Point | I17: =SUMIF($F$3:$F$522,H17,$C$3:$C$522) -> 45 | J17: =SUMIF($F$3:$F$522,H17,$D$3:$D$522) -> 46 | K17: 91 | L17: Aleutians East
A18: Aleutians East | B18: TOTAL | C18: =SUM(C14:C17) -> 102 | D18: =SUM(D14:D17) -> 95 | E18: =SUM(E14:E17) -> 197 | K18: =SUM(K14:K17) -> 197
A19: Anchorage | B19: K-6 Abbott Loop Elementary | C19: 244 | D19: 0 | E19: =IF((C19+D19=0),"",C19+D19) -> 244 | F19: Anchorage | H19: Anchorage | I19: =SUMIF($F$3:$F$522,H19,$C$3:$C$522) -> 19994.49 | J19: =SUMIF($F$3:$F$522,H19,$D$3:$D$522) -> 17911.79 | K19: 37906.28 | L19: Anchorage
A20: Anchorage | B20: K-6 Airport Heights Elementary | C20: 258.1 | D20: 0 | E20: 258.1 | F20: Anchorage | H20: JBER | I20: 1278.93 | J20: 0 | K20: 1278.93 | L20: Anchorage
A21: Anchorage | B21: K-6 Alpenglow Elementary | C21: 367.1 | D21: 0 | E21: 367.1 | F21: Anchorage | H21: Girdwood | I21: 146.6 | J21: 33.75 | K21: 180.35 | L21: Anchorage
A22: Anchorage | B22: K-6 Aurora Elementary | C22: 311.1 | D22: 0 | E22: 311.1 | F22: JBER | I22: 0 | J22: 0 | K22: 0 | L22: Anchorage
A23: Anchorage | B23: K-6 Baxter Elementary | C23: 268.65 | D23: 0 | E23: 268.65 | F23: Anchorage | H23: School for the Deaf | I23: 18 | J23: 12 | K23: 30 | L23: Anchorage
A24: Anchorage | B24: K-6 Bayshore Elementary | C24: 428.42 | D24: 0 | E24: 428.42 | F24: Anchorage | I24: 0 | J24: 0 | K24: 0 | L24: Anchorage
A25: Anchorage | B25: K-6 Bear Valley Elementary | C25: 396.75 | D25: 0 | E25: 396.75 | F25: Anchorage | H25: *Note: King Career Center is not on this report, | I25: 0 | J25: 0 | K25: 0 | L25: Anchorage
A26: Anchorage | B26: K-6 Birchwood ABC | C26: 203.18 | D26: 0 | E26: 203.18 | F26: Anchorage | I26: 0 | J26: 0 | K26: 0 | L26: Anchorage
A27: Anchorage | B27: K-6 Bowman Elementary | C27: 536 | D27: 0 | E27: 536 | F27: Anchorage | I27: 0 | J27: 0 | K27: 0 | L27: Anchorage
A28: Anchorage | B28: K-6 Campbell Elementary | C28: 414.67 | D28: 0 | E28: 414.67 | F28: Anchorage | I28: 0 | J28: 0 | K28: 0 | L28: Anchorage
A29: Anchorage | B29: K-6 Chester Valley Elementary (K-5) | C29: 218.13 | D29: 0 | E29: 218.13 | F29: Anchorage | I29: 0 | J29: 0 | K29: 0 | L29: Anchorage
A30: Anchorage | B30: K-6 Chinook Elementary | C30: 470.6 | D30: 0 | E30: 470.6 | F30: Anchorage | I30: 0 | J30: 0 | K30: 0 | L30: Anchorage
A31: Anchorage | B31: K-6 Chugach Optional Elementary | C31: 233.95 | D31: 0 | E31: 233.95 | F31: Anchorage | I31: 0 | J31: 0 | K31: 0 | L31: Anchorage
A32: Anchorage | B32: K-6 Chugiak Elementary (K-5) | C32: 445.35 | D32: 0 | E32: 445.35 | F32: Anchorage | I32: 0 | J32: 0 | K32: 0 | L32: Anchorage
A33: Anchorage | B33: K-6 College Gate Elementary | C33: 398.91 | D33: 0 | E33: 398.91 | F33: Anchorage | I33: 0 | J33: 0 | K33: 0 | L33: Anchorage
A34: Anchorage | B34: K-6 Creekside Park (K-5) | C34: 362.35 | D34: 0 | E34: 362.35 | F34: Anchorage | I34: 0 | J34: 0 | K34: 0 | L34: Anchorage
A35: Anchorage | B35: K-6 Denali Elementary | C35: 360.45 | D35: 0 | E35: 360.45 | F35: Anchorage | I35: 0 | J35: 0 | K35: 0 | L35: Anchorage
A36: Anchorage | B36: K-6 Eagle River Elementary | C36: 306.35 | D36: 0 | E36: 306.35 | F36: Anchorage | I36: 0 | J36: 0 | K36: 0 | L36: Anchorage
A37: Anchorage | B37: K-6 Dr. Etheldra Davis - Fairview Elementary | C37: 376.61 | D37: 0 | E37: 376.61 | F37: Anchorage | I37: 0 | J37: 0 | K37: 0 | L37: Anchorage
A38: Anchorage | B38: K-6 Fire Lake Elementary (K-5) | C38: 227.94 | D38: 0 | E38: 227.94 | F38: Anchorage | I38: 0 | J38: 0 | K38: 0 | L38: Anchorage
A39: Anchorage | B39: K-6 Girdwood School (K-8) | C39: 146.6 | D39: 33.75 | E39: 180.35 | F39: Girdwood | I39: 0 | J39: 0 | K39: 0 | L39: Anchorage
A40: Anchorage | B40: K-6 Gladys Wood Elementary | C40: 290.75 | D40: 0 | E40: 290.75 | F40: Anchorage | I40: 0 | J40: 0 | K40: 0 | L40: Anchorage
A41: Anchorage | B41: K-6 Government Hill Elementary | C41: 445.9 | D41: 0 | E41: 445.9 | F41: Anchorage | I41: 0 | J41: 0 | K41: 0 | L41: Anchorage
A42: Anchorage | B42: K-6 Homestead Elementary | C42: 297.45 | D42: 0 | E42: 297.45 | F42: Anchorage | I42: 0 | J42: 0 | K42: 0 | L42: Anchorage
A43: Anchorage | B43: K-6 Huffman Elementary | C43: 355.7 | D43: 0 | E43: 355.7 | F43: Anchorage | I43: 0 | J43: 0 | K43: 0 | L43: Anchorage
A44: Anchorage | B44: K-6 Inlet View Elementary | C44: 235.45 | D44: 0 | E44: 235.45 | F44: Anchorage | I44: 0 | J44: 0 | K44: 0 | L44: Anchorage
A45: Anchorage | B45: K-6 Kasuun Elementary | C45: 289.6 | D45: 0 | E45: =IF((C45+D45=0),"",C45+D45) -> 289.6 | F45: Anchorage | I45: 0 | J45: 0 | K45: 0 | L45: Anchorage
A46: Anchorage | B46: K-6 Kincaid Elementary | C46: 465.9 | D46: 0 | E46: =IF((C46+D46=0),"",C46+D46) -> 465.9 | F46: Anchorage | I46: 0 | J46: 0 | K46: 0 | L46: Anchorage
A47: Anchorage | B47: K-6 Klatt Elementary | C47: 337.5 | D47: 0 | E47: 337.5 | F47: Anchorage | I47: 0 | J47: 0 | K47: 0 | L47: Anchorage
A48: Anchorage | B48: K-6 Lake Hood Elementary | C48: 247.95 | D48: 0 | E48: 247.95 | F48: Anchorage | I48: 0 | J48: 0 | K48: 0 | L48: Anchorage
A49: Anchorage | B49: K-6 Lake Otis Elementary | C49: 304.2 | D49: 0 | E49: =IF((C49+D49=0),"",C49+D49) -> 304.2 | F49: Anchorage | I49: 0 | J49: 0 | K49: 0 | L49: Anchorage
A50: Anchorage | B50: K-6 Mountain View Elementary | C50: 286.8 | D50: 0 | E50: 286.8 | F50: Anchorage | I50: 0 | J50: 0 | K50: 0 | L50: Anchorage
A51: Anchorage | B51: K-6 Muldoon Elementary (K-5) | C51: 459.35 | D51: 0 | E51: 459.35 | F51: Anchorage | I51: =SUMIF($F$3:$F$522,H51,$C$3:$C$522) -> 0 | J51: =SUMIF($F$3:$F$522,H51,$D$3:$D$522) -> 0 | K51: 0 | L51: Anchorage
A52: Anchorage | B52: K-6 North Star Elementary | C52: 392.67 | D52: 0 | E52: 392.67 | F52: Anchorage | I52: 0 | J52: 0 | K52: 0 | L52: Anchorage
A53: Anchorage | B53: K-6 Northwood Elementary | C53: 270.91 | D53: 0 | E53: 270.91 | F53: Anchorage | I53: 0 | J53: 0 | K53: 0 | L53: Anchorage
A54: Anchorage | B54: K-6 Nunaka Valley Elementary | C54: 193.79 | D54: 0 | E54: 193.79 | F54: Anchorage | I54: 0 | J54: 0 | K54: 0 | L54: Anchorage
A55: Anchorage | B55: K-6 Ocean View Elementary | C55: 349.75 | D55: 0 | E55: 349.75 | F55: Anchorage | I55: 0 | J55: 0 | K55: 0 | L55: Anchorage
A56: Anchorage | B56: K-6 O'Malley Elementary | C56: 357.66 | D56: 0 | E56: 357.66 | F56: Anchorage | I56: 0 | J56: 0 | K56: 0 | L56: Anchorage
A57: Anchorage | B57: K-6 Orion Elementary | C57: 277.33 | D57: 0 | E57: 277.33 | F57: JBER | I57: 0 | J57: 0 | K57: 0 | L57: Anchorage
A58: Anchorage | B58: K-6 Ptarmigan Elementary | C58: 330.3 | D58: 0 | E58: 330.3 | F58: Anchorage | I58: 0 | J58: 0 | K58: 0 | L58: Anchorage
A59: Anchorage | B59: K-6 Rabbit Creek Elementary | C59: 442.75 | D59: 0 | E59: 442.75 | F59: Anchorage | I59: 0 | J59: 0 | K59: 0 | L59: Anchorage
A60: Anchorage | B60: K-6 Ravenwood Elementary | C60: 465.57 | D60: 0 | E60: 465.57 | F60: Anchorage | I60: 0 | J60: 0 | K60: 0 | L60: Anchorage
A61: Anchorage | B61: K-6 Rogers Park Elementary | C61: 404.65 | D61: 0 | E61: 404.65 | F61: Anchorage | I61: 0 | J61: 0 | K61: =SUM(I61:J61) -> 0 | L61: Anchorage
A62: Anchorage | B62: K-6 Russian Jack Elementary | C62: 252.45 | D62: 0 | E62: 252.45 | F62: Anchorage | I62: 0 | J62: 0 | K62: 0 | L62: Anchorage
A63: Anchorage | B63: K-6 Sand Lake Elementary | C63: 507.5 | D63: 0 | E63: 507.5 | F63: Anchorage | I63: 0 | J63: 0 | K63: 0 | L63: Anchorage
A64: Anchorage | B64: K-6 Scenic Park Elementary (K-5) | C64: 380.83 | D64: 0 | E64: 380.83 | F64: Anchorage | I64: 0 | J64: 0 | K64: 0 | L64: Anchorage
A65: Anchorage | B65: K-6 Spring Hill Elementary | C65: 335.75 | D65: 0 | E65: 335.75 | F65: Anchorage | I65: 0 | J65: 0 | K65: 0 | L65: Anchorage
A66: Anchorage | B66: K-6 Susitna Elementary | C66: 369.15 | D66: 0 | E66: 369.15 | F66: Anchorage | I66: 0 | J66: 0 | K66: 0 | L66: Anchorage
A67: Anchorage | B67: K-6 Taku Elementary | C67: 273.95 | D67: 0 | E67: 273.95 | F67: Anchorage | I67: 0 | J67: 0 | K67: 0 | L67: Anchorage
A68: Anchorage | B68: K-6 Trailside Elementary | C68: 382.85 | D68: 0 | E68: 382.85 | F68: Anchorage | I68: 0 | J68: 0 | K68: 0 | L68: Anchorage
A69: Anchorage | B69: K-6 Tudor Elementary | C69: 352.3 | D69: 0 | E69: 352.3 | F69: Anchorage | I69: 0 | J69: 0 | K69: 0 | L69: Anchorage
A70: Anchorage | B70: K-6 Turnagain Elementary | C70: 305.95 | D70: 0 | E70: 305.95 | F70: Anchorage | I70: 0 | J70: 0 | K70: 0 | L70: Anchorage
A71: Anchorage | B71: K-6 Ursa Major Elementary | C71: 414.55 | D71: 0 | E71: =IF((C71+D71=0),"",C71+D71) -> 414.55 | F71: JBER | I71: 0 | J71: 0 | K71: 0 | L71: Anchorage
A72: Anchorage | B72: K-6 Ursa Minor Elementary | C72: 275.95 | D72: 0 | E72: 275.95 | F72: JBER | I72: 0 | J72: 0 | K72: 0 | L72: Anchorage
A73: Anchorage | B73: K-6 William Tyson Elementary | C73: 345.45 | D73: 0 | E73: 345.45 | F73: Anchorage | I73: 0 | J73: 0 | K73: 0 | L73: Anchorage
A74: Anchorage | B74: K-6 Williwaw Elementary | C74: 305.45 | D74: 0 | E74: 305.45 | F74: Anchorage | I74: 0 | J74: 0 | K74: 0 | L74: Anchorage
A75: Anchorage | B75: K-6 Willow Crest Elementary | C75: 286.55 | D75: 0 | E75: 286.55 | F75: Anchorage | I75: 0 | J75: 0 | K75: 0 | L75: Anchorage
A76: Anchorage | B76: K-6 Wonder Park Elementary | C76: 259.2 | D76: 0 | E76: 259.2 | F76: Anchorage | I76: 0 | J76: 0 | K76: 0 | L76: Anchorage
A77: Anchorage | B77: K-8 Northern Lights ABC Elementary | C77: 464.05 | D77: 105 | E77: =IF((C77+D77=0),"",C77+D77) -> 569.05 | F77: Anchorage | I77: 0 | J77: 0 | K77: 0 | L77: Anchorage
A78: Anchorage | B78: MS Central Middle | C78: 0 | D78: 367.2 | E78: 367.2 | F78: Anchorage | I78: 0 | J78: 0 | K78: 0 | L78: Anchorage
A79: Anchorage | B79: MS Clark Middle | C79: 271.85 | D79: 569.32 | E79: 841.17 | F79: Anchorage | I79: 0 | J79: 0 | K79: 0 | L79: Anchorage
A80: Anchorage | B80: MS Golden View Middle | C80: 0 | D80: 624 | E80: 624 | F80: Anchorage | I80: 0 | J80: 0 | K80: 0 | L80: Anchorage
A81: Anchorage | B81: MS Gruening Middle School | C81: 0 | D81: 584 | E81: 584 | F81: Anchorage | I81: 0 | J81: 0 | K81: 0 | L81: Anchorage
A82: Anchorage | B82: MS Hanshew Middle | C82: 0 | D82: 690.2 | E82: =IF((C82+D82=0),"",C82+D82) -> 690.2 | F82: Anchorage | I82: 0 | J82: 0 | K82: 0 | L82: Anchorage
A83: Anchorage | B83: MS Mears Middle School | C83: 0 | D83: 729.6 | E83: 729.6 | F83: Anchorage | I83: =SUMIF($F$3:$F$522,H83,$C$3:$C$522) -> 0 | J83: =SUMIF($F$3:$F$522,H83,$D$3:$D$522) -> 0 | K83: 0 | L83: Anchorage
A84: Anchorage | B84: MS Mirror Lake Middle School | C84: 189.7 | D84: 373.8 | E84: 563.5 | F84: Anchorage | I84: 0 | J84: 0 | K84: 0 | L84: Anchorage
A85: Anchorage | B85: MS Nicholas J. Begich Middle School | C85: 285.45 | D85: 597.35 | E85: =IF((C85+D85=0),"",C85+D85) -> 882.8 | F85: Anchorage | I85: 0 | J85: 0 | K85: 0 | L85: Anchorage
A86: Anchorage | B86: MS Romig Middle | C86: 0 | D86: 718.8 | E86: 718.8 | F86: Anchorage | I86: 0 | J86: 0 | K86: 0 | L86: Anchorage
A87: Anchorage | B87: MS Wendler Middle | C87: 0 | D87: 422.25 | E87: 422.25 | F87: Anchorage | I87: 0 | J87: 0 | K87: 0 | L87: Anchorage
A88: Anchorage | B88: SH Bartlett High | C88: 11.6 | D88: 1349.59 | E88: 1361.19 | F88: Anchorage | I88: 0 | J88: 0 | K88: 0 | L88: Anchorage
A89: Anchorage | B89: SH Chugiak High | C89: 0 | D89: 901.83 | E89: 901.83 | F89: Anchorage | I89: 0 | J89: 0 | K89: 0 | L89: Anchorage
A90: Anchorage | B90: SH Dimond High | C90: 0 | D90: 1429.79 | E90: 1429.79 | F90: Anchorage | I90: 0 | J90: 0 | K90: 0 | L90: Anchorage
A91: Anchorage | B91: SH Eagle River High | C91: 0 | D91: 789.1 | E91: 789.1 | F91: Anchorage | I91: 0 | J91: 0 | K91: 0 | L91: Anchorage
A92: Anchorage | B92: SH Bettye Davis East Anchorage High | C92: 0 | D92: 1732 | E92: 1732 | F92: Anchorage | I92: 0 | J92: 0 | K92: 0 | L92: Anchorage
A93: Anchorage | B93: SH Service High | C93: 0 | D93: 1533.31 | E93: 1533.31 | F93: Anchorage | I93: 0 | J93: 0 | K93: 0 | L93: Anchorage
A94: Anchorage | B94: SH South Anchorage High | C94: 0 | D94: 1310.65 | E94: 1310.65 | F94: Anchorage | I94: 0 | J94: 0 | K94: 0 | L94: Anchorage
A95: Anchorage | B95: SH West High | C95: 0 | D95: 1756.35 | E95: 1756.35 | F95: Anchorage | I95: 0 | J95: 0 | K95: 0 | L95: Anchorage
A96: Anchorage | B96: Alaska Native Charter School (PK-8) | C96: 187.45 | D96: 45 | E96: =IF((C96+D96=0),"",C96+D96) -> 232.45 | F96: None | I96: 0 | J96: 0 | K96: 0 | L96: Anchorage
A97: Anchorage | B97: Anchorage STrEaM Academy (6-8) | C97: 52.21 | D97: 117.75 | E97: =IF((C97+D97=0),"",C97+D97) -> 169.96 | F97: None | I97: 0 | J97: 0 | K97: 0 | L97: Anchorage
A98: Anchorage | B98: Aquarian Charter (K-6) | C98: 390 | D98: 0 | E98: =IF((C98+D98=0),"",C98+D98) -> 390 | F98: Anchorage | I98: 0 | J98: 0 | K98: 0 | L98: Anchorage
A99: Anchorage | B99: Eagle Academy Charter (K-6) | C99: 171.75 | D99: 18.2 | E99: =IF((C99+D99=0),"",C99+D99) -> 189.95 | F99: None | I99: 0 | J99: 0 | K99: 0 | L99: Anchorage
A100: Anchorage | B100: Highland Tech Charter (6-12) | C100: 17 | D100: 151.7 | E100: 168.7 | F100: None | I100: 0 | J100: 0 | K100: 0 | L100: Anchorage
A101: Anchorage | B101: Rilke Schule Charter (K-8) | C101: 378.95 | D101: 57 | E101: =IF((C101+D101=0),"",C101+D101) -> 435.95 | F101: None | I101: 0 | J101: 0 | K101: 0 | L101: Anchorage
A102: Anchorage | B102: Winterberry Charter (K-8) | C102: 208.65 | D102: 45 | E102: 253.65 | F102: None | I102: 0 | J102: 0 | K102: 0 | L102: Anchorage
A103: Anchorage | B103: Whaley Center | C103: 22.65 | D103: 316.7 | E103: =IF((C103+D103=0),"",C103+D103) -> 339.35 | F103: Anchorage | I103: 0 | J103: 0 | K103: 0 | L103: Anchorage
A104: Anchorage | B104: Alaska Middle College School | C104: 0 | D104: 254.5 | E104: =IF((C104+D104=0),"",C104+D104) -> 254.5 | F104: None | I104: 0 | J104: 0 | K104: =SUM(I104:J104) -> 0 | L104: Anchorage
A105: Anchorage | B105: Benny Benson Secondary/S.E.A.R.C.H. (7-12) | C105: 0 | D105: 285.46 | E105: 285.46 | F105: Anchorage | I105: 0 | J105: 0 | K105: 0 | L105: Anchorage
A106: Anchorage | B106: Martin Luther King Jr. Tech High School | C106: 0 | D106: 104.15 | E106: =IF((C106+D106=0),"",C106+D106) -> 104.15 | F106: Anchorage | I106: 0 | J106: 0 | K106: 0 | L106: Anchorage
A107: Anchorage | B107: Polaris (K-12) | C107: 259.7 | D107: 233.7 | E107: =IF((C107+D107=0),"",C107+D107) -> 493.4 | F107: Anchorage | I107: 0 | J107: 0 | K107: 0 | L107: Anchorage
A108: Anchorage | B108: S.A.V.E. High School | C108: 0 | D108: 147.34 | E108: 147.34 | F108: Anchorage | I108: 0 | J108: 0 | K108: 0 | L108: Anchorage
A109: Anchorage | B109: Steller Secondary (7-12) | C109: 0 | D109: 240.3 | E109: 240.3 | F109: Anchorage | I109: 0 | J109: 0 | K109: 0 | L109: Anchorage
A110: Anchorage | B110: Alaska School for Deaf & Hearing Impaired (PK-12) | C110: 18 | D110: 12 | E110: 30 | F110: School for the Deaf | H110: SH = Senior High | I110: 0 | J110: 0 | K110: 0 | L110: Anchorage
A111: Anchorage | B111: The New Path High School (YOP) | C111: 0 | F111: None | I111: 0 | J111: 0 | K111: 0 | L111: Anchorage
A112: Anchorage | B112: McLaughlin Youth Center (7-12) | C112: 0 | D112: 95 | E112: 95 | F112: None | I112: 0 | J112: 0 | K112: 0 | L112: Anchorage
A113: Anchorage | B113: TOTAL | C113: =SUM(C19:C112) -> 22454.03 | D113: =SUM(D19:D112) -> 18741.69 | E113: =SUM(E19:E112) -> 41195.72 | K113: =SUM(K19:K112) -> 39395.56
A114: Annette Island | B114: Leask Middle School | C114: 25 | D114: 49 | E114: =IF((C114+D114=0),"",C114+D114) -> 74 | F114: Metlakatla | H114: Metlakatla | I114: =SUMIF($F$3:$F$522,H114,$C$3:$C$522) -> 147.9 | J114: =SUMIF($F$3:$F$522,H114,$D$3:$D$522) -> 148 | K114: =SUM(I114:J114) -> 295.9 | L114: Annette Island
A115: Annette Island | B115: Metlakatla High School | C115: 0 | D115: 99 | E115: =IF((C115+D115=0),"",C115+D115) -> 99 | F115: Metlakatla | I115: =SUMIF($F$3:$F$522,H115,$C$3:$C$522) -> 0 | J115: =SUMIF($F$3:$F$522,H115,$D$3:$D$522) -> 0 | K115: 0 | L115: Annette Island
A116: Annette Island | B116: R. J. Elementary | C116: 122.9 | D116: 0 | E116: =IF((C116+D116=0),"",C116+D116) -> 122.9 | F116: Metlakatla | I116: =SUMIF($F$3:$F$522,H116,$C$3:$C$522) -> 0 | J116: =SUMIF($F$3:$F$522,H116,$D$3:$D$522) -> 0 | K116: 0 | L116: Annette Island
A117: Annette Island | B117: TOTAL | C117: =SUM(C114:C116) -> 147.9 | D117: =SUM(D114:D116) -> 148 | E117: =SUM(E114:E116) -> 295.9 | K117: =SUM(K114:K116) -> 295.9
A118: Bering Strait | B118: Aniguiin School (Elim) | C118: 59 | D118: 48.25 | E118: =IF((C118+D118=0),"",C118+D118) -> 107.25 | F118: Elim | H118: Brevig Mission | I118: =SUMIF($F$3:$F$522,H118,$C$3:$C$522) -> 82.4 | J118: =SUMIF($F$3:$F$522,H118,$D$3:$D$522) -> 73.31 | K118: 155.71 | L118: Bering Strait
A119: Bering Strait | B119: Anthony A. Andrews School (St. Michael) | C119: 70.8 | D119: 61.05 | E119: 131.85 | F119: St. Michael | H119: Diomede | I119: 16 | J119: 10.5 | K119: 26.5 | L119: Bering Strait
A120: Bering Strait | B120: Brevig Mission School | C120: 82.4 | D120: 73.31 | E120: 155.71 | F120: Brevig Mission | H120: Elim | I120: 59 | J120: 48.25 | K120: 107.25 | L120: Bering Strait
A121: Bering Strait | B121: Diomede School | C121: 16 | D121: 10.5 | E121: 26.5 | F121: Diomede | H121: Gambell | I121: 82.5 | J121: 71.4 | K121: 153.9 | L121: Bering Strait
A122: Bering Strait | B122: Gambell School | C122: 82.5 | D122: 71.4 | E122: 153.9 | F122: Gambell | H122: Golovin | I122: 23.3 | J122: 18 | K122: 41.3 | L122: Bering Strait
A123: Bering Strait | B123: Golovin School (Martin L. Olson) | C123: 23.3 | D123: 18 | E123: 41.3 | F123: Golovin | H123: Koyuk | I123: 50.26 | J123: 31.75 | K123: 82.01 | L123: Bering Strait
A124: Bering Strait | B124: James C. Isabell School (Teller) | C124: 33.75 | D124: 32 | E124: 65.75 | F124: Teller | H124: Savoonga | I124: 124 | J124: 99.75 | K124: 223.75 | L124: Bering Strait
A125: Bering Strait | B125: Koyuk Malimiut School | C125: 50.26 | D125: 31.75 | E125: 82.01 | F125: Koyuk | H125: Shaktoolik | I125: 27 | J125: 37.25 | K125: 64.25 | L125: Bering Strait
A126: Bering Strait | B126: Savoonga School (Hogarth Kingeekuk SR.) | C126: 124 | D126: 99.75 | E126: 223.75 | F126: Savoonga | H126: Shishmaref | I126: 93.3 | J126: 88 | K126: 181.3 | L126: Bering Strait
A127: Bering Strait | B127: Shaktoolik School | C127: 27 | D127: 37.25 | E127: 64.25 | F127: Shaktoolik | H127: St. Michael | I127: 70.8 | J127: 61.05 | K127: 131.85 | L127: Bering Strait
A128: Bering Strait | B128: Shishmaref School | C128: 93.3 | D128: 88 | E128: 181.3 | F128: Shishmaref | H128: Stebbins | I128: 128.73 | J128: 83.85 | K128: 212.58 | L128: Bering Strait
A129: Bering Strait | B129: Stebbins School (Tukurngailnguq) | C129: 128.73 | D129: 83.85 | E129: 212.58 | F129: Stebbins | H129: Teller | I129: 33.75 | J129: 32 | K129: 65.75 | L129: Bering Strait
A130: Bering Strait | B130: Unalakleet School | C130: 86.45 | D130: 57.06 | E130: 143.51 | F130: Unalakleet | H130: Unalakleet | I130: 86.45 | J130: 57.06 | K130: 143.51 | L130: Bering Strait
A131: Bering Strait | B131: Wales School (Kingikmiut) | C131: 24 | D131: 11.2 | E131: 35.2 | F131: Wales | H131: Wales | I131: 24 | J131: 11.2 | K131: 35.2 | L131: Bering Strait
A132: Bering Strait | B132: White Mountain School | C132: 35 | D132: 23 | E132: 58 | F132: White Mountain | H132: White Mountain | I132: 35 | J132: 23 | K132: 58 | L132: Bering Strait
A133: Bering Strait | B133: TOTAL | C133: =SUM(C118:C132) -> 936.49 | D133: =SUM(D118:D132) -> 746.37 | E133: =SUM(E118:E132) -> 1682.86 | K133: =SUM(K118:K132) -> 1682.86
A134: Bristol Bay | B134: Bristol Bay School | C134: 0 | D134: 51.2 | E134: =IF((C134+D134=0),"",C134+D134) -> 51.2 | F134: Naknek | H134: Naknek | I134: =SUMIF($F$3:$F$522,H134,$C$3:$C$522) -> 48.75 | J134: =SUMIF($F$3:$F$522,H134,$D$3:$D$522) -> 51.2 | K134: =SUM(I134:J134) -> 99.95 | L134: Bristol Bay
A135: Bristol Bay | B135: Naknek Elementary | C135: 48.75 | D135: 0 | E135: =IF((C135+D135=0),"",C135+D135) -> 48.75 | F135: Naknek | I135: =SUMIF($F$3:$F$522,H135,$C$3:$C$522) -> 0 | J135: =SUMIF($F$3:$F$522,H135,$D$3:$D$522) -> 0 | K135: =SUM(I135:J135) -> 0 | L135: Bristol Bay
A136: Bristol Bay | B136: TOTAL | C136: =SUM(C134:C135) -> 48.75 | D136: =SUM(D134:D135) -> 51.2 | E136: =SUM(E134:E135) -> 99.95 | K136: =SUM(K134:K135) -> 99.95
A137: Chatham | B137: Angoon School | C137: 33 | D137: 36.75 | E137: =IF((C137+D137=0),"",C137+D137) -> 69.75 | F137: Angoon | H137: Angoon | I137: =SUMIF($F$3:$F$522,H137,$C$3:$C$522) -> 33 | J137: =SUMIF($F$3:$F$522,H137,$D$3:$D$522) -> 36.75 | K137: 69.75 | L137: Chatham
A138: Chatham | B138: Gustavus School | C138: 25.75 | D138: 20.75 | E138: =IF((C138+D138=0),"",C138+D138) -> 46.5 | F138: Gustavus | H138: Gustavus | I138: =SUMIF($F$3:$F$522,H138,$C$3:$C$522) -> 25.75 | J138: =SUMIF($F$3:$F$522,H138,$D$3:$D$522) -> 20.75 | K138: 46.5 | L138: Chatham
A139: Chatham | B139: Klukwan School | C139: 5 | D139: 0.00 | E139: =IF((C139+D139=0),"",C139+D139) -> 5 | F139: Klukwan | H139: Klukwan | I139: =SUMIF($F$3:$F$522,H139,$C$3:$C$522) -> 5 | J139: =SUMIF($F$3:$F$522,H139,$D$3:$D$522) -> 0 | K139: 5 | L139: Chatham
A140: Chatham | B140: TOTAL | C140: =SUM(C137:C139) -> 63.75 | D140: =SUM(D137:D139) -> 57.5 | E140: =SUM(E137:E139) -> 121.25 | K140: =SUM(K137:K139) -> 121.25
A141: Chugach | B141: Chenega Bay School | C141: 7 | D141: 5 | E141: =IF((C141+D141=0),"",C141+D141) -> 12 | F141: Chenega Bay | H141: Chenega Bay | I141: =SUMIF($F$3:$F$522,H141,$C$3:$C$522) -> 7 | J141: =SUMIF($F$3:$F$522,H141,$D$3:$D$522) -> 5 | K141: 12 | L141: Chugach
A142: Chugach | B142: Tatitlek Community School | C142: 4 | D142: 7 | E142: =IF((C142+D142=0),"",C142+D142) -> 11 | F142: Tatitlek | H142: Tatitlek | I142: =SUMIF($F$3:$F$522,H142,$C$3:$C$522) -> 4 | J142: =SUMIF($F$3:$F$522,H142,$D$3:$D$522) -> 7 | K142: 11 | L142: Chugach
A143: Chugach | B143: Whittier Community School | C143: 23 | D143: 16.5 | E143: =IF((C143+D143=0),"",C143+D143) -> 39.5 | F143: Whittier | H143: Whittier | I143: =SUMIF($F$3:$F$522,H143,$C$3:$C$522) -> 23 | J143: =SUMIF($F$3:$F$522,H143,$D$3:$D$522) -> 16.5 | K143: 39.5 | L143: Chugach
A144: Chugach | B144: TOTAL | C144: =SUM(C141:C143) -> 34 | D144: =SUM(D141:D143) -> 28.5 | E144: =SUM(E141:E143) -> 62.5 | K144: =SUM(K141:K143) -> 62.5
A145: Copper River | B145: Glennallen School [Jr/Sr HS] | C145: 0 | D145: 98.7 | E145: =IF((C145+D145=0),"",C145+D145) -> 98.7 | F145: Glennallen | H145: Glennallen | I145: =SUMIF($F$3:$F$522,H145,$C$3:$C$522) -> 107.1 | J145: =SUMIF($F$3:$F$522,H145,$D$3:$D$522) -> 98.7 | K145: =SUM(I145:J145) -> 205.8 | L145: Copper River
A146: Copper River | B146: Glennallen School K-6 | C146: 107.1 | D146: 0 | E146: =IF((C146+D146=0),"",C146+D146) -> 107.1 | F146: Glennallen | H146: Kenny Lake | I146: =SUMIF($F$3:$F$522,H146,$C$3:$C$522) -> 35 | J146: =SUMIF($F$3:$F$522,H146,$D$3:$D$522) -> 22 | K146: =SUM(I146:J146) -> 57 | L146: Copper River
A147: Copper River | B147: Kenny Lake School | C147: 35 | D147: 22 | E147: =IF((C147+D147=0),"",C147+D147) -> 57 | F147: Kenny Lake | H147: Slana | I147: =SUMIF($F$3:$F$522,H147,$C$3:$C$522) -> 8 | J147: =SUMIF($F$3:$F$522,H147,$D$3:$D$522) -> 7 | K147: =SUM(I147:J147) -> 15 | L147: Copper River
A148: Copper River | B148: Slana School | C148: 8 | D148: 7 | E148: =IF((C148+D148=0),"",C148+D148) -> 15 | F148: Slana | I148: =SUMIF($F$3:$F$522,H148,$C$3:$C$522) -> 0 | J148: =SUMIF($F$3:$F$522,H148,$D$3:$D$522) -> 0 | K148: =SUM(I148:J148) -> 0 | L148: Copper River
A149: Copper River | B149: TOTAL | C149: =SUM(C145:C148) -> 150.1 | D149: =SUM(D145:D148) -> 127.7 | E149: =SUM(E145:E148) -> 277.8 | K149: =SUM(K145:K148) -> 277.8
A150: Cordova | B150: Cordova High School [Jr/Sr HS] | C150: 0 | D150: 122.65 | E150: =IF((C150+D150=0),"",C150+D150) -> 122.65 | F150: Cordova | H150: Cordova | I150: =SUMIF($F$3:$F$522,H150,$C$3:$C$522) -> 209.69 | J150: =SUMIF($F$3:$F$522,H150,$D$3:$D$522) -> 122.65 | K150: =SUM(I150:J150) -> 332.34 | L150: Cordova
A151: Cordova | B151: Mt. Eccles Elementary | C151: 209.69 | D151: 0 | E151: =IF((C151+D151=0),"",C151+D151) -> 209.69 | F151: Cordova | I151: =SUMIF($F$3:$F$522,H151,$C$3:$C$522) -> 0 | J151: =SUMIF($F$3:$F$522,H151,$D$3:$D$522) -> 0 | K151: =SUM(I151:J151) -> 0 | L151: Cordova
A152: Cordova | B152: TOTAL | C152: =SUM(C150:C151) -> 209.69 | D152: =SUM(D150:D151) -> 122.65 | E152: =SUM(E150:E151) -> 332.34 | K152: =SUM(K150:K151) -> 332.34
A153: Craig | B153: Craig Elementary | C153: 101.2 | D153: 0 | E153: =IF((C153+D153=0),"",C153+D153) -> 101.2 | F153: Craig | H153: Craig | I153: =SUMIF($F$3:$F$522,H153,$C$3:$C$522) -> 124.2 | J153: =SUMIF($F$3:$F$522,H153,$D$3:$D$522) -> 105.2 | K153: =SUM(I153:J153) -> 229.4 | L153: Craig
A154: Craig | B154: Craig Middle School | C154: 23 | D154: 27.85 | E154: =IF((C154+D154=0),"",C154+D154) -> 50.85 | F154: Craig | I154: =SUMIF($F$3:$F$522,H154,$C$3:$C$522) -> 0 | J154: =SUMIF($F$3:$F$522,H154,$D$3:$D$522) -> 0 | K154: =SUM(I154:J154) -> 0 | L154: Craig
A155: Craig | B155: Craig High School | C155: 0 | D155: 77.35 | E155: =IF((C155+D155=0),"",C155+D155) -> 77.35 | F155: Craig | I155: =SUMIF($F$3:$F$522,H155,$C$3:$C$522) -> 0 | J155: =SUMIF($F$3:$F$522,H155,$D$3:$D$522) -> 0 | K155: =SUM(I155:J155) -> 0 | L155: Craig
A156: Craig | B156: TOTAL | C156: =SUM(C153:C155) -> 124.2 | D156: =SUM(D153:D155) -> 105.2 | E156: =SUM(E153:E155) -> 229.4 | K156: =SUM(K153:K155) -> 229.4
A157: Delta/Greely | B157: Delta Junction Elementary School (K-5) | C157: 346.85 | D157: 0 | E157: =IF((C157+D157=0),"",C157+D157) -> 346.85 | F157: Delta Junction | H157: Delta Junction | I157: =SUMIF($F$3:$F$522,H157,$C$3:$C$522) -> 406 | J157: =SUMIF($F$3:$F$522,H157,$D$3:$D$522) -> 268.2 | K157: =SUM(I157:J157) -> 674.2 | L157: Delta/Greely
A158: Delta/Greely | B158: Delta Junction Jr High School (6-8) | C158: 59.15 | D158: 104.9 | E158: =IF((C158+D158=0),"",C158+D158) -> 164.05 | F158: Delta Junction | H158: Gerstle River | I158: =SUMIF($F$3:$F$522,H158,$C$3:$C$522) -> 20 | J158: =SUMIF($F$3:$F$522,H158,$D$3:$D$522) -> 10 | K158: =SUM(I158:J158) -> 30 | L158: Delta/Greely
A159: Delta/Greely | B159: Delta Junction Sr High School (9-12) | C159: 0 | D159: 163.3 | E159: =IF((C159+D159=0),"",C159+D159) -> 163.3 | F159: Delta Junction | I159: =SUMIF($F$3:$F$522,H159,$C$3:$C$522) -> 0 | J159: =SUMIF($F$3:$F$522,H159,$D$3:$D$522) -> 0 | K159: =SUM(I159:J159) -> 0 | L159: Delta/Greely
A160: Delta/Greely | B160: Gerstle River School | C160: 20 | D160: 10 | E160: =IF((C160+D160=0),"",C160+D160) -> 30 | F160: Gerstle River | I160: =SUMIF($F$3:$F$522,H160,$C$3:$C$522) -> 0 | J160: =SUMIF($F$3:$F$522,H160,$D$3:$D$522) -> 0 | K160: =SUM(I160:J160) -> 0 | L160: Delta/Greely
A161: Delta/Greely | B161: TOTAL | C161: =SUM(C157:C160) -> 426 | D161: =SUM(D157:D160) -> 278.2 | E161: =SUM(E157:E160) -> 704.2 | K161: =SUM(K157:K160) -> 704.2
A162: Denali | B162: Anderson School | C162: 7 | D162: 11.25 | E162: =IF((C162+D162=0),"",C162+D162) -> 18.25 | F162: Anderson | H162: Anderson | I162: =SUMIF($F$3:$F$522,H162,$C$3:$C$522) -> 7 | J162: =SUMIF($F$3:$F$522,H162,$D$3:$D$522) -> 11.25 | K162: 18.25 | L162: Denali
A163: Denali | B163: Cantwell School | C163: 4 | D163: 4 | E163: =IF((C163+D163=0),"",C163+D163) -> 8 | F163: Cantwell | H163: Cantwell | I163: =SUMIF($F$3:$F$522,H163,$C$3:$C$522) -> 4 | J163: =SUMIF($F$3:$F$522,H163,$D$3:$D$522) -> 4 | K163: 8 | L163: Denali
A164: Denali | B164: Tri-Valley School | C164: 88 | D164: 62.75 | E164: =IF((C164+D164=0),"",C164+D164) -> 150.75 | F164: Healy | H164: Healy | I164: =SUMIF($F$3:$F$522,H164,$C$3:$C$522) -> 88 | J164: =SUMIF($F$3:$F$522,H164,$D$3:$D$522) -> 62.75 | K164: 150.75 | L164: Denali
A165: Denali | B165: TOTAL | C165: =SUM(C162:C164) -> 99 | D165: =SUM(D162:D164) -> 78 | E165: =SUM(E162:E164) -> 177 | K165: =SUM(K162:K164) -> 177
A166: Dillingham | B166: Dillingham Elementary | C166: 197.7 | D166: 0 | E166: =IF((C166+D166=0),"",C166+D166) -> 197.7 | F166: Dillingham | H166: Dillingham | I166: =SUMIF($F$3:$F$522,H166,$C$3:$C$522) -> 234.95 | J166: =SUMIF($F$3:$F$522,H166,$D$3:$D$522) -> 172.9 | K166: =SUM(I166:J166) -> 407.85 | L166: Dillingham
A167: Dillingham | B167: Dillingham Middle & High School | C167: 37.25 | D167: 172.9 | E167: =IF((C167+D167=0),"",C167+D167) -> 210.15 | F167: Dillingham | I167: =SUMIF($F$3:$F$522,H167,$C$3:$C$522) -> 0 | J167: =SUMIF($F$3:$F$522,H167,$D$3:$D$522) -> 0 | K167: 0 | L167: Dillingham
A168: Dillingham | B168: TOTAL | C168: =SUM(C166:C167) -> 234.95 | D168: =SUM(D166:D167) -> 172.9 | E168: =SUM(E166:E167) -> 407.85 | K168: =SUM(K166:K167) -> 407.85
A169: Fairbanks | B169: Anderson Elementary School - closed | C169: 0 | D169: 0 | E169: =IF((C169+D169=0),"",C169+D169) ->  | F169: Closed | H169: Fairbanks | I169: =SUMIF($F$3:$F$522,H169,$C$3:$C$522) -> 3848.66 | J169: =SUMIF($F$3:$F$522,H169,$D$3:$D$522) -> 3367.45 | K169: 7216.11 | L169: Fairbanks
A170: Fairbanks | B170: Anne Wien Elementary School | C170: 375.96 | D170: 0 | E170: 375.96 | F170: Fairbanks | H170: North Pole | I170: 1241.56 | J170: 966.36 | K170: 2207.92 | L170: Fairbanks
A171: Fairbanks | B171: Arctic Light Elementary School | C171: 464.53 | D171: 0 | E171: 464.53 | F171: Ft. Wainwright | H171: Salcha | I171: 66.4 | J171: 0 | K171: 66.4 | L171: Fairbanks
A172: Fairbanks | B172: Barnette Elementary School | C172: 341.25 | D172: 82 | E172: 423.25 | F172: Fairbanks | H172: Two Rivers | I172: 55.95 | J172: 9.5 | K172: 65.45 | L172: Fairbanks
A173: Fairbanks | B173: Ben Eielson Jr/Sr High School | C173: 73.85 | D173: 335.7 | E173: 409.55 | F173: Eielson | H173: Eielson | I173: 525.82 | J173: 335.7 | K173: 861.52 | L173: Fairbanks
A174: Fairbanks | B174: Boreal Sun Charter School | C174: 163.7 | D174: 32.5 | E174: 196.2 | F174: None | H174: Ft. Wainwright | I174: 464.53 | J174: 0 | K174: 464.53 | L174: Fairbanks
A175: Fairbanks | B175: Chinook Montessori Charter School | C175: 113 | D175: 42 | E175: =IF((C175+D175=0),"",C175+D175) -> 155 | F175: None | I175: 0 | J175: 0 | K175: 0 | L175: Fairbanks
A176: Fairbanks | B176: Crawford Elementary School | C176: 451.97 | D176: 0 | E176: 451.97 | F176: Eielson | I176: 0 | J176: 0 | K176: 0 | L176: Fairbanks
A177: Fairbanks | B177: Denali Elementary School | C177: 291 | D177: 0 | E177: 291 | F177: Fairbanks | I177: 0 | J177: 0 | K177: 0 | L177: Fairbanks
A178: Fairbanks | B178: Hunter Elementary School | C178: 363.56 | D178: 0 | E178: 363.56 | F178: Fairbanks | I178: 0 | J178: 0 | K178: 0 | L178: Fairbanks
A179: Fairbanks | B179: Hutchison High School | C179: 0 | D179: 372.7 | E179: =IF((C179+D179=0),"",C179+D179) -> 372.7 | F179: Fairbanks | I179: 0 | J179: 0 | K179: 0 | L179: Fairbanks
A180: Fairbanks | B180: Joy Elementary School - closed | C180: 0 | D180: 0 | F180: Closed | I180: 0 | J180: 0 | K180: 0 | L180: Fairbanks
A181: Fairbanks | B181: Ladd Elementary School | C181: 408.51 | D181: 23.25 | E181: 431.76 | F181: Fairbanks | I181: 0 | J181: 0 | K181: 0 | L181: Fairbanks
A182: Fairbanks | B182: Lathrop High School | C182: 0 | D182: 878.65 | E182: 878.65 | F182: Fairbanks | I182: 0 | J182: 0 | K182: 0 | L182: Fairbanks
A183: Fairbanks | B183: Midnight Sun Elementary School | C183: 332.89 | D183: 0 | E183: =IF((C183+D183=0),"",C183+D183) -> 332.89 | F183: North Pole | I183: 0 | J183: 0 | K183: =SUM(I183:J183) -> 0 | L183: Fairbanks
A184: Fairbanks | B184: Nordale Elementary School - closed | C184: 0 | D184: 0 | F184: Closed | I184: 0 | J184: 0 | K184: 0 | L184: Fairbanks
A185: Fairbanks | B185: North Pole Elementary School | C185: 343.61 | D185: 0 | E185: 343.61 | F185: North Pole | I185: 0 | J185: 0 | K185: 0 | L185: Fairbanks
A186: Fairbanks | B186: North Pole High School | C186: 0 | D186: =616.06-0.75 -> 615.31 | E186: 615.31 | F186: North Pole | I186: 0 | J186: 0 | K186: 0 | L186: Fairbanks
A187: Fairbanks | B187: North Pole Middle School | C187: 173.7 | D187: 351.05 | E187: 524.75 | F187: North Pole | I187: 0 | J187: 0 | K187: 0 | L187: Fairbanks
A188: Fairbanks | B188: Pearl Creek Elementary School | C188: 404.45 | D188: 0 | E188: 404.45 | F188: Fairbanks | I188: 0 | J188: 0 | K188: 0 | L188: Fairbanks
A189: Fairbanks | B189: Randy Smith Middle School | C189: 133.5 | D189: =271.7-0.15 -> 271.55 | E189: 405.05 | F189: Fairbanks | I189: 0 | J189: 0 | K189: 0 | L189: Fairbanks
A190: Fairbanks | B190: Ryan Middle School | C190: 182.25 | D190: =357.6-0.15 -> 357.45 | E190: 539.7 | F190: Fairbanks | I190: 0 | J190: 0 | K190: 0 | L190: Fairbanks
A191: Fairbanks | B191: Salcha Elementary School | C191: 66.4 | D191: 0 | E191: 66.4 | F191: Salcha | I191: 0 | J191: 0 | K191: 0 | L191: Fairbanks
A192: Fairbanks | B192: Tanana Middle School | C192: 195.95 | D192: =343.55-0.1 -> 343.45 | E192: 539.4 | F192: Fairbanks | I192: 0 | J192: 0 | K192: 0 | L192: Fairbanks
A193: Fairbanks | B193: Ticasuk Brown Elementary School | C193: 391.36 | D193: 0 | E193: 391.36 | F193: North Pole | I193: 0 | J193: 0 | K193: 0 | L193: Fairbanks
A194: Fairbanks | B194: Two Rivers Elementary School | C194: =56.7-0.75 -> 55.95 | D194: 9.5 | E194: 65.45 | F194: Two Rivers | I194: 0 | J194: 0 | K194: 0 | L194: Fairbanks
A195: Fairbanks | B195: University Park Elementary School | C195: =350.43-0.1 -> 350.33 | D195: 0 | E195: 350.33 | F195: Fairbanks | I195: 0 | J195: 0 | K195: 0 | L195: Fairbanks
A196: Fairbanks | B196: Weller Elementary School | C196: 461.55 | D196: 0 | E196: 461.55 | F196: Fairbanks | I196: 0 | J196: 0 | K196: 0 | L196: Fairbanks
A197: Fairbanks | B197: West Valley High School | C197: 0 | D197: =905.65-0.05 -> 905.6 | E197: 905.6 | F197: Fairbanks | I197: 0 | J197: 0 | K197: 0 | L197: Fairbanks
A198: Fairbanks | B198: Woodriver Elementary School | C198: 340.35 | D198: 0 | E198: 340.35 | F198: Fairbanks | I198: 0 | J198: 0 | K198: 0 | L198: Fairbanks
A199: Fairbanks | B199: Discovery Peak Charter School | C199: 151.45 | D199: 42 | E199: =IF((C199+D199=0),"",C199+D199) -> 193.45 | F199: None | I199: 0 | J199: 0 | K199: =SUM(I199:J199) -> 0 | L199: Fairbanks
A200: Fairbanks | B200: Effie Kokrine Charter School | C200: 0 | D200: =134.5-1.7 -> 132.8 | E200: 132.8 | F200: Fairbanks | I200: 0 | J200: 0 | K200: 0 | L200: Fairbanks
... 324 more rows

Sheet Historical ADM by Area
A1: ADM by Fiscal Year | C1: 1 | D1: 2 | E1: 3 | F1: 4 | G1: 5 | H1: 6 | I1: 7 | J1: 8 | K1: 9 | L1: 10 | M1: 11 | N1: 12 | O1: 13 | P1: 14 | Q1: 15 | R1: 16 | S1: 17 | T1: 18 | U1: 19 | V1: 20 | W1: 21 | X1: 22 | Y1: 23 | Z1: 24 | AA1: 25 | AB1: 26 | AC1: 27 | AD1: 28 | AE1: 29 | AF1: 30 | AG1: 31 | AH1: 32 | AI1: 33 | AJ1: 34
A2: Type | B2: School District | C2: Attendance Area | D2: 91 ADM | E2: 92 ADM | F2: 93 ADM | G2: 94 ADM | H2: 95 ADM | I2: 96 ADM | J2: 97 ADM | K2: 98 ADM | L2: 99 ADM | M2: 2000 ADM | N2: 2001 ADM | O2: 2002 ADM | P2: 2003 ADM | Q2: 2004 ADM | R2: 2005 ADM | S2: 2006 ADM | T2: 2007 ADM | U2: 2008 ADM | V2: 2009 ADM | W2: 2010 ADM | X2: 2011 ADM | Y2: 2012 ADM | Z2: 2013 ADM | AA2: 2014 ADM | AB2: 2015 ADM | AC2: 2016 ADM | AD2: 2017 ADM | AE2: 2018 ADM | AF2: 2019 ADM | AG2: 2020 ADM | AH2: 2021 ADM | AI2: 2022 ADM | AJ2: 2023 ADM | AK2: % ADM change from Prev. Yr | AL2: 8-Yr Avg Annual ADM Change
A3: REAA | B3: ALASKA GATEWAY | C3: ALCAN BORDER | E3: 10 | F3: 7 | G3: 8 | H3: 7 | I3: 9 | J3: 7 | K3: 0 | L3: closed | M3: closed | N3: closed | O3: closed | P3: closed | Q3: closed | R3: closed | S3: closed | T3: closed | U3: closed | V3: closed | W3: closed | X3: closed | Y3: closed | Z3: closed | AA3: closed | AB3: closed | AC3: closed | AD3: closed | AE3: closed | AF3: closed | AG3: closed | AH3: closed | AI3: closed | AJ3: closed | AK3: n/a | AL3: =IFERROR(((AG3-AE3)/AE3+(AE3-AD3)/AD3+(AD3-AC3)/AC3+(AC3-AB3)/AB3+(AB3-AA3)/AA3+(AA3-Z3)/Z3+(Z3-Y3)/Y3+(Y3-X3)/X3)/8,"n/a") -> n/a
A4: REAA | B4: ALASKA GATEWAY | C4: DOT LAKE | D4: 18 | E4: 16.05 | F4: 20 | G4: 21.3 | H4: 24 | I4: 26.7 | J4: 27.75 | K4: 15 | L4: 17.65 | M4: 10.5 | N4: 13.15 | O4: 17.06 | P4: 15.25 | Q4: 17.3 | R4: 16.5 | S4: 12.05 | T4: 20.25 | U4: 10.5 | V4: 10.9 | W4: 15.75 | X4: 13.75 | Y4: 10 | Z4: 10 | AA4: 10 | AB4: 11 | AC4: 14 | AD4: 12.7 | AE4: 10 | AF4: 10.8 | AG4: 10 | AH4: 14.25 | AI4: 8 | AJ4: 14 | AK4: =IFERROR((AJ4-AI4)/AI4,"n/a") -> 0.75 | AL4: =IFERROR(((AJ4-AI4)/AI4+(AI4-AH4)/AH4+(AH4-AG4)/AG4+(AG4-AF4)/AF4+(AF4-AE4)/AE4+(AE4-AD4)/AD4+(AD4-AC4)/AC4+(AC4-AB4)/AB4)/8,"n/a") -> 0.08870014242
A5: REAA | B5: ALASKA GATEWAY | C5: EAGLE | D5: 39 | E5: 31.25 | F5: 26 | G5: 37 | H5: 23.9 | I5: 19 | J5: 27 | K5: 23 | L5: 24.3 | M5: 32.5 | N5: 22.25 | O5: 22.55 | P5: 18.85 | Q5: 24.4 | R5: 26 | S5: 22 | T5: 22.7 | U5: 24.5 | V5: 16.16 | W5: 25.8 | X5: 12.05 | Y5: 15.25 | Z5: 16 | AA5: 26 | AB5: 16.75 | AC5: 13.5 | AD5: 14.25 | AE5: 26.1 | AF5: 22.85 | AG5: 14.4 | AH5: 20 | AI5: 12 | AJ5: 10.55 | AK5: -0.1208333333 | AL5: =IFERROR(((AJ5-AI5)/AI5+(AI5-AH5)/AH5+(AH5-AG5)/AG5+(AG5-AF5)/AF5+(AF5-AE5)/AE5+(AE5-AD5)/AD5+(AD5-AC5)/AC5+(AC5-AB5)/AB5)/8,"n/a") -> 0.008354508935
A6: REAA | B6: ALASKA GATEWAY | C6: MENTASTA LAKE | D6: 21 | E6: 19.4 | F6: 33.95 | G6: 33.5 | H6: 25.35 | I6: 33.3 | J6: 43 | K6: 39.9 | L6: 45.5 | M6: 30.7 | N6: 33.45 | O6: 37.5 | P6: 37.75 | Q6: 34 | R6: 31 | S6: 24.25 | T6: 19 | U6: 11.89 | V6: 13.75 | W6: 13.25 | X6: 34.4 | Y6: 34 | Z6: 32 | AA6: 33.15 | AB6: 30.25 | AC6: 31.25 | AD6: 34.75 | AE6: 31.25 | AF6: 31 | AG6: 29.9 | AH6: 28.5 | AI6: 30 | AJ6: 33 | AK6: 0.1 | AL6: 0.01333292404
A7: REAA | B7: ALASKA GATEWAY | C7: NORTHWAY | D7: 99 | E7: 85.45 | F7: 79.6 | G7: 87 | H7: 83.3 | I7: 85.25 | J7: 85.4 | K7: 92 | L7: 84.5 | M7: 76.3 | N7: 74 | O7: 66.9 | P7: 65.1 | Q7: 65.7 | R7: 67.3 | S7: 57.6 | T7: 56 | U7: 46.5 | V7: 48.5 | W7: 44 | X7: 41.9 | Y7: 41.9 | Z7: 41.15 | AA7: 45.3 | AB7: 42.25 | AC7: 47.85 | AD7: 48.3 | AE7: 47 | AF7: 53.5 | AG7: 49 | AH7: 52.9 | AI7: 51.85 | AJ7: 57 | AK7: 0.09932497589 | AL7: 0.04103592721
A8: REAA | B8: ALASKA GATEWAY | C8: TANACROSS | D8: 19 | E8: 17 | F8: 11.25 | G8: 20.2 | H8: 16.25 | I8: 14.8 | J8: 17 | K8: 20 | L8: 15 | M8: 22.35 | N8: 16 | O8: 12.5 | P8: 10.25 | Q8: 12.9 | R8: 11 | S8: 13.45 | T8: 24 | U8: 26 | V8: 10.75 | W8: 12.15 | X8: 10.35 | Y8: 13.65 | Z8: 11.45 | AA8: 12.35 | AB8: 12.05 | AC8: 10.8 | AD8: 12 | AE8: 11.8 | AF8: 15.25 | AG8: 12.45 | AH8: 14.25 | AI8: 11 | AJ8: 10 | AK8: -0.09090909091 | AL8: -0.009365578063
A9: REAA | B9: ALASKA GATEWAY | C9: TETLIN | D9: 23 | E9: 25.5 | F9: 34.1 | G9: 34 | H9: 30.95 | I9: 31 | J9: 36.4 | K9: 33 | L9: 31 | M9: 32 | N9: 27 | O9: 26.15 | P9: 27 | Q9: 33.2 | R9: 27.2 | S9: 31.25 | T9: 25.8 | U9: 24.25 | V9: 27 | W9: 16.6 | X9: 26 | Y9: 29 | Z9: 27.55 | AA9: 35.6 | AB9: 27.15 | AC9: 26.25 | AD9: 27.9 | AE9: 23 | AF9: 33.5 | AG9: 38 | AH9: 39 | AI9: 44.2 | AJ9: 37 | AK9: -0.1628959276 | AL9: 0.055210503
A10: REAA | B10: ALASKA GATEWAY | C10: TOK | D10: 264 | E10: 290.8 | F10: 300.15 | G10: 284.55 | H10: 325.4 | I10: 316.8 | J10: 329.1 | K10: 291.45 | L10: 249.99 | M10: 231.9 | N10: 250.45 | O10: 265.35 | P10: 255.4 | Q10: 251.21 | R10: 224.25 | S10: 199.1 | T10: 206.35 | U10: 193.85 | V10: 200.06 | W10: 197 | X10: 196.85 | Y10: 178.4 | Z10: 167.55 | AA10: 150.15 | AB10: 165.25 | AC10: 161.25 | AD10: 162.05 | AE10: 197.4 | AF10: 173.45 | AG10: 175.2 | AH10: 164 | AI10: 167.45 | AJ10: 178.6 | AK10: 0.06658704091 | AL10: 0.01391960429
A11: REAA | B11: ALASKA GATEWAY | C11: TOTAL | D11: =SUM(D3:D10) -> 483 | E11: 495.45 | F11: 512.05 | G11: 525.55 | H11: 536.15 | I11: 535.85 | J11: 572.65 | K11: 514.35 | L11: 467.94 | M11: 436.25 | N11: 436.3 | O11: 448.01 | P11: 429.6 | Q11: 438.71 | R11: 403.25 | S11: 359.7 | T11: 374.1 | U11: =SUM(U3:U10) -> 337.49 | V11: =SUM(V3:V10) -> 327.12 | W11: 324.55 | X11: 335.3 | Y11: 322.2 | Z11: 305.7 | AA11: 312.55 | AB11: 304.7 | AC11: 304.9 | AD11: 311.95 | AE11: 346.55 | AF11: =SUM(AF3:AF10) -> 340.35 | AG11: =SUM(AG3:AG10) -> 328.95 | AH11: 332.9 | AI11: =SUM(AI3:AI10) -> 324.5 | AJ11: 340.15 | AK11: 0.04822804314 | AL11: 0.01478893822
A12: REAA | B12: ALEUTIAN REGION | C12: ATKA | D12: 26 | E12: 19 | F12: 18 | G12: 16 | H12: 18 | I12: 21 | J12: 23 | K12: 24.45 | L12: 13 | M12: 20 | N12: 19.25 | O12: 21 | P12: 19 | Q12: 16.1 | R12: 17.75 | S12: 15 | T12: 13 | U12: 13 | V12: 14 | W12: 15 | X12: 10 | Y12: 10 | Z12: 10.3 | AA12: 14 | AB12: 12 | AC12: 14 | AD12: 10 | AE12: 12 | AF12: 6 | AG12: 10 | AH12: 10 | AI12: 10 | AJ12: 11.25 | AK12: 0.125 | AL12: 0.04657738095
A13: REAA | B13: ALEUTIAN REGION | C13: NIKOLSKI | D13: 7 | E13: 9 | F13: 5 | J13: 11 | K13: 12 | L13: 19 | M13: 11 | N13: 15 | O13: 10.75 | P13: 13.5 | Q13: 11 | R13: 10 | S13: 10 | T13: 10 | U13: 10.45 | V13: 9.8 | W13: closed | X13: closed | Y13: closed | Z13: closed | AA13: closed | AB13: closed | AC13: closed | AD13: closed | AE13: closed | AF13: closed | AG13: closed | AH13: closed | AI13: closed | AJ13: closed | AK13: n/a | AL13: n/a
A14: REAA | B14: ALEUTIAN REGION | C14: ADAK | D14: 712 | E14: 714.45 | F14: 681.35 | G14: 495.2 | H14: 0 | I14: 0 | J14: 0 | K14: 0 | L14: 14.7 | M14: 44.15 | N14: 25.15 | O14: 23 | P14: 16.75 | Q14: 14.75 | R14: 18.25 | S14: 19 | T14: 19 | U14: 14 | V14: 13.2 | W14: 22 | X14: 20.65 | Y14: 21 | Z14: 15 | AA14: 19 | AB14: 25 | AC14: 20.7 | AD14: 14.5 | AE14: 14.55 | AF14: 12.05 | AG14: 18 | AH14: 14.95 | AI14: 12.48 | AJ14: 5 | AK14: -0.5993589744 | AL14: -0.1350168518
A15: REAA | B15: ALEUTIAN REGION | C15: TOTAL | D15: =SUM(D12:D14) -> 745 | E15: 742.45 | F15: 704.35 | G15: 511.2 | H15: 18 | I15: 21 | J15: 34 | K15: 36.45 | L15: 46.7 | M15: 75.15 | N15: 59.4 | O15: 54.75 | P15: 49.25 | Q15: 41.85 | R15: 46 | S15: 44 | T15: 42 | U15: =SUM(U12:U14) -> 37.45 | V15: =SUM(V12:V14) -> 37 | W15: 37 | X15: 30.65 | Y15: 31 | Z15: 25.3 | AA15: 33 | AB15: 37 | AC15: 34.7 | AD15: 24.5 | AE15: 26.55 | AF15: =SUM(AF12:AF14) -> 18.05 | AG15: =SUM(AG12:AG14) -> 28 | AH15: 24.95 | AI15: =SUM(AI12:AI14) -> 22.48 | AJ15: 16.25 | AK15: -0.2771352313 | AL15: -0.06580034251
A16: C/B | B16: ALEUTIAN EAST | C16: AKUTAN | D16: 21.55 | E16: 25 | F16: 30 | G16: 20 | H16: 24 | I16: 20 | J16: 27 | K16: 23 | L16: 19.55 | M16: 15 | N16: 15 | O16: 15.75 | P16: 17.75 | Q16: 12.5 | R16: 14.35 | S16: 10.75 | T16: 10.75 | U16: 13.75 | V16: 7 | W16: 10.25 | X16: 8 | Y16: 8 | Z16: 14 | AA16: 13 | AB16: 17 | AC16: 16 | AD16: 10 | AE16: 12 | AF16: 18 | AG16: 20 | AH16: 17 | AI16: 19.5 | AJ16: 20 | AK16: 0.02564102564 | AL16: 0.04999842886
A17: C/B | B17: ALEUTIAN EAST | C17: COLD BAY | D17: 25 | E17: 18 | F17: 24 | G17: 17 | H17: 22 | I17: 22 | J17: 18 | K17: 20 | L17: 14.3 | M17: 17 | N17: 23 | O17: 10.5 | P17: 12 | Q17: 15 | R17: 13.75 | S17: 10 | T17: 10 | U17: 10.5 | V17: 12 | W17: 11.25 | X17: 13 | Y17: 10 | Z17: 8.5 | AA17: 11 | AB17: 4.75 | AC17: closed | AD17: closed | AE17: closed | AF17: closed | AG17: closed | AH17: closed | AI17: closed | AJ17: closed | AK17: n/a | AL17: n/a
A18: C/B | B18: ALEUTIAN EAST | C18: FALSE PASS | D18: 16 | E18: 20 | F18: 17 | G18: 21 | H18: 27 | I18: 25 | J18: 21 | K18: 11.4 | L18: 7.2 | M18: 16 | N18: 14.5 | O18: 16 | P18: 12.4 | Q18: 12 | R18: 10.7 | S18: 11 | T18: 4.75 | U18: 5.3 | V18: 11 | W18: 4.75 | X18: 7.5 | Y18: 7 | Z18: 10 | AA18: 6 | AB18: 15 | AC18: 10.5 | AD18: 11 | AE18: 6 | AF18: 7 | AG18: 6 | AH18: 10 | AI18: 11 | AJ18: 9 | AK18: -0.1818181818 | AL18: -0.01228354978
A19: C/B | B19: ALEUTIAN EAST | C19: KING COVE | D19: 147.65 | E19: 150 | F19: 165 | G19: 159 | H19: 154 | I19: 139 | J19: 143 | K19: 142.35 | L19: 128.8 | M19: 111.9 | N19: 123.75 | O19: 119 | P19: 105.6 | Q19: 104.66 | R19: 102.25 | S19: 92.8 | T19: 89.8 | U19: 99.5 | V19: 101.25 | W19: 97.35 | X19: 99.35 | Y19: 89.75 | Z19: 96.5 | AA19: 87 | AB19: 77.65 | AC19: 93.65 | AD19: 84.1 | AE19: 83 | AF19: 83.45 | AG19: 82.65 | AH19: 75.25 | AI19: 68.05 | AJ19: 77 | AK19: 0.1315209405 | AL19: 0.004142312317
A20: C/B | B20: ALEUTIAN EAST | C20: NELSON LAGOON | D20: 12 | E20: 12 | F20: 12 | G20: 11 | H20: 10 | I20: 13 | J20: 13 | K20: 14.2 | L20: 14 | M20: 15 | N20: 16 | O20: 16 | P20: 11 | Q20: 13 | R20: 15 | S20: 17.75 | T20: 17 | U20: 17 | V20: 12 | W20: 8 | X20: 6.25 | Y20: 10.9 | Z20: closed | AA20: closed | AB20: closed | AC20: closed | AD20: closed | AE20: closed | AF20: closed | AG20: closed | AH20: closed | AI20: closed | AJ20: closed | AK20: n/a | AL20: n/a
A21: C/B | B21: ALEUTIAN EAST | C21: SAND POINT | D21: 148.8 | E21: 145 | F21: 143 | G21: 141 | H21: 128 | I21: 136 | J21: 150 | K21: 130.4 | L21: 126.5 | M21: 124.65 | N21: 115.5 | O21: 113.5 | P21: 114 | Q21: 120.33 | R21: 112.5 | S21: 104.1 | T21: 100.7 | U21: 110.45 | V21: 105.5 | W21: 105.7 | X21: 110.9 | Y21: 101 | Z21: 102 | AA21: 95.7 | AB21: 104 | AC21: 100.75 | AD21: 109.85 | AE21: 106 | AF21: 104.85 | AG21: 112.25 | AH21: 104 | AI21: 90.3 | AJ21: 91 | AK21: 0.007751937984 | AL21: -0.01421534301
A22: C/B | B22: ALEUTIAN EAST | C22: TOTAL | D22: =SUM(D16:D21) -> 371 | E22: 370 | F22: 391 | G22: 369 | H22: 365 | I22: 355 | J22: 372 | K22: 341.35 | L22: 310.35 | M22: 299.55 | N22: 307.75 | O22: 290.75 | P22: 272.75 | Q22: 277.49 | R22: 268.55 | S22: 246.4 | T22: 233 | U22: =SUM(U16:U21) -> 256.5 | V22: =SUM(V16:V21) -> 248.75 | W22: 237.3 | X22: 245 | Y22: 226.65 | Z22: 231 | AA22: 212.7 | AB22: 218.4 | AC22: 220.9 | AD22: 214.95 | AE22: 207 | AF22: =SUM(AF16:AF21) -> 213.3 | AG22: =SUM(AG16:AG21) -> 220.9 | AH22: 206.25 | AI22: =SUM(AI16:AI21) -> 188.85 | AJ22: 197 | AK22: 0.04315594387 | AL22: -0.01174195851
A23: C/B | B23: ANCHORAGE | C23: ANCHORAGE | D23: =34276.5+D24 -> 39730 | E23: =37237.95+E24 -> 42927.25 | F23: =38611.45+F24 -> 44519.3 | G23: =39420.46+G24 -> 45490.61 | H23: =39465.23+H24 -> 45726.1 | I23: =39715.03+I24 -> 45998.46 | J23: =40043.05+J24 -> 46289.85 | K23: =23272.2+17452.31+K24 -> 47134.19 | L23: =554.1+335.55+509.57+445.47+567.1+479.07+553.6+493.8+350.1+565.65+235.8+461.7+360.85+478.85+414.7+491.69+415.55+475.2+241.26+601.69+270.65+477.32+525.55+454.77+508.7+438.6+264.25+399.3+520.07+375.82+386.49+380.17+452.9+0+373.05+432.35+562.62+383.75+542.67+527.2+511.52+512.7+332.8+396.12+401.8+291.7+426.85+557.45+501.44+514.75+428.22+47.65+525.72+810.4+777.35+873.3+914.75+972.15+779.65+961+2140.4+1974.35+2275.3+1646+1892.35+301.15+280.22+7.69+171.6+234.97+233.05+260.15+L24-L27-L28 -> 44877.42 | M23: =40066.61+M24-M27-M28 -> 44685.09 | N23: =40698.82+N24-N27-N28 -> 45171.16 | O23: =39894.72+O24 -> 45931.07 | P23: =40102.42+P24 -> 46163.08 | Q23: 45668.68 | R23: 46494.17 | S23: 45642.93 | T23: =480.7+312.65+466.5+402.1+556.8+453.85+300.6+468.7+403+272.43+495.25+255.2+512.35+348.2+394.45+353.6+351.2+386.25+295.65+459.35+362.9+373.4+201.1+491+366.1+516.2+427.5+370.5+369.7+408.2+409+603.8+282.35+281.1+512.35+307.25+415.85+367.85+439.45+581.5+368+646.4+430.05+363.85+563.8+443.7+477.5+579+369.38+418.5+362.4+401.5+378.4+513.35+531.9+799.75+887+604.2+899.7+1054.2+698.3+789.6+837.55+1717.6+1412.25+1847.1+827.05+2170.39+1926.45+1727.4+1877.7+43.85+351.1+266.35+475.8+295.65+160.25+29.65+16+164+450.2+241.75+64.65+180+206.15 -> 45925.3 | U23: 44304.8 | V23: 44068.51 | W23: 44702.2 | X23: 44204.21 | Y23: 44025.1 | Z23: 44018.73 | AA23: 43131.75 | AB23: 43162.36 | AC23: 43286.31 | AD23: 43045.59 | AE23: 42167.96 | AF23: 41082.46 | AG23: 40745.47 | AH23: 35454.53 | AI23: 37721.54 | AJ23: 37906.28 | AK23: 0.004897467071 | AL23: -0.01475468691
A24: C/B | B24: ANCHORAGE | C24: EAGLE RIVER | D24: 5453.5 | E24: 5689.3 | F24: 5907.85 | G24: 6070.15 | H24: 6260.87 | I24: 6283.43 | J24: 6246.8 | K24: =3282.64+3127.04 -> 6409.68 | L24: =2066+606.15+481.7+191.5+372+530.22+361.6+30+515.7+359.67+462.3+376.47 -> 6353.31 | M24: 6316.6 | N24: 6201.55 | O24: 6036.35 | P24: 6060.66 | Q24: anchorage | R24: anchorage | S24: anchorage | T24: anchorage | U24: anchorage | V24: anchorage | W24: anchorage | X24: anchorage | Y24: anchorage | Z24: anchorage | AA24: anchorage | AB24: anchorage | AC24: anchorage | AD24: anchorage | AE24: anchorage | AF24: anchorage | AG24: anchorage | AH24: anchorage | AI24: anchorage | AJ24: anchorage | AK24: n/a | AL24: n/a
A25: C/B | B25: ANCHORAGE | C25: GIRDWOOD | D25: 125 | E25: 131.65 | F25: 140.13 | G25: 154.75 | H25: 169.5 | I25: 160.3 | J25: 135.55 | K25: 141.57 | L25: 153.17 | M25: 147.5 | N25: 157.58 | O25: 144.5 | P25: 164.25 | Q25: 172.75 | R25: 167.05 | S25: 160.8 | T25: 144.3 | U25: 153 | V25: 163.95 | W25: 160.95 | X25: 163.4 | Y25: 179.95 | Z25: 180.75 | AA25: 184.75 | AB25: 191.65 | AC25: 192.9 | AD25: 190.75 | AE25: 193.69 | AF25: 182.95 | AG25: 198.96 | AH25: 143.1 | AI25: 171.4 | AJ25: 180.35 | AK25: 0.05221703617 | AL25: 0.001508898019
A26: C/B | B26: ANCHORAGE | C26: SCHOOL FOR THE DEAF | J26: 45 | K26: 40 | L26: 40 | M26: 44 | N26: 52.83 | O26: 51.5 | P26: 54.85 | Q26: 53 | R26: 60.1 | S26: 53.45 | T26: 54.5 | U26: 49.9 | V26: 44.05 | W26: 42.2 | X26: 41.43 | Y26: 37.7 | Z26: 35.87 | AA26: 35.05 | AB26: 39.99 | AC26: 37 | AD26: 32.04 | AE26: 34.12 | AF26: 26 | AG26: 30 | AH26: 20.95 | AI26: 30.4 | AJ26: 30 | AK26: -0.01315789474 | AL26: -0.011473988
A27: C/B | B27: ANCHORAGE | C27: ELMENDORF | J27: 773.82 | K27: 773.82 | L27: 773.82 | M27: 1106.47 | N27: 1055.01 | O27: 1050.5 | P27: 1035.95 | Q27: 1096.77 | R27: 1066.12 | S27: 1034.03 | T27: =386.35+299.65+380.88 -> 1066.88 | U27: 1036.4 | V27: 1149.1 | W27: 1137.99 | X27: JBER | Y27: JBER | Z27: JBER | AA27: JBER | AB27: JBER | AC27: JBER | AD27: JBER | AE27: JBER | AF27: JBER | AG27: JBER | AH27: JBER | AI27: JBER | AJ27: JBER | AK27: n/a | AL27: n/a
A28: C/B | B28: ANCHORAGE | C28: FORT RICHARDSON | J28: 964.15 | K28: 964.15 | L28: 964.15 | M28: 591.65 | N28: 674.2 | O28: 722.28 | P28: 667.07 | Q28: 598.15 | R28: 647.05 | S28: 686.85 | T28: =376.8+282.9 -> 659.7 | U28: 641.7 | V28: 627.35 | W28: 748.1 | X28: JBER | Y28: JBER | Z28: JBER | AA28: JBER | AB28: JBER | AC28: JBER | AD28: JBER | AE28: JBER | AF28: JBER | AG28: JBER | AH28: JBER | AI28: JBER | AJ28: JBER | AK28: n/a | AL28: n/a
A29: C/B | B29: ANCHORAGE | C29: JBER | K29: =K27+K28 -> 1737.97 | L29: 1737.97 | M29: 1698.12 | N29: 1729.21 | O29: 1772.78 | P29: 1703.02 | Q29: 1694.92 | R29: 1713.17 | S29: 1720.88 | T29: 1726.58 | U29: 1678.1 | V29: 1776.45 | W29: 1886.09 | X29: 1912.66 | Y29: 1826.48 | Z29: 1880.96 | AA29: 1867.42 | AB29: 1635.46 | AC29: 1641.61 | AD29: 1584.99 | AE29: 1500.71 | AF29: 1438.92 | AG29: 1349.44 | AH29: 975.45 | AI29: 1237.44 | AJ29: 1278.93 | AK29: 0.03352889837 | AL29: -0.02028691182
A30: C/B | B30: ANCHORAGE | C30: TOTAL | D30: =SUM(D23:D29) -> 45308.5 | E30: 48748.2 | F30: 50567.28 | G30: 51715.51 | H30: =SUM(H23:H29)-H26 -> 52156.47 | I30: 52442.19 | J30: 54410.17 | K30: 57161.38 | L30: 54859.84 | M30: 54545.43 | N30: 54988.71 | O30: 55657.48 | P30: 55794.03 | Q30: 49231.27 | R30: 50087.56 | S30: 49245.49 | T30: 49522.76 | U30: 47814 | V30: 47785.36 | W30: 48635.33 | X30: 46280.27 | Y30: 46031.53 | Z30: 46080.44 | AA30: 45183.92 | AB30: 44989.47 | AC30: 45120.82 | AD30: 44821.33 | AE30: 43862.36 | AF30: =SUM(AF23:AF29)-AF26 -> 42704.33 | AG30: =SUM(AG23:AG29)-AG26 -> 42293.87 | AH30: =SUM(AH23:AH29)-AH26 -> 36573.08 | AI30: =SUM(AI23:AI29)-AI26 -> 39130.38 | AJ30: =SUM(AJ23:AJ29)-AJ26 -> 39365.56 | AK30: 0.00601016397 | AL30: -0.01505701797
A31: REAA | B31: ANNETTE ISLAND | C31: METLAKATLA | D31: 381 | E31: 423.9 | F31: 397 | G31: 407 | H31: 420 | I31: 444 | J31: 391 | K31: 396.57 | L31: 355.23 | M31: =189+179 -> 368 | N31: 325.75 | O31: 311.05 | P31: 290.65 | Q31: 287.5 | R31: 298.35 | S31: 291.29 | T31: 282.35 | U31: 288.85 | V31: 267.55 | W31: 276.75 | X31: 275.75 | Y31: 275.7 | Z31: 290.45 | AA31: 288.59 | AB31: 295.52 | AC31: 300.8 | AD31: 301.05 | AE31: 316.4 | AF31: 299.6 | AG31: 288.5 | AH31: 313.4 | AI31: 295.55 | AJ31: 295.9 | AK31: 0.001184232786 | AL31: 0.001259518731
A32: REAA | B32: ANNETTE ISLAND | C32: TOTAL | D32: =SUM(D31) -> 381 | E32: 423.9 | F32: 397 | G32: 407 | H32: 420 | I32: 444 | J32: 391 | K32: 396.57 | L32: 355.23 | M32: 368 | N32: 325.75 | O32: 311.05 | P32: 290.65 | Q32: 287.5 | R32: 298.35 | S32: 291.29 | T32: 282.35 | U32: =SUM(U31) -> 288.85 | V32: =SUM(V31) -> 267.55 | W32: 276.75 | X32: 275.75 | Y32: 275.7 | Z32: 290.45 | AA32: 288.59 | AB32: 295.52 | AC32: 300.8 | AD32: 301.05 | AE32: 316.4 | AF32: =SUM(AF31) -> 299.6 | AG32: =SUM(AG31) -> 288.5 | AH32: 313.4 | AI32: =SUM(AI31) -> 295.55 | AJ32: 295.9 | AK32: 0.001184232786 | AL32: 0.001259518731
A33: REAA | B33: BERING STRAIT | C33: BREVIG MISSION | D33: 59 | E33: 69 | F33: 75.4 | G33: 77 | H33: 85.55 | I33: 96.3 | J33: 94.45 | K33: 106.8 | L33: 101.55 | M33: 100.15 | N33: 98.8 | O33: 100 | P33: 99.45 | Q33: 103.4 | R33: 108.35 | S33: 107.25 | T33: 103.9 | U33: 110 | V33: 109.5 | W33: 113 | X33: 116.25 | Y33: 114.05 | Z33: 118.4 | AA33: 112.35 | AB33: 109.9 | AC33: 130.55 | AD33: 132.5 | AE33: 143.05 | AF33: 152.2 | AG33: 140 | AH33: 143.25 | AI33: 146.4 | AJ33: 155.71 | AK33: 0.06359289617 | AL33: 0.04688252613
A34: REAA | B34: BERING STRAIT | C34: DIOMEDE | D34: 56 | E34: 50.2 | F34: 59.15 | G34: 62.95 | H34: 55.55 | I34: 48.9 | J34: 57.4 | K34: 60.1 | L34: 52.2 | M34: 45.4 | N34: 49.8 | O34: 39.05 | P34: 37.6 | Q34: 41 | R34: 42 | S34: 38.75 | T34: 37.55 | U34: 31 | V34: 26.85 | W34: 32.3 | X34: 26 | Y34: 31.55 | Z34: 33.8 | AA34: 20.85 | AB34: 19.65 | AC34: 17.75 | AD34: 33.4 | AE34: 21.15 | AF34: 23.25 | AG34: 16 | AH34: 16.55 | AI34: 25.95 | AJ34: 26.5 | AK34: 0.02119460501 | AL34: 0.1036549776
A35: REAA | B35: BERING STRAIT | C35: ELIM | D35: 82.6 | E35: 77.25 | F35: 79.5 | G35: 95 | H35: 93.1 | I35: 95.05 | J35: 96.8 | K35: 102 | L35: 96.1 | M35: 97.35 | N35: 101 | O35: 96.1 | P35: 97 | Q35: 95.1 | R35: 82 | S35: 81.9 | T35: 85.45 | U35: 76 | V35: 75.3 | W35: 80.8 | X35: 80.25 | Y35: 88 | Z35: 85 | AA35: 85.25 | AB35: 103.9 | AC35: 97.75 | AD35: 103.2 | AE35: 110 | AF35: 104 | AG35: 112.9 | AH35: 115.3 | AI35: 104.91 | AJ35: 107.25 | AK35: 0.02230483271 | AL35: 0.005866965046
A36: REAA | B36: BERING STRAIT | C36: GAMBELL | D36: 136.85 | E36: 159.8 | F36: 172 | G36: 166.3 | H36: 179.15 | I36: 185.7 | J36: 185.9 | K36: 190.1 | L36: 190.95 | M36: 196 | N36: 190.05 | O36: 189 | P36: 173.2 | Q36: 171.75 | R36: 176.2 | S36: 179.5 | T36: 173.9 | U36: 182.25 | V36: 186.45 | W36: 184.7 | X36: 190 | Y36: 185.5 | Z36: 193 | AA36: 185.75 | AB36: 174.6 | AC36: 167.7 | AD36: 179.9 | AE36: 174 | AF36: 158.3 | AG36: 166 | AH36: 159.55 | AI36: 163.26 | AJ36: 153.9 | AK36: -0.05733186329 | AL36: -0.0142610492
A37: REAA | B37: BERING STRAIT | C37: GOLOVIN | D37: 36.7 | E37: 39 | F37: 44 | G37: 46.3 | H37: 51 | I37: 59.45 | J37: 51 | K37: 53 | L37: 52 | M37: 44 | N37: 47.8 | O37: 51 | P37: 50 | Q37: 49.4 | R37: 52 | S37: 49 | T37: 49 | U37: 42 | V37: 46.4 | W37: 45 | X37: 45 | Y37: 53.5 | Z37: 49 | AA37: 46 | AB37: 49 | AC37: 45.3 | AD37: 45.2 | AE37: 45 | AF37: 46 | AG37: 42.7 | AH37: 43 | AI37: 48.94 | AJ37: 41.3 | AK37: -0.1561095219 | AL37: -0.0178254528
A38: REAA | B38: BERING STRAIT | C38: KOYUK | D38: 73 | E38: 67 | F38: 76.25 | G38: 75 | H38: 79.8 | I38: 82.8 | J38: 86.9 | K38: 102.6 | L38: 98.5 | M38: 99.35 | N38: 108 | O38: 104 | P38: 119.55 | Q38: 115.5 | R38: 116.05 | S38: 111 | T38: 121.65 | U38: 110 | V38: 106.7 | W38: 101.85 | X38: 95 | Y38: 90 | Z38: 94 | AA38: 96.6 | AB38: 101.25 | AC38: 98 | AD38: 88.55 | AE38: 99.45 | AF38: 99.8 | AG38: 79 | AH38: 90.3 | AI38: 84 | AJ38: 82.01 | AK38: -0.02369047619 | AL38: -0.02009380755
A39: REAA | B39: BERING STRAIT | C39: SAVOONGA | D39: 133.1 | E39: 137.75 | F39: 132.2 | G39: 130.2 | H39: 143.3 | I39: 152.75 | J39: 152.4 | K39: 169.75 | L39: 185.7 | M39: 183.55 | N39: 185.65 | O39: 194.75 | P39: 198.85 | Q39: 202.2 | R39: 220.3 | S39: 217.65 | T39: 218.25 | U39: 226 | V39: 230.65 | W39: 219 | X39: 226 | Y39: 203.85 | Z39: 212.85 | AA39: 204.25 | AB39: 207.6 | AC39: 219.2 | AD39: 229.75 | AE39: 252.7 | AF39: 241.25 | AG39: 229.7 | AH39: 236.4 | AI39: 225.95 | AJ39: 223.75 | AK39: -0.009736667404 | AL39: 0.0107422771
A40: REAA | B40: BERING STRAIT | C40: SHAKTOOLIK | D40: 49 | E40: 61 | F40: 54.4 | G40: 63.7 | H40: 69.8 | I40: 70.5 | J40: 68.25 | K40: 74.6 | L40: 67.85 | M40: 71.8 | N40: 68.5 | O40: 57.3 | P40: 56.9 | Q40: 53 | R40: 55 | S40: 49.25 | T40: 44 | U40: 47 | V40: 49.85 | W40: 57.25 | X40: 55 | Y40: 64.4 | Z40: 70.8 | AA40: 70.75 | AB40: 68.1 | AC40: 81 | AD40: 79.9 | AE40: 83.65 | AF40: 84.7 | AG40: 79 | AH40: 78.65 | AI40: 68.13 | AJ40: 64.25 | AK40: -0.05694994863 | AL40: -0.003387598267
A41: REAA | B41: BERING STRAIT | C41: SHISHMAREF | D41: 158 | E41: 160.85 | F41: 164.5 | G41: 174.35 | H41: 174.9 | I41: 176.2 | J41: 175.9 | K41: 163.75 | L41: 179.75 | M41: 182.85 | N41: 180 | O41: 179 | P41: 171.95 | Q41: 173.4 | R41: 164 | S41: 173.1 | T41: 173.05 | U41: 174.9 | V41: 173.1 | W41: 180.5 | X41: 174 | Y41: 177 | Z41: 185.6 | AA41: 193.35 | AB41: 182.6 | AC41: 186.4 | AD41: 176.55 | AE41: 180 | AF41: 176 | AG41: 176.75 | AH41: 186.2 | AI41: 184.5 | AJ41: 181.3 | AK41: -0.01734417344 | AL41: -0.0004326599582
A42: REAA | B42: BERING STRAIT | C42: ST. MICHAEL | D42: 99 | E42: 103.75 | F42: 96.1 | G42: 108.25 | H42: 116.2 | I42: 118.15 | J42: 121 | K42: 119.5 | L42: 124.5 | M42: 126.5 | N42: 120.55 | O42: 126 | P42: 142.8 | Q42: 136.25 | R42: 146.3 | S42: 135.35 | T42: 144.7 | U42: 140.2 | V42: 145.1 | W42: 148.95 | X42: 145.75 | Y42: 141.45 | Z42: 155 | AA42: 158.9 | AB42: 153.55 | AC42: 160.8 | AD42: 167.85 | AE42: 142.75 | AF42: 143.65 | AG42: 138.6 | AH42: 143.95 | AI42: 129.06 | AJ42: 131.85 | AK42: 0.02161785216 | AL42: -0.01631872739
A43: REAA | B43: BERING STRAIT | C43: STEBBINS | D43: 128.45 | E43: 141.7 | F43: 140.7 | G43: 150.35 | H43: 140.6 | I43: 162 | J43: 178.25 | K43: 183.6 | L43: 191.2 | M43: 196.6 | N43: 198.15 | O43: 207.65 | P43: 200.55 | Q43: 198.8 | R43: 191.3 | S43: 187.75 | T43: 191.8 | U43: 186 | V43: 192.15 | W43: 175.95 | X43: 192.75 | Y43: 169.55 | Z43: 174.6 | AA43: 185.15 | AB43: 179.4 | AC43: 169.15 | AD43: 194.25 | AE43: 196.55 | AF43: 210.15 | AG43: 196.1 | AH43: 188.9 | AI43: 206.35 | AJ43: 212.58 | AK43: 0.03019142234 | AL43: 0.02391043553
A44: REAA | B44: BERING STRAIT | C44: TELLER | D44: 68.55 | E44: 62.1 | F44: 79.1 | G44: 80.75 | H44: 83.4 | I44: 87.25 | J44: 76.2 | K44: 79.15 | L44: 71.05 | M44: 71.95 | N44: 75.15 | O44: 73.7 | P44: 75.2 | Q44: 73.75 | R44: 78.35 | S44: 77.6 | T44: 73.95 | U44: 75.45 | V44: 63.65 | W44: 66.5 | X44: 66.75 | Y44: 65.05 | Z44: 67 | AA44: 62.45 | AB44: 68.5 | AC44: 68.9 | AD44: 67.7 | AE44: 73 | AF44: 69.2 | AG44: 79.25 | AH44: 74.9 | AI44: 70 | AJ44: 65.75 | AK44: -0.06071428571 | AL44: -0.002642323541
A45: REAA | B45: BERING STRAIT | C45: UNALAKLEET | D45: 196 | E45: 216.25 | F45: 210.5 | G45: 208.25 | H45: 216.6 | I45: 222.3 | J45: 236.75 | K45: 231 | L45: 251.1 | M45: 236.45 | N45: 219.5 | O45: 203.1 | P45: 206.6 | Q45: 190.55 | R45: 179 | S45: 175.15 | T45: 171.85 | U45: 167.3 | V45: 163.25 | W45: 156.25 | X45: 159.1 | Y45: 139.65 | Z45: 153.1 | AA45: 161.9 | AB45: 160.5 | AC45: 167.85 | AD45: 174.85 | AE45: 165 | AF45: 167 | AG45: 173.35 | AH45: 178.5 | AI45: 161.29 | AJ45: 143.51 | AK45: -0.1102362205 | AL45: -0.01195408075
A46: REAA | B46: BERING STRAIT | C46: WALES | D46: 36 | E46: 40 | F46: 47.8 | G46: 50.25 | H46: 51.75 | I46: 57.25 | J46: 52.8 | K46: 59.75 | L46: 55.25 | M46: 54.55 | N46: 54 | O46: 49 | P46: 45.9 | Q46: 43.65 | R46: 36.3 | S46: 31.05 | T46: 35 | U46: 32 | V46: 33 | W46: 33 | X46: 38 | Y46: 33 | Z46: 33 | AA46: 32 | AB46: 38.05 | AC46: 35.75 | AD46: 41 | AE46: 42.35 | AF46: 44.05 | AG46: 41 | AH46: 35.9 | AI46: 41.25 | AJ46: 35.2 | AK46: -0.1466666667 | AL46: -0.003974558678
A47: REAA | B47: BERING STRAIT | C47: WHITE MOUNTAIN | D47: 44.05 | E47: 48.3 | F47: 45.05 | G47: 50.5 | H47: 60 | I47: 64.5 | J47: 72 | K47: 64 | L47: 65.2 | M47: 68.95 | N47: 63.3 | O47: 58.65 | P47: 58.3 | Q47: 56.25 | R47: 52 | S47: 54 | T47: 48.4 | U47: 46.45 | V47: 51 | W47: 47.8 | X47: 43.75 | Y47: 37 | Z47: 42.4 | AA47: 44.8 | AB47: 41 | AC47: 49 | AD47: 55.85 | AE47: 56.35 | AF47: 58 | AG47: 47.9 | AH47: 50.8 | AI47: 54.75 | AJ47: 58 | AK47: 0.05936073059 | AL47: 0.04958415017
A48: REAA | B48: BERING STRAIT | C48: TOTAL | D48: =SUM(D33:D47) -> 1356.3 | E48: 1433.95 | F48: 1476.65 | G48: 1539.15 | H48: 1600.7 | I48: 1679.1 | J48: 1706 | K48: 1759.7 | L48: 1782.9 | M48: 1775.45 | N48: 1760.25 | O48: 1728.3 | P48: 1733.85 | Q48: 1704 | R48: 1699.15 | S48: 1668.3 | T48: 1672.45 | U48: =SUM(U33:U47) -> 1646.55 | V48: =SUM(V33:V47) -> 1652.95 | W48: 1642.85 | X48: 1653.6 | Y48: 1593.55 | Z48: 1667.55 | AA48: 1660.35 | AB48: 1657.6 | AC48: 1695.1 | AD48: 1770.45 | AE48: 1785 | AF48: =SUM(AF33:AF47) -> 1777.55 | AG48: =SUM(AG33:AG47) -> 1718.25 | AH48: 1742.15 | AI48: =SUM(AI33:AI47) -> 1714.74 | AJ48: 1682.86 | AK48: -0.01859173986 | AL48: 0.002167888543
A49: C/B | B49: BRISTOL BAY | C49: NAKNEK | D49: 231 | E49: 250.65 | F49: 247.35 | G49: 255.6 | H49: 254.25 | I49: 276.5 | J49: 297.45 | K49: 289 | L49: 280.65 | M49: 260.6 | N49: 226.2 | O49: 223.2 | P49: 222 | Q49: =88.35+99.25 -> 187.6 | R49: 184.4 | S49: 179 | T49: 188.1 | U49: 182.25 | V49: 142.65 | W49: 155.05 | X49: 160.05 | Y49: 149.74 | Z49: 139.65 | AA49: 138.2 | AB49: 116.5 | AC49: 118.65 | AD49: 117.95 | AE49: 114.25 | AF49: 99.9 | AG49: 102.71 | AH49: 95.33 | AI49: 96.5 | AJ49: 99.95 | AK49: 0.03575129534 | AL49: -0.01751449422
A50: C/B | B50: BRISTOL BAY | C50: SOUTH NAKNEK | D50: 22 | E50: 22 | F50: 18 | G50: 16 | H50: 15 | I50: 16 | J50: 16 | K50: 16 | L50: 15 | M50: 14 | N50: 16.85 | O50: 14 | P50: 11.6 | Q50: 7.75 | R50: closed | S50: closed | T50: closed | U50: closed | V50: closed | W50: closed | X50: closed | Y50: closed | Z50: closed | AA50: closed | AB50: closed | AC50: closed | AD50: closed | AE50: closed | AF50: closed | AG50: closed | AH50: closed | AI50: closed | AJ50: closed | AK50: n/a | AL50: n/a
A51: C/B | B51: BRISTOL BAY | C51: TOTAL | D51: =SUM(D49:D50) -> 253 | E51: 272.65 | F51: 265.35 | G51: 271.6 | H51: 269.25 | I51: 292.5 | J51: 313.45 | K51: 305 | L51: 295.65 | M51: 274.6 | N51: 243.05 | O51: 237.2 | P51: 233.6 | Q51: 195.35 | R51: 184.4 | S51: 179 | T51: 188.1 | U51: =SUM(U49:U50) -> 182.25 | V51: =SUM(V49:V50) -> 142.65 | W51: 155.05 | X51: 160.05 | Y51: 149.74 | Z51: 139.65 | AA51: 138.2 | AB51: 116.5 | AC51: 118.65 | AD51: 117.95 | AE51: 114.25 | AF51: =SUM(AF49:AF50) -> 99.9 | AG51: =SUM(AG49:AG50) -> 102.71 | AH51: 95.33 | AI51: =SUM(AI49:AI50) -> 96.5 | AJ51: 99.95 | AK51: 0.03575129534 | AL51: -0.01751449422
A52: REAA | B52: CHATHAM | C52: ANGOON | D52: 186.5 | E52: 175 | F52: 166.1 | G52: 157.35 | H52: 156 | I52: 153.8 | J52: 146.75 | K52: 145.95 | L52: 154.7 | M52: 150 | N52: 154.5 | O52: 133.6 | P52: 124.3 | Q52: 114.5 | R52: 112.7 | S52: 108 | T52: 103.32 | U52: 91 | V52: 79.5 | W52: 80.65 | X52: 77 | Y52: 72 | Z52: 65.2 | AA52: 70.4 | AB52: 79 | AC52: 68.5 | AD52: 73.5 | AE52: 78.25 | AF52: 73.9 | AG52: 64.3 | AH52: 66.5 | AI52: 63 | AJ52: 69.75 | AK52: 0.1071428571 | AL52: -0.01150790949
A53: REAA | B53: CHATHAM | C53: CORNER BAY | D53: 8 | E53: 12 | F53: closed | G53: closed | H53: closed | I53: closed | J53: closed | K53: closed | L53: closed | M53: closed | N53: closed | O53: closed | P53: closed | Q53: closed | R53: closed | S53: closed | T53: closed | U53: closed | V53: closed | W53: closed | X53: closed | Y53: closed | Z53: closed | AA53: closed | AB53: closed | AC53: closed | AD53: closed | AE53: closed | AF53: closed | AG53: closed | AH53: closed | AI53: closed | AJ53: closed | AK53: n/a | AL53: n/a
A54: REAA | B54: CHATHAM | C54: CUBE COVE | D54: 40.8 | E54: 67 | F54: 44.2 | G54: 31 | H54: 29 | I54: 26 | J54: 36.85 | K54: 31 | L54: 18 | M54: 19 | N54: 20 | O54: 10 | P54: 0 | Q54: closed | R54: closed | S54: closed | T54: closed | U54: closed | V54: closed | W54: closed | X54: closed | Y54: closed | Z54: closed | AA54: closed | AB54: closed | AC54: closed | AD54: closed | AE54: closed | AF54: closed | AG54: closed | AH54: closed | AI54: closed | AJ54: closed | AK54: n/a | AL54: n/a
A55: REAA | B55: CHATHAM | C55: ELFIN COVE | D55: 9 | E55: 11 | F55: 12 | G55: 11 | H55: 8 | I55: 11 | J55: 11 | K55: 11 | L55: 0 | M55: closed | N55: closed | O55: closed | P55: closed | Q55: closed | R55: closed | S55: closed | T55: closed | U55: closed | V55: closed | W55: closed | X55: closed | Y55: closed | Z55: closed | AA55: closed | AB55: closed | AC55: closed | AD55: closed | AE55: closed | AF55: closed | AG55: closed | AH55: closed | AI55: closed | AJ55: closed | AK55: n/a | AL55: n/a
A56: REAA | B56: CHATHAM | C56: EIGHT FATHOM BIGHT | D56: closed | E56: closed | F56: closed | G56: closed | H56: closed | I56: closed | J56: closed | K56: closed | L56: closed | M56: closed | N56: closed | O56: closed | P56: closed | Q56: closed | R56: closed | S56: closed | T56: closed | U56: closed | V56: closed | W56: closed | X56: closed | Y56: closed | Z56: closed | AA56: closed | AB56: closed | AC56: closed | AD56: closed | AE56: closed | AF56: closed | AG56: closed | AH56: closed | AI56: closed | AJ56: closed | AK56: n/a | AL56: n/a
A57: REAA | B57: CHATHAM | C57: FRESHWATER BAY | D57: 21 | E57: 11 | F57: 16.45 | G57: closed | H57: closed | I57: closed | J57: closed | K57: closed | L57: closed | M57: closed | N57: closed | O57: closed | P57: closed | Q57: closed | R57: closed | S57: closed | T57: closed | U57: closed | V57: closed | W57: closed | X57: closed | Y57: closed | Z57: closed | AA57: closed | AB57: closed | AC57: closed | AD57: closed | AE57: closed | AF57: closed | AG57: closed | AH57: closed | AI57: closed | AJ57: closed | AK57: n/a | AL57: n/a
A58: REAA | B58: CHATHAM | C58: GUSTAVUS | D58: 72 | E58: 67 | F58: 65 | G58: 85.5 | H58: 79.7 | I58: 83 | J58: 75.2 | K58: 73 | L58: 73.9 | M58: 61 | N58: 48 | O58: 46.25 | P58: 43.7 | Q58: 49 | R58: 37.5 | S58: 44 | T58: 42.5 | U58: 44.99 | V58: 45.5 | W58: 39.75 | X58: 57.25 | Y58: 49.75 | Z58: 52.25 | AA58: 61.1 | AB58: 64.7 | AC58: 74.65 | AD58: 70.15 | AE58: 71.5 | AF58: 65 | AG58: 63.5 | AH58: 59.5 | AI58: 58.5 | AJ58: 46.5 | AK58: -0.2051282051 | AL58: -0.03577039957
A59: REAA | B59: CHATHAM | C59: HOBART BAY | E59: 7 | F59: 7.65 | G59: 8 | H59: 12.25 | I59: 23 | J59: 21 | K59: 7.25 | L59: 0 | M59: closed | N59: closed | O59: closed | P59: closed | Q59: closed | R59: closed | S59: closed | T59: closed | U59: closed | V59: closed | W59: closed | X59: closed | Y59: closed | Z59: closed | AA59: closed | AB59: closed | AC59: closed | AD59: closed | AE59: closed | AF59: closed | AG59: closed | AH59: closed | AI59: closed | AJ59: closed | AK59: n/a | AL59: n/a
A60: REAA | B60: CHATHAM | C60: KLUKWAN | D60: 35 | E60: 35.5 | F60: 30 | G60: 24.7 | H60: 27.9 | I60: 28.5 | J60: 27 | K60: 11.8 | L60: 12.2 | M60: 12 | N60: 14 | O60: 26.5 | P60: 39.9 | Q60: 39 | R60: 32.9 | S60: 38 | T60: 33 | U60: 22.4 | V60: 15.75 | W60: 18 | X60: 14 | Y60: 15 | Z60: 16 | AA60: 13 | AB60: 13.25 | AC60: 16.5 | AD60: 13 | AE60: 21.7 | AF60: 17.9 | AG60: 14 | AH60: 13.5 | AI60: 6.85 | AJ60: 5 | AK60: -0.2700729927 | AL60: -0.06112244967
A61: REAA | B61: CHATHAM | C61: TENAKEE | D61: 10 | E61: 11 | F61: 7.55 | G61: 9 | H61: 13 | I61: 12 | J61: 16.5 | K61: 13 | L61: 13.25 | M61: 15 | N61: 11 | O61: 11 | P61: 12 | Q61: 12.5 | R61: 12 | S61: 10 | T61: 14.25 | U61: 10 | V61: 9 | W61: 12 | X61: 8 | Y61: 10 | Z61: 10 | AA61: closed | AB61: 12.25 | AC61: 6.5 | AD61: closed | AE61: closed | AF61: closed | AG61: closed | AH61: closed | AI61: closed | AJ61: closed | AK61: n/a | AL61: n/a
A62: REAA | B62: CHATHAM | C62: TOTAL | D62: =SUM(D52:D61) -> 382.3 | E62: 396.5 | F62: 348.95 | G62: 326.55 | H62: 325.85 | I62: 337.3 | J62: 334.3 | K62: 293 | L62: 272.05 | M62: 257 | N62: 247.5 | O62: 227.35 | P62: 219.9 | Q62: 215 | R62: 195.1 | S62: 200 | T62: 193.07 | U62: =SUM(U52:U61) -> 168.39 | V62: =SUM(V52:V61) -> 149.75 | W62: 150.4 | X62: 156.25 | Y62: 146.75 | Z62: 143.45 | AA62: 144.5 | AB62: 169.2 | AC62: 166.15 | AD62: 156.65 | AE62: 171.45 | AF62: =SUM(AF52:AF61) -> 156.8 | AG62: =SUM(AG52:AG61) -> 141.8 | AH62: 139.5 | AI62: =SUM(AI52:AI61) -> 128.35 | AJ62: 121.25 | AK62: -0.05531749123 | AL62: -0.03916273385
A63: REAA | B63: CHUGACH | C63: CHENEGA BAY | D63: 21 | E63: 19 | F63: 21.25 | G63: 26 | H63: 13 | I63: 16 | J63: 14 | K63: 8 | L63: 10 | M63: 10.4 | N63: 14.8 | O63: 11 | P63: 11 | Q63: 11 | R63: 11 | S63: 14 | T63: 14 | U63: 16 | V63: 17 | W63: 22 | X63: 23 | Y63: 19.75 | Z63: 12 | AA63: 12.7 | AB63: 10.45 | AC63: 11 | AD63: 11 | AE63: 13 | AF63: 11 | AG63: 10 | AH63: 12.5 | AI63: 10 | AJ63: 12 | AK63: 0.2 | AL63: 0.0299618145
A64: REAA | B64: CHUGACH | C64: ICY BAY | D64: 4 | E64: 3 | F64: 6 | G64: 6.8 | H64: 13 | I64: 13 | J64: 13 | K64: closed | L64: closed | M64: closed | N64: closed | O64: closed | P64: closed | Q64: closed | R64: closed | S64: closed | T64: closed | U64: closed | V64: closed | W64: closed | X64: closed | Y64: closed | Z64: closed | AA64: closed | AB64: closed | AC64: closed | AD64: closed | AE64: closed | AF64: closed | AG64: closed | AH64: closed | AI64: closed | AJ64: closed | AK64: n/a | AL64: n/a
A65: REAA | B65: CHUGACH | C65: TATITLEK | D65: 20.1 | E65: 23.25 | F65: 28 | G65: 31.85 | H65: 32 | I65: 29 | J65: 27 | K65: 33 | L65: 28 | M65: 32.5 | N65: 23.9 | O65: 29.5 | P65: 32.5 | Q65: 26 | R65: 30.3 | S65: 27 | T65: 24.95 | U65: 20.45 | V65: 19 | W65: 17 | X65: 14.1 | Y65: 13 | Z65: 15 | AA65: 13 | AB65: 14.25 | AC65: 15 | AD65: 16 | AE65: 17 | AF65: 15 | AG65: 18.5 | AH65: 18.5 | AI65: 12 | AJ65: 11 | AK65: -0.08333333333 | AL65: -0.01715002057
A66: REAA | B66: CHUGACH | C66: TWO MOON BAY | E66: 8 | F66: 9 | G66: 5.1 | H66: 10 | I66: 11 | J66: 4 | K66: closed | L66: closed | M66: closed | N66: closed | O66: closed | P66: closed | Q66: closed | R66: closed | S66: closed | T66: closed | U66: closed | V66: closed | W66: closed | X66: closed | Y66: closed | Z66: closed | AA66: closed | AB66: closed | AC66: closed | AD66: closed | AE66: closed | AF66: closed | AG66: closed | AH66: closed | AI66: closed | AJ66: closed | AK66: n/a | AL66: n/a
A67: REAA | B67: CHUGACH | C67: WHITTIER | D67: 68.8 | E67: 75 | F67: 68 | G67: 53 | H67: 65 | I67: 75 | J67: 99 | K67: 126 | L67: 36 | M67: 26.45 | N67: 22.4 | O67: 34 | P67: 40 | Q67: 40.85 | R67: 39.9 | S67: 44.4 | T67: 27.75 | U67: 34.05 | V67: 30.3 | W67: 24 | X67: 14 | Y67: 27.16 | Z67: 33 | AA67: 31.4 | AB67: 35.85 | AC67: 36.05 | AD67: 37 | AE67: 27 | AF67: 40.15 | AG67: 51.2 | AH67: 49.85 | AI67: 49.45 | AJ67: 39.5 | AK67: -0.2012133468 | AL67: 0.03603889775
A68: REAA | B68: CHUGACH | C68: TOTAL | D68: =SUM(D63:D67) -> 113.9 | E68: 128.25 | F68: 132.25 | G68: 122.75 | H68: 133 | I68: 144 | J68: 157 | K68: 167 | L68: 74 | M68: 69.35 | N68: 61.1 | O68: 74.5 | P68: 83.5 | Q68: 77.85 | R68: 81.2 | S68: 85.4 | T68: 66.7 | U68: =SUM(U63:U67) -> 70.5 | V68: =SUM(V63:V67) -> 66.3 | W68: 63 | X68: 51.1 | Y68: 59.91 | Z68: 60 | AA68: 57.1 | AB68: 60.55 | AC68: 62.05 | AD68: 64 | AE68: 57 | AF68: =SUM(AF63:AF67) -> 66.15 | AG68: =SUM(AG63:AG67) -> 79.7 | AH68: 80.85 | AI68: =SUM(AI63:AI67) -> 71.45 | AJ68: 62.5 | AK68: =IFERROR((AJ68-AI68)/AI68,"n/a") -> -0.1252624213 | AL68: 0.01063624883
A69: STATE | B69: CCS | C69: CCS | D69: 1984.74 | E69: 2079.48 | F69: 2280.47 | G69: 1475.14 | H69: 1477.15 | I69: 1580.85 | J69: 1626.47 | K69: closed | L69: closed | M69: closed | N69: closed | O69: closed | P69: closed | Q69: closed | R69: closed | S69: closed | T69: closed | U69: closed | V69: closed | W69: closed | X69: closed | Y69: closed | Z69: closed | AA69: closed | AB69: closed | AC69: closed | AD69: closed | AE69: closed | AF69: closed | AG69: closed | AH69: closed | AI69: closed | AJ69: closed | AK69: n/a | AL69: =IFERROR(((AJ69-AI69)/AI69+(AI69-AH69)/AH69+(AH69-AG69)/AG69+(AG69-AF69)/AF69+(AF69-AE69)/AE69+(AE69-AD69)/AD69+(AD69-AC69)/AC69+(AC69-AB69)/AB69)/8,"n/a") -> n/a
A70: STATE | B70: CCS | C70: TOTAL | D70: =SUM(D69) -> 1984.74 | E70: 2079.48 | F70: 2280.47 | G70: 1475.14 | H70: 1477.15 | I70: 1580.85 | J70: 1626.47 | K70: 0 | L70: 0 | M70: 0 | N70: 0 | O70: 0 | P70: 0 | Q70: 0 | R70: 0 | S70: 0 | T70: 0 | U70: =SUM(U69) -> 0 | V70: =SUM(V69) -> 0 | W70: 0 | X70: 0 | Y70: 0 | Z70: 0 | AA70: 0 | AB70: 0 | AC70: 0 | AD70: 0 | AE70: 0 | AF70: =SUM(AF69) -> 0 | AG70: 0 | AH70: =SUM(AH69) -> 0 | AI70: =SUM(AI69) -> 0 | AJ70: 0 | AK70: n/a | AL70: n/a
A71: REAA | B71: COPPER RIVER | C71: CHISTOCHINA | D71: 38.05 | E71: 31.25 | F71: 31 | G71: 15.25 | H71: 13.3 | I71: 10.5 | J71: 6.95 | K71: 9 | L71: 10 | M71: 11 | N71: 15 | O71: 10 | P71: 10.4 | Q71: 11 | R71: 15 | S71: 16 | T71: 11 | U71: 10 | V71: 12 | W71: 11 | X71: 11.45 | Y71: closed | Z71: closed | AA71: closed | AB71: closed | AC71: closed | AD71: closed | AE71: closed | AF71: closed | AG71: closed | AH71: closed | AI71: closed | AJ71: closed | AK71: n/a | AL71: n/a
A72: REAA | B72: COPPER RIVER | C72: COPPER CENTER | D72: 74.55 | E72: 74 | F72: 79.45 | G72: 77.5 | H72: 69.8 | I72: 61.5 | J72: 51.45 | K72: 51.85 | L72: 38 | M72: Glennallen | N72: Glennallen | O72: Glennallen | P72: Glennallen | Q72: Glennallen | R72: Glennallen | S72: Glennallen | T72: Glennallen | U72: Glennallen | V72: Glennallen | W72: Glennallen | X72: Glennallen | Y72: Glennallen | Z72: Glennallen | AA72: Glennallen | AB72: closed | AC72: closed | AD72: closed | AE72: closed | AF72: closed | AG72: closed | AH72: closed | AI72: closed | AJ72: closed | AK72: n/a | AL72: n/a
A73: REAA | B73: COPPER RIVER | C73: GAKONA | D73: 30 | E73: 25 | F73: 18 | G73: 22.85 | H73: 21.75 | I73: 19.75 | J73: 26.1 | K73: 26.75 | L73: 23.1 | M73: Glennallen | N73: Glennallen | O73: Glennallen | P73: Glennallen | Q73: Glennallen | R73: Glennallen | S73: Glennallen | T73: Glennallen | U73: Glennallen | V73: closed | W73: closed | X73: closed | Y73: closed | Z73: closed | AA73: closed | AB73: closed | AC73: closed | AD73: closed | AE73: closed | AF73: closed | AG73: closed | AH73: closed | AI73: closed | AJ73: closed | AK73: n/a | AL73: n/a
A74: REAA | B74: COPPER RIVER | C74: GLENNALLEN | D74: 305.5 | E74: 340.35 | F74: 353.2 | G74: 345.6 | H74: 364.8 | I74: 383.8 | J74: 501.6 | K74: =152.94+237.8 -> 390.74 | L74: 336.15 | M74: =208.25+118.5+43+19.55 -> 389.3 | N74: =296.65+51.2+13 -> 360.85 | O74: =191.83+116.95+51.7+22.75 -> 383.23 | P74: =184.9+132+49.25+17 -> 383.15 | Q74: =128.15+180.45+48+17.1 -> 373.7 | R74: =180.9+127.5+55.35+14 -> 377.75 | S74: 369.75 | T74: =39+15+175+129 -> 358 | U74: 321.25 | V74: 302.65 | W74: 305.38 | X74: 291.15 | Y74: 297.8 | Z74: 304.3 | AA74: 298.25 | AB74: 285.85 | AC74: 279.55 | AD74: 279.3 | AE74: 266.28 | AF74: 251.86 | AG74: 245.24 | AH74: 205.93 | AI74: 225.94 | AJ74: 205.8 | AK74: -0.08913870939 | AL74: -0.03778125759
A75: REAA | B75: COPPER RIVER | C75: KENNY LAKE | D75: 99.85 | E75: 85.85 | F75: 97.3 | G75: 104.75 | H75: 107.8 | I75: 122.95 | J75: 135.5 | K75: 124.95 | L75: 123.8 | M75: 114.75 | N75: 117.25 | O75: 124.4 | P75: 122.67 | Q75: 132.5 | R75: 142.2 | S75: 130.9 | T75: 124.05 | U75: 129.85 | V75: 120.3 | W75: 121 | X75: 104.25 | Y75: 110.8 | Z75: 105.25 | AA75: 89.91 | AB75: 78 | AC75: 70.85 | AD75: 73.25 | AE75: 64.88 | AF75: 65.5 | AG75: 63.9 | AH75: 51.75 | AI75: 43.85 | AJ75: 57 | AK75: 0.2998859749 | AL75: -0.02873021851
A76: REAA | B76: COPPER RIVER | C76: NELCHINA | D76: 9 | E76: 8 | F76: 6 | G76: 6 | H76: 17 | I76: 16 | J76: 8.5 | K76: 12 | L76: 11 | M76: 14 | N76: 11 | O76: 11.7 | P76: closed | Q76: closed | R76: closed | S76: closed | T76: closed | U76: closed | V76: closed | W76: closed | X76: closed | Y76: closed | Z76: closed | AA76: closed | AB76: closed | AC76: closed | AD76: closed | AE76: closed | AF76: closed | AG76: closed | AH76: closed | AI76: closed | AJ76: closed | AK76: n/a | AL76: n/a
A77: REAA | B77: COPPER RIVER | C77: PAXSON | D77: 3 | E77: 6 | F77: closed | G77: closed | H77: closed | I77: closed | J77: closed | K77: closed | L77: closed | M77: closed | N77: closed | O77: closed | P77: closed | Q77: closed | R77: closed | S77: closed | T77: closed | U77: closed | V77: closed | W77: closed | X77: closed | Y77: closed | Z77: closed | AA77: closed | AB77: closed | AC77: closed | AD77: closed | AE77: closed | AF77: closed | AG77: closed | AH77: closed | AI77: closed | AJ77: closed | AK77: n/a | AL77: n/a
A78: REAA | B78: COPPER RIVER | C78: SLANA | D78: 22 | E78: 22 | F78: 22.95 | G78: 24.8 | H78: 28.8 | I78: 25 | J78: 42.5 | K78: 16 | L78: 16 | M78: 17 | N78: 10 | O78: 18 | P78: 24 | Q78: 14.95 | R78: 12 | S78: 15.75 | T78: 18.3 | U78: 17.8 | V78: 19 | W78: 16.4 | X78: 13.53 | Y78: 21.75 | Z78: 21 | AA78: 10.53 | AB78: 18.25 | AC78: 16.3 | AD78: 13.2 | AE78: 15.3 | AF78: 13 | AG78: 10 | AH78: 10.85 | AI78: 15 | AJ78: 15 | AK78: 0 | AL78: -0.006443750494
A79: REAA | B79: COPPER RIVER | C79: TOTAL | D79: =SUM(D71:D78) -> 581.95 | E79: 592.45 | F79: 607.9 | G79: 596.75 | H79: 623.25 | I79: 639.5 | J79: 772.6 | K79: 631.29 | L79: 558.05 | M79: 546.05 | N79: 514.1 | O79: 547.33 | P79: 540.22 | Q79: 532.15 | R79: 546.95 | S79: 532.4 | T79: 511.35 | U79: =SUM(U71:U78) -> 478.9 | V79: =SUM(V71:V78) -> 453.95 | W79: 453.78 | X79: 420.38 | Y79: 430.35 | Z79: 430.55 | AA79: 398.69 | AB79: 382.1 | AC79: 366.7 | AD79: 365.75 | AE79: 346.46 | AF79: =SUM(AF71:AF78) -> 330.36 | AG79: =SUM(AG71:AG78) -> 319.14 | AH79: 268.53 | AI79: =SUM(AI71:AI78) -> 284.79 | AJ79: 277.8 | AK79: -0.02454440114 | AL79: -0.03733038882
A80: C/B | B80: CORDOVA | C80: CORDOVA | D80: 437.9 | E80: 437.9 | F80: 502.5 | G80: 511.15 | H80: 528.15 | I80: 519.15 | J80: 534.3 | K80: =289.25+225.45 -> 514.7 | L80: 491.34 | M80: 485.45 | N80: 475.95 | O80: 461.45 | P80: 464.1 | Q80: =471.4 -> 471.4 | R80: 451.6 | S80: 446.95 | T80: 420.5 | U80: 408.9 | V80: 368.4 | W80: 360.4 | X80: 337.75 | Y80: 324.5 | Z80: 315.78 | AA80: 306.31 | AB80: 324.5 | AC80: 351.6 | AD80: 313.15 | AE80: 323.56 | AF80: 328.18 | AG80: 319.6 | AH80: 262.3 | AI80: 306.72 | AJ80: 332.34 | AK80: 0.08352895149 | AL80: 0.008640450828
A81: C/B | B81: CORDOVA | C81: TOTAL | D81: =SUM(D80) -> 437.9 | E81: 437.9 | F81: 502.5 | G81: 511.15 | H81: 528.15 | I81: 519.15 | J81: 534.3 | K81: 514.7 | L81: 491.34 | M81: 485.45 | N81: 475.95 | O81: 461.45 | P81: 464.1 | Q81: 471.4 | R81: 451.6 | S81: 446.95 | T81: 420.5 | U81: =SUM(U80) -> 408.9 | V81: =SUM(V80) -> 368.4 | W81: 360.4 | X81: 337.75 | Y81: 324.5 | Z81: 315.78 | AA81: 306.31 | AB81: 324.5 | AC81: 351.6 | AD81: 313.15 | AE81: 323.56 | AF81: =SUM(AF80) -> 328.18 | AG81: =SUM(AG80) -> 319.6 | AH81: 262.3 | AI81: =SUM(AI80) -> 306.72 | AJ81: 332.34 | AK81: 0.08352895149 | AL81: 0.008640450828
A82: C/B | B82: CRAIG | C82: CRAIG | D82: 303.4 | E82: 314.25 | F82: 356.45 | G82: 367 | H82: 396 | I82: 424 | J82: 422 | K82: =221+207 -> 428 | L82: 431 | M82: 412.35 | N82: 412.4 | O82: =185+94+96.75 -> 375.75 | P82: =177.2+90+100 -> 367.2 | Q82: =381.75-24 -> 357.75 | R82: 355.8 | S82: 352.75 | T82: 347.55 | U82: 331.45 | V82: 323.5 | W82: 304.05 | X82: 304.4 | Y82: 338.96 | Z82: 314.5 | AA82: 285.2 | AB82: 285.05 | AC82: 273.1 | AD82: 284.23 | AE82: 257.32 | AF82: 264.45 | AG82: 246.55 | AH82: 207.81 | AI82: 213.26 | AJ82: 229.4 | AK82: 0.07568226578 | AL82: -0.02388052549
A83: C/B | B83: CRAIG | C83: TOTAL | D83: =SUM(D82) -> 303.4 | E83: 314.25 | F83: 356.45 | G83: 367 | H83: 396 | I83: 424 | J83: 422 | K83: 428 | L83: 431 | M83: 412.35 | N83: 412.4 | O83: 375.75 | P83: 367.2 | Q83: 357.75 | R83: 355.8 | S83: 352.75 | T83: 347.55 | U83: =SUM(U82) -> 331.45 | V83: =SUM(V82) -> 323.5 | W83: 304.05 | X83: 304.4 | Y83: 338.96 | Z83: 314.5 | AA83: 285.2 | AB83: 285.05 | AC83: 273.1 | AD83: 284.23 | AE83: 257.32 | AF83: =SUM(AF82) -> 264.45 | AG83: 246.55 | AH83: 207.81 | AI83: =SUM(AI82) -> 213.26 | AJ83: 229.4 | AK83: 0.07568226578 | AL83: -0.02388052549
A84: REAA | B84: DELTA/GREELY | C84: DELTA JUNCTION | D84: 841 | E84: 839.7 | F84: 927.9 | G84: 983.7 | H84: 964 | I84: 873 | J84: 834.7 | K84: =437.75+513.26 -> 951.01 | L84: =57.7+178+102.6+213.8+231.45 -> 783.55 | M84: =203.2+209.85+271.55+53.65 -> 738.25 | N84: 599.55 | O84: =36.1+267.4+234.8 -> 538.3 | P84: =320.98+280.6 -> 601.58 | Q84: 647.3 | R84: =812.69-R85-R86 -> 774.99 | S84: 805.7 | T84: =883.15-23 -> 860.15 | U84: 834.53 | V84: 783.59 | W84: 793.14 | X84: 764.45 | Y84: 770.85 | Z84: 740.7 | AA84: 719.54 | AB84: 691.39 | AC84: 675.88 | AD84: 717.75 | AE84: 708.35 | AF84: 727.15 | AG84: 683.13 | AH84: 503.67 | AI84: 630.74 | AJ84: 674.2 | AK84: 0.06890319307 | AL84: 0.006363873577
A85: REAA | B85: DELTA/GREELY | C85: HEALY LAKE | E85: 10 | F85: 9.5 | G85: 6 | H85: 10 | I85: 11.65 | J85: 8.95 | K85: 13 | L85: 10 | M85: 11.55 | N85: 0 | O85: 7.08 | P85: 0 | R85: 11.2 | S85: closed | T85: closed | U85: closed | V85: closed | W85: closed | X85: closed | Y85: closed | Z85: closed | AA85: closed | AB85: closed | AC85: closed | AD85: closed | AE85: closed | AF85: closed | AG85: closed | AH85: closed | AI85: closed | AJ85: closed | AK85: n/a | AL85: n/a
A86: REAA | B86: DELTA/GREELY | C86: GERSTLE RIVER | Q86: 20 | R86: 26.5 | S86: 27.8 | T86: 23 | U86: 25 | V86: 21.7 | W86: 19 | X86: 22 | Y86: 22 | Z86: 21 | AA86: 21 | AB86: 29 | AC86: 20.75 | AD86: 24.85 | AE86: 27 | AF86: 29 | AG86: 28 | AH86: 30 | AI86: 31 | AJ86: 30 | AK86: -0.03225806452 | AL86: 0.01396523415
A87: REAA | B87: DELTA/GREELY | C87: TOTAL | D87: =SUM(D84:D86) -> 841 | E87: 849.7 | F87: 937.4 | G87: 989.7 | H87: 974 | I87: 884.65 | J87: 843.65 | K87: 964.01 | L87: 793.55 | M87: 749.8 | N87: 599.55 | O87: 545.38 | P87: 601.58 | Q87: 667.3 | R87: 812.69 | S87: 833.5 | T87: 883.15 | U87: =SUM(U84:U86) -> 859.53 | V87: =SUM(V84:V86) -> 805.29 | W87: 812.14 | X87: 786.45 | Y87: 792.85 | Z87: 761.7 | AA87: 740.54 | AB87: 720.39 | AC87: 696.63 | AD87: 742.6 | AE87: 735.35 | AF87: =SUM(AF84:AF86) -> 756.15 | AG87: =SUM(AG84:AG86) -> 711.13 | AH87: 533.67 | AI87: =SUM(AI84:AI86) -> 661.74 | AJ87: 704.2 | AK87: 0.06416417324 | AL87: 0.005823603499
A88: C/B | B88: DENALI | C88: ANDERSON | D88: 114.6 | E88: 106.9 | F88: 119.05 | G88: 118.25 | H88: 125.3 | I88: 112.75 | J88: 113 | K88: 89.2 | L88: 96 | M88: 79.4 | N88: 62.45 | O88: 63.5 | P88: 80.5 | Q88: 87.25 | R88: 81.25 | S88: 77.35 | T88: 52.95 | U88: 56.9 | V88: 43.25 | W88: 32 | X88: 38.85 | Y88: 31.5 | Z88: 23.1 | AA88: 15.55 | AB88: 19 | AC88: 32 | AD88: 31.25 | AE88: 33.75 | AF88: 27 | AG88: 32.25 | AH88: 26.65 | AI88: 22.25 | AJ88: 18.25 | AK88: -0.1797752809 | AL88: 0.02708694869
A89: C/B | B89: DENALI | C89: CANTWELL | D89: 24 | E89: 29.5 | F89: 30.1 | G89: 26.5 | H89: 27 | I89: 26 | J89: 27 | K89: 28 | L89: 39 | M89: 31 | N89: 30.65 | O89: 27.75 | P89: 22.55 | Q89: 24.65 | R89: 25.25 | S89: 19.6 | T89: 19 | U89: 25.3 | V89: 34.4 | W89: 35 | X89: 32.45 | Y89: 22 | Z89: 22 | AA89: 19 | AB89: 15.6 | AC89: 14 | AD89: 17 | AE89: 13.5 | AF89: 13.75 | AG89: 10 | AH89: 11 | AI89: 8 | AJ89: 8 | AK89: 0 | AL89: -0.06513709602
A90: C/B | B90: DENALI | C90: HEALY | D90: 194.6 | E90: 193.2 | F90: 220.4 | G90: 230.4 | H90: 232.25 | I90: 239 | J90: 250.9 | K90: 232.65 | L90: 227.1 | M90: 216.1 | N90: 219.55 | O90: 196.25 | P90: 193.7 | Q90: 193.25 | R90: 198 | S90: 183.05 | T90: 171.15 | U90: 162.55 | V90: 155.85 | W90: 168.85 | X90: 178.75 | Y90: 176.25 | Z90: 186.01 | AA90: 174.25 | AB90: 173.67 | AC90: 159.78 | AD90: 166 | AE90: 175.8 | AF90: 182.4 | AG90: 170.55 | AH90: 126.05 | AI90: 125.69 | AJ90: 150.75 | AK90: 0.1993794256 | AL90: -0.009229522248
A91: C/B | B91: DENALI | C91: TOTAL | D91: =SUM(D88:D90) -> 333.2 | E91: 329.6 | F91: 369.55 | G91: 375.15 | H91: 384.55 | I91: 377.75 | J91: 390.9 | K91: 349.85 | L91: 362.1 | M91: 326.5 | N91: 312.65 | O91: 287.5 | P91: 296.75 | Q91: 305.15 | R91: 304.5 | S91: 280 | T91: 243.1 | U91: =SUM(U88:U90) -> 244.75 | V91: =SUM(V88:V90) -> 233.5 | W91: 235.85 | X91: 250.05 | Y91: 229.75 | Z91: 231.11 | AA91: 208.8 | AB91: 208.27 | AC91: 205.78 | AD91: 214.25 | AE91: 223.05 | AF91: =SUM(AF88:AF90) -> 223.15 | AG91: =SUM(AG88:AG90) -> 212.8 | AH91: 163.7 | AI91: =SUM(AI88:AI90) -> 155.94 | AJ91: 177 | AK91: 0.1350519431 | AL91: -0.01484245182
A92: C/B | B92: DILLINGHAM | C92: DILLINGHAM | D92: 480.5 | E92: 504.1 | F92: 488.05 | G92: 485.5 | H92: 496.2 | I92: 524 | J92: 541.25 | K92: =339.45+243.7 -> 583.15 | L92: 548.05 | M92: 561.8 | N92: 579.85 | O92: 540.7 | P92: 520.66 | Q92: 513.13 | R92: 531.8 | S92: 504.9 | T92: 531.43 | U92: 499.7 | V92: 495.45 | W92: 469.52 | X92: 474.2 | Y92: 462.1 | Z92: 481.25 | AA92: 482.6 | AB92: 465.3 | AC92: 444.95 | AD92: 472.45 | AE92: 475.7 | AF92: 459.35 | AG92: 438.85 | AH92: 410.6 | AI92: 424.5 | AJ92: 407.85 | AK92: -0.03922261484 | AL92: -0.0154740853
A93: C/B | B93: DILLINGHAM | C93: TOTAL | D93: =SUM(D92) -> 480.5 | E93: 504.1 | F93: 488.05 | G93: 485.5 | H93: 496.2 | I93: 524 | J93: 541.25 | K93: 583.15 | L93: 548.05 | M93: 561.8 | N93: 579.85 | O93: 540.7 | P93: 520.66 | Q93: 513.13 | R93: 531.8 | S93: 504.9 | T93: 531.43 | U93: =SUM(U92) -> 499.7 | V93: =SUM(V92) -> 495.45 | W93: 469.52 | X93: 474.2 | Y93: 462.1 | Z93: 481.25 | AA93: 482.6 | AB93: 465.3 | AC93: 444.95 | AD93: 472.45 | AE93: 475.7 | AF93: =SUM(AF92) -> 459.35 | AG93: =SUM(AG92) -> 438.85 | AH93: 410.6 | AI93: =SUM(AI92) -> 424.5 | AJ93: 407.85 | AK93: -0.03922261484 | AL93: -0.0154740853
A94: C/B | B94: FAIRBANKS | C94: FAIRBANKS | D94: 9506.3 | E94: 9884.7 | F94: 10454.5 | G94: 10577.5 | H94: 10451 | I94: 10797 | J94: 11047.2 | K94: =6331.45+4881.64 -> 11213.09 | L94: =504.88+446.5+1447.74+599.23+815.1+511.3+1206.7+556.53+446.3+232.8+341.6+488.45+475.9+406.86+881.35+629.7+563.9-L99 -> 9925.14 | M94: =15366.65-M95-M96-M97-M98-42-M99 -> 9830.55 | N94: 9704.64 | O94: 9960.61 | P94: =9387.38 -> 9387.38 | Q94: =9062.76 -> 9062.76 | R94: 9280.97 | S94: 8906.51 | T94: =468.3+369.05+155+399.7+317.7+349.05+370.8+333.95+1275.97+373.25+420.3+391.65+374.35+505+531.95+474.45+1218.03+468.25+97.65+194.93+73.83+40 -> 9203.16 | U94: 8514.68 | V94: 8533.08 | W94: 8639.6 | X94: 8609.69 | Y94: 8737.91 | Z94: 8661.09 | AA94: 8552.96 | AB94: 8397.35 | AC94: 8440 | AD94: 8335.32 | AE94: 8296.82 | AF94: 8132.06 | AG94: 8044.41 | AH94: 6402.31 | AI94: 7016.39 | AJ94: 7216.11 | AK94: 0.02846478032 | AL94: -0.01529105787
A95: C/B | B95: FAIRBANKS | C95: NORTH POLE | D95: 3134.6 | E95: 3208.6 | F95: 3055.5 | G95: 3078.5 | H95: 3189 | I95: 3222 | J95: 3245.55 | K95: =1659.33+1621.5 -> 3280.83 | L95: =490.34+414.65+470.35+241.5+541.7+1024.8 -> 3183.34 | M95: 3092.36 | N95: 2925.59 | O95: 2487.81 | P95: 2856.44 | Q95: 2912.24 | R95: 2907.02 | S95: 2952.84 | T95: =576.3+513.45+882.4+440.08+524.45 -> 2936.68 | U95: 2962.69 | V95: 3035.84 | W95: 3082.55 | X95: 2988.64 | Y95: 2808.92 | Z95: 2910.67 | AA95: 2876.01 | AB95: 2910.04 | AC95: 2867.93 | AD95: 2853.3 | AE95: 2701.06 | AF95: 2571.64 | AG95: 2422.39 | AH95: 1777.83 | AI95: 2153.03 | AJ95: 2207.92 | AK95: 0.02549430338 | AL95: -0.02605315377
A96: C/B | B96: FAIRBANKS | C96: SALCHA | D96: 102.8 | E96: 89.2 | F96: 81 | G96: 73 | H96: 66.5 | I96: 85.5 | J96: 75.2 | K96: 86.63 | L96: 80.3 | M96: 76 | N96: 73.35 | O96: 79.95 | P96: 71.65 | Q96: 84.7 | R96: 98.2 | S96: 89.19 | T96: 99.5 | U96: 85.79 | V96: 97 | W96: 101 | X96: 88 | Y96: 83 | Z96: 84 | AA96: 76.01 | AB96: 68.8 | AC96: 77.65 | AD96: 73.25 | AE96: 69.24 | AF96: 81.9 | AG96: 78 | AH96: 43 | AI96: 64 | AJ96: 66.4 | AK96: 0.0375 | AL96: 0.02870031972
A97: C/B | B97: FAIRBANKS | C97: TWO RIVERS | D97: 112.5 | E97: 113.1 | F97: 109.5 | G97: 126 | H97: 118.5 | I97: 128.5 | J97: 118.5 | K97: 128.25 | L97: 119 | M97: 104.85 | N97: 103.2 | O97: 86.7 | P97: 98.65 | Q97: 96.35 | R97: 122.05 | S97: 113.05 | T97: 91.15 | U97: 107.12 | V97: 99.23 | W97: 92.55 | X97: 92.5 | Y97: 88.2 | Z97: 87.45 | AA97: 97.45 | AB97: 87.42 | AC97: 98.8 | AD97: 94.95 | AE97: 86.35 | AF97: 71.95 | AG97: 74.65 | AH97: 41.15 | AI97: 66.4 | AJ97: 65.45 | AK97: -0.01430722892 | AL97: 0.002742260686
A98: C/B | B98: FAIRBANKS | C98: EIELSON | D98: 1389.6 | E98: 1587.6 | F98: 1550 | G98: 1553 | H98: 1581.5 | I98: 1583 | J98: 1645.2 | K98: =1038.6+600.4 -> 1639 | L98: =533.49+435.7+574.05 -> 1543.24 | M98: =488.05+615.88+567.25 -> 1671.18 | N98: 1657.15 | O98: 1600.66 | P98: 1572.16 | Q98: 1513.23 | R98: 1428.1 | S98: 1342.75 | T98: =347.25+596.25+378.65 -> 1322.15 | U98: 1150.4 | V98: 1102.2 | W98: 1107.15 | X98: 1092.88 | Y98: 1016.09 | Z98: 972.7 | AA98: 948.03 | AB98: 853.24 | AC98: 875.96 | AD98: 876.5 | AE98: 860.42 | AF98: 812.75 | AG98: 858.53 | AH98: 733.22 | AI98: 849.64 | AJ98: 861.52 | AK98: 0.01398239254 | AL98: 0.004578185139
A99: C/B | B99: FAIRBANKS | C99: FT. WAINWRIGHT | L99: 629.7 | M99: 549.71 | N99: 639.36 | O99: 687.9 | P99: 702.2 | Q99: 504.08 | R99: 498.7 | S99: 414.54 | T99: 509.15 | U99: 532.28 | V99: 531.15 | W99: 522.25 | X99: 475.36 | Y99: 569.53 | Z99: 569.3 | AA99: 530.05 | AB99: 524.51 | AC99: 535.57 | AD99: 535.36 | AE99: 530.26 | AF99: 446.32 | AG99: 413.49 | AH99: 360.99 | AI99: 422.81 | AJ99: 464.53 | AK99: 0.09867316289 | AL99: -0.009716551188
A100: C/B | B100: FAIRBANKS | C100: TOTAL | D100: =SUM(D94:D99) -> 14245.8 | E100: 14883.2 | F100: 15250.5 | G100: 15408 | H100: 15406.5 | I100: 15816 | J100: 16131.65 | K100: 16347.8 | L100: 15480.72 | M100: 15324.65 | N100: 15103.29 | O100: 14903.63 | P100: 14688.48 | Q100: 14173.36 | R100: 14335.04 | S100: 13818.88 | T100: 14161.79 | U100: =SUM(U94:U99) -> 13352.96 | V100: =SUM(V94:V99) -> 13398.5 | W100: 13545.1 | X100: 13347.07 | Y100: 13303.65 | Z100: 13285.21 | AA100: 13080.51 | AB100: 12841.36 | AC100: 12895.91 | AD100: 12768.68 | AE100: 12544.15 | AF100: =SUM(AF94:AF99) -> 12116.62 | AG100: =SUM(AG94:AG99) -> 11891.47 | AH100: 9358.5 | AI100: =SUM(AI94:AI99) -> 10572.27 | AJ100: 10881.93 | AK100: 0.02928983085 | AL100: -0.01623583822
A101: C/B | B101: GALENA | C101: GALENA | D101: 121.4 | E101: 142.3 | F101: 128.45 | G101: 133.1 | H101: 142 | I101: 149.1 | J101: 161 | K101: =110+96 -> 206 | L101: 237 | M101: =122+45 -> 167 | N101: 177 | O101: =90.15+86.35 -> 176.5 | P101: =87+76 -> 163 | Q101: 222.6 | R101: 205.85 | S101: 123.2 | T101: 226.55 | U101: 233.15 | V101: 222.25 | W101: 270.5 | X101: 293.35 | Y101: 294.3 | Z101: 310.45 | AA101: 285.25 | AB101: 300.7 | AC101: 313.95 | AD101: 310.2 | AE101: 316.1 | AF101: 317.25 | AG101: 285.8 | AH101: 141.5 | AI101: 225.31 | AJ101: 268 | AK101: 0.1894722826 | AL101: 0.0290643433
A102: C/B | B102: GALENA | C102: TOTAL | D102: =SUM(D101) -> 121.4 | E102: 142.3 | F102: 128.45 | G102: 133.1 | H102: 142 | I102: 149.1 | J102: 161 | K102: 206 | L102: 237 | M102: 167 | N102: 177 | O102: 176.5 | P102: 163 | Q102: 222.6 | R102: 205.85 | S102: 123.2 | T102: 226.55 | U102: =SUM(U101) -> 233.15 | V102: =SUM(V101) -> 222.25 | W102: 270.5 | X102: 293.35 | Y102: 294.3 | Z102: 310.45 | AA102: 285.25 | AB102: 300.7 | AC102: 313.95 | AD102: 310.2 | AE102: 316.1 | AF102: =SUM(AF101) -> 317.25 | AG102: =SUM(AG101) -> 285.8 | AH102: 141.5 | AI102: =SUM(AI101) -> 225.31 | AJ102: 268 | AK102: 0.1894722826 | AL102: 0.0290643433
A103: C/B | B103: HAINES | C103: HAINES | D103: 380 | E103: 413.8 | F103: 413.4 | G103: 394.05 | H103: 403.15 | I103: 426.9 | J103: 436.4 | K103: 425.4 | L103: 424.75 | M103: =182.5+135.25+67.55 -> 385.3 | N103: =375.15 -> 375.15 | O103: =178.25+128.55+52.4 -> 359.2 | P103: =300.95 -> 300.95 | Q103: =135.89+153.1 -> 288.99 | R103: 265.47 | S103: 256.4 | T103: =171.15+98.25 -> 269.4 | U103: 286.4 | V103: 272.25 | W103: 282.09 | X103: 278.15 | Y103: 285.7 | Z103: 264.05 | AA103: 250.75 | AB103: 258.54 | AC103: 257.31 | AD103: 240.55 | AE103: 252.97 | AF103: 247.35 | AG103: 258.65 | AH103: 201.4 | AI103: 233.97 | AJ103: 244.1 | AK103: 0.04329614908 | AL103: -0.001390065584
A104: C/B | B104: HAINES | C104: MOSQUITO LAKE | D104: 20 | E104: 20.1 | F104: 18.9 | G104: 15 | H104: 10 | I104: 8 | J104: 8.5 | K104: 13 | L104: 9 | M104: 16.4 | N104: 10.5 | O104: 10 | P104: 11 | Q104: 14 | R104: 11.1 | S104: 14 | T104: 10.35 | U104: 14.65 | V104: 18 | W104: 14 | X104: 15 | Y104: 14.45 | Z104: 10 | AA104: 9 | AB104: closed | AC104: closed | AD104: closed | AE104: closed | AF104: closed | AG104: closed | AH104: closed | AI104: closed | AJ104: closed | AK104: n/a | AL104: n/a
A105: C/B | B105: HAINES | C105: HOMESHORE | D105: 15 | E105: 14 | F105: closed | G105: closed | H105: closed | I105: closed | J105: closed | K105: closed | L105: closed | M105: closed | N105: closed | O105: closed | P105: closed | Q105: closed | R105: closed | S105: closed | T105: closed | U105: closed | V105: closed | W105: closed | X105: closed | Y105: closed | Z105: closed | AA105: closed | AB105: closed | AC105: closed | AD105: closed | AE105: closed | AF105: closed | AG105: closed | AH105: closed | AI105: closed | AJ105: closed | AK105: n/a | AL105: n/a
A106: C/B | B106: HAINES | C106: TOTAL | D106: =SUM(D103:D105) -> 415 | E106: 447.9 | F106: 432.3 | G106: 409.05 | H106: 413.15 | I106: 434.9 | J106: 444.9 | K106: 438.4 | L106: 433.75 | M106: 401.7 | N106: 385.65 | O106: 369.2 | P106: 311.95 | Q106: 302.99 | R106: 276.57 | S106: 270.4 | T106: 279.75 | U106: =SUM(U103:U105) -> 301.05 | V106: =SUM(V103:V105) -> 290.25 | W106: 296.09 | X106: 293.15 | Y106: 300.15 | Z106: 274.05 | AA106: 259.75 | AB106: 258.54 | AC106: 257.31 | AD106: 240.55 | AE106: 252.97 | AF106: =SUM(AF103:AF105) -> 247.35 | AG106: =SUM(AG103:AG105) -> 258.65 | AH106: 201.4 | AI106: =SUM(AI103:AI105) -> 233.97 | AJ106: 244.1 | AK106: 0.04329614908 | AL106: -0.001390065584
A107: C/B | B107: HOONAH | C107: HOONAH | D107: 234 | E107: 230 | F107: 269 | G107: 267 | H107: 259.4 | I107: 273.7 | J107: 271 | K107: 260.15 | L107: 230.85 | M107: 236.75 | N107: 226.9 | O107: 211.3 | P107: 188.4 | Q107: 179.4 | R107: 171.7 | S107: 166.5 | T107: 152.95 | U107: 131.4 | V107: 123.45 | W107: 106.07 | X107: 120.7 | Y107: 113.75 | Z107: 114.3 | AA107: 101.8 | AB107: 112.2 | AC107: 115.45 | AD107: 107.75 | AE107: 117.25 | AF107: 112.95 | AG107: 124.75 | AH107: 128.89 | AI107: 121.65 | AJ107: 111.09 | AK107: -0.08680641184 | AL107: 0.001055363539
A108: C/B | B108: HOONAH | C108: TOTAL | D108: =SUM(D107) -> 234 | E108: 230 | F108: 269 | G108: 267 | H108: 259.4 | I108: 273.7 | J108: 271 | K108: 260.15 | L108: 230.85 | M108: 236.75 | N108: 226.9 | O108: 211.3 | P108: 188.4 | Q108: 179.4 | R108: 171.7 | S108: 166.5 | T108: 152.95 | U108: =SUM(U107) -> 131.4 | V108: =SUM(V107) -> 123.45 | W108: 106.07 | X108: 120.7 | Y108: 113.75 | Z108: 114.3 | AA108: 101.8 | AB108: 112.2 | AC108: 115.45 | AD108: 107.75 | AE108: 117.25 | AF108: =SUM(AF107) -> 112.95 | AG108: 124.75 | AH108: 128.89 | AI108: =SUM(AI107) -> 121.65 | AJ108: 111.09 | AK108: -0.08680641184 | AL108: 0.001055363539
A109: C/B | B109: HYDABURG | C109: HYDABURG | D109: 108.4 | E109: 119 | F109: 115.8 | G109: 109.2 | H109: 107.5 | I109: 104 | J109: 117 | K109: 123 | L109: 110.5 | M109: 107.85 | N109: 102.85 | O109: 100.1 | P109: 92.2 | Q109: 86.85 | R109: 74.5 | S109: 72.5 | T109: 79.6 | U109: 75.45 | V109: 66.63 | W109: 51.85 | X109: 62.65 | Y109: 44 | Z109: 53.45 | AA109: 66.1 | AB109: 70 | AC109: 81.4 | AD109: 67.65 | AE109: 73.7 | AF109: 81.35 | AG109: 81.35 | AH109: 67.9 | AI109: 64.65 | AJ109: 60 | AK109: -0.07192575406 | AL109: -0.01224461611
A110: C/B | B110: HYDABURG | C110: TOTAL | D110: =SUM(D109) -> 108.4 | E110: 119 | F110: 115.8 | G110: 109.2 | H110: 107.5 | I110: 104 | J110: 117 | K110: 123 | L110: 110.5 | M110: 107.85 | N110: 102.85 | O110: 100.1 | P110: 92.2 | Q110: 86.85 | R110: 74.5 | S110: 72.5 | T110: 79.6 | U110: =SUM(U109) -> 75.45 | V110: =SUM(V109) -> 66.63 | W110: 51.85 | X110: 62.65 | Y110: 44 | Z110: 53.45 | AA110: 66.1 | AB110: 70 | AC110: 81.4 | AD110: 67.65 | AE110: 73.7 | AF110: =SUM(AF109) -> 81.35 | AG110: 81.35 | AH110: 67.9 | AI110: =SUM(AI109) -> 64.65 | AJ110: 60 | AK110: -0.07192575406 | AL110: -0.01224461611
A111: REAA | B111: IDITAROD | C111: ANVIK | D111: 21 | E111: 23 | F111: 22.95 | G111: 26 | H111: 21.45 | I111: 26.4 | J111: 20.35 | K111: 29 | L111: 27.85 | M111: 26 | N111: 25.95 | O111: 22.18 | P111: 23.75 | Q111: 24 | R111: 27.5 | S111: 24.75 | T111: 24.4 | U111: 17.5 | V111: 17.95 | W111: 21 | X111: 14 | Y111: 17.65 | Z111: 22.11 | AA111: 18.25 | AB111: 12.2 | AC111: 11.98 | AD111: 17 | AE111: 18.6 | AF111: 14 | AG111: 12.65 | AH111: 17.95 | AI111: 15 | AJ111: 12 | AK111: -0.2 | AL111: 0.02575038855
A112: REAA | B112: IDITAROD | C112: GRAYLING | D112: 56.8 | E112: 62 | F112: 63 | G112: 63.75 | H112: 60.95 | I112: 70.35 | J112: 67.85 | K112: 75 | L112: 68.9 | M112: 70 | N112: 57.85 | O112: 61 | P112: 52 | Q112: 60.1 | R112: 44.4 | S112: 42.25 | T112: 43.65 | U112: 42.8 | V112: 40.95 | W112: 43.05 | X112: 44.3 | Y112: 41.6 | Z112: 34.8 | AA112: 34.1 | AB112: 48 | AC112: 43.95 | AD112: 40.7 | AE112: 45.55 | AF112: 47.5 | AG112: 49 | AH112: 47.5 | AI112: 44 | AJ112: 33.05 | AK112: -0.2488636364 | AL112: -0.03974113678
A113: REAA | B113: IDITAROD | C113: HOLY CROSS | D113: 59.1 | E113: 58.65 | F113: 72.35 | G113: 71.05 | H113: 69.35 | I113: 71 | J113: 69.25 | K113: 76.55 | L113: 58.45 | M113: 55.5 | N113: 60 | O113: 62.61 | P113: 56.2 | Q113: 52.4 | R113: 55.25 | S113: 43.54 | T113: 48.2 | U113: 44.35 | V113: 49.9 | W113: 42 | X113: 40.8 | Y113: 45.25 | Z113: 44.45 | AA113: 40 | AB113: 41 | AC113: 37.35 | AD113: 31.5 | AE113: 27.7 | AF113: 27.95 | AG113: 24 | AH113: 23.25 | AI113: 18.5 | AJ113: 24.05 | AK113: 0.3 | AL113: -0.05426692674
A114: REAA | B114: IDITAROD | C114: LAKE MINCHUMINA | F114: 9 | G114: 8 | H114: 10 | I114: 11 | J114: 13 | K114: 13 | L114: 6 | M114: 2 | N114: 0 | O114: closed | P114: closed | Q114: closed | R114: closed | S114: closed | T114: closed | U114: closed | V114: closed | W114: closed | X114: closed | Y114: closed | Z114: closed | AA114: closed | AB114: closed | AC114: closed | AD114: closed | AE114: closed | AF114: closed | AG114: closed | AH114: closed | AI114: closed | AJ114: closed | AK114: n/a | AL114: n/a
A115: REAA | B115: IDITAROD | C115: LIME VILLAGE | D115: 6.975 | E115: 7 | F115: 7.35 | G115: 8.5 | H115: 12 | I115: 7.4 | J115: 17 | K115: 17 | L115: 18.35 | M115: 14 | N115: 13 | O115: 15 | P115: 14.95 | Q115: 12 | R115: 13.85 | S115: 10.25 | T115: 11 | U115: closed | V115: closed | W115: closed | X115: closed | Y115: closed | Z115: closed | AA115: closed | AB115: closed | AC115: closed | AD115: closed | AE115: closed | AF115: closed | AG115: closed | AH115: closed | AI115: closed | AJ115: closed | AK115: n/a | AL115: n/a
A116: REAA | B116: IDITAROD | C116: MCGRATH | D116: 149.85 | E116: 167.5 | F116: 161.55 | G116: 142.6 | H116: 148 | I116: 139.7 | J116: 135.91 | K116: 121.9 | L116: 114 | M116: 109 | N116: 103.1 | O116: 92.9 | P116: 86.1 | Q116: 75.9 | R116: 62.63 | S116: 56.97 | T116: 53 | U116: 53.2 | V116: 43.85 | W116: 46.57 | X116: 51.63 | Y116: 58 | Z116: 48.2 | AA116: 59.5 | AB116: 59.15 | AC116: 49.95 | AD116: 49.5 | AE116: 35.6 | AF116: 33 | AG116: 32 | AH116: 32.5 | AI116: 29 | AJ116: 31.5 | AK116: 0.08620689655 | AL116: -0.06931887626
A117: REAA | B117: IDITAROD | C117: NIKOLAI | D117: 18 | E117: 17 | F117: 20 | G117: 16 | H117: 22 | I117: 15 | J117: 15 | K117: 19 | L117: 16 | M117: 13 | N117: 15.5 | O117: 20 | P117: 22 | Q117: 17.05 | R117: 20.85 | S117: 18.25 | T117: 16.25 | U117: 10.25 | V117: 19.85 | W117: 19.7 | X117: 18 | Y117: 11 | Z117: 10 | AA117: 10.75 | AB117: 14.55 | AC117: 15.7 | AD117: 14 | AE117: 11 | AF117: 11.4 | AG117: 14 | AH117: 11 | AI117: 13.2 | AJ117: 14 | AK117: 0.06060606061 | AL117: 0.008403248718
A118: REAA | B118: IDITAROD | C118: SHAGELUK | D118: 30.35 | E118: 44.1 | F118: 43 | G118: 42.75 | H118: 43.05 | I118: 43 | J118: 44 | K118: 45.85 | L118: 39 | M118: 46.4 | N118: 36 | O118: 35 | P118: 33.85 | Q118: 36 | R118: 34.45 | S118: 31 | T118: 34.25 | U118: 19.95 | V118: 12 | W118: 17 | X118: 14.55 | Y118: 11.2 | Z118: 12.25 | AA118: 14.1 | AB118: 15 | AC118: 16 | AD118: 15.8 | AE118: 12.7 | AF118: 22 | AG118: 23 | AH118: 22.05 | AI118: 26.25 | AJ118: 22.1 | AK118: -0.1580952381 | AL118: 0.0783473437
A119: REAA | B119: IDITAROD | C119: TAKOTNA | D119: 8 | E119: 6 | F119: 14 | G119: 12.3 | H119: 27.05 | I119: 35.7 | J119: 33.5 | K119: 60.6 | L119: 14 | M119: 16 | N119: 15 | O119: 28 | P119: 21 | Q119: 16 | R119: 14 | S119: 14 | T119: 13 | U119: 14 | V119: 12 | W119: 13.25 | X119: 13 | Y119: 10 | Z119: 10 | AA119: 10 | AB119: 18 | AC119: 16 | AD119: 15.4 | AE119: 21 | AF119: 21 | AG119: 15.4 | AH119: 14 | AI119: 12 | AJ119: 11.3 | AK119: -0.05833333333 | AL119: -0.04296762266
A120: REAA | B120: IDITAROD | C120: TELIDA | D120: 3 | E120: 3 | F120: 5 | G120: 8 | H120: 4 | I120: 3 | J120: closed | K120: closed | L120: closed | M120: closed | N120: closed | O120: closed | P120: closed | Q120: closed | R120: closed | S120: closed | T120: closed | U120: closed | V120: closed | W120: closed | X120: closed | Y120: closed | Z120: closed | AA120: closed | AB120: closed | AC120: closed | AD120: closed | AE120: closed | AF120: closed | AG120: closed | AH120: closed | AI120: closed | AJ120: closed | AK120: n/a | AL120: n/a
A121: REAA | B121: IDITAROD | C121: TOTAL | D121: =SUM(D111:D120) -> 353.075 | E121: 388.25 | F121: 418.2 | G121: 398.95 | H121: 417.85 | I121: 422.55 | J121: 415.86 | K121: 457.9 | L121: 362.55 | M121: 351.9 | N121: 326.4 | O121: 336.69 | P121: 309.85 | Q121: 293.45 | R121: 272.93 | S121: 241.01 | T121: 243.75 | U121: =SUM(U111:U120) -> 202.05 | V121: =SUM(V111:V120) -> 196.5 | W121: 202.57 | X121: 196.28 | Y121: 194.7 | Z121: 181.81 | AA121: 186.7 | AB121: 207.9 | AC121: 190.93 | AD121: 183.9 | AE121: 172.15 | AF121: =SUM(AF111:AF120) -> 176.85 | AG121: =SUM(AG111:AG120) -> 170.05 | AH121: 168.25 | AK121: n/a | AL121: n/a
A122: C/B | B122: JUNEAU | C122: JUNEAU | D122: 5124.3 | E122: 5247.3 | F122: 5412.7 | G122: 5394.45 | H122: 5399.75 | I122: 5515.35 | J122: 5586.45 | K122: =3051.24+2611.45 -> 5662.69 | L122: 5632.4 | M122: =5630.94-60-38.15 -> 5532.79 | N122: 5395.93 | O122: 5366.05 | P122: 5380.68 | Q122: 5272.82 | R122: 5253.05 | S122: 5063.2 | T122: 5072.45 | U122: 4892.48 | V122: 4802.29 | W122: 4835.92 | X122: 4797.73 | Y122: 4759.15 | Z122: 4766.73 | AA122: 4649.12 | AB122: 4625.25 | AC122: 4591.76 | AD122: 4641.69 | AE122: 4522.71 | AF122: 4592.58 | AG122: 4570.26 | AH122: 3592.7 | AI122: 4008.25 | AJ122: 4031.89 | AK122: 0.005897835714 | AL122: -0.01296800908
A123: C/B | B123: JUNEAU | C123: TOTAL | D123: =SUM(D122) -> 5124.3 | E123: 5247.3 | F123: 5412.7 | G123: 5394.45 | H123: 5399.75 | I123: 5515.35 | J123: 5586.45 | K123: 5662.69 | L123: 5632.4 | M123: 5532.79 | N123: 5395.93 | O123: 5366.05 | P123: 5380.68 | Q123: 5272.82 | R123: 5253.05 | S123: 5063.2 | T123: 5072.45 | U123: =SUM(U122) -> 4892.48 | V123: =SUM(V122) -> 4802.29 | W123: 4835.92 | X123: 4797.73 | Y123: 4759.15 | Z123: 4766.73 | AA123: 4649.12 | AB123: 4625.25 | AC123: 4591.76 | AD123: 4641.69 | AE123: 4522.71 | AF123: =SUM(AF122) -> 4592.58 | AG123: 4570.26 | AH123: 3592.7 | AI123: =SUM(AI122) -> 4008.25 | AJ123: 4031.89 | AK123: 0.005897835714 | AL123: -0.01296800908
A124: C/B | B124: KAKE | C124: KAKE | D124: 178.7 | E124: 185.05 | F124: 177 | G124: 175.25 | H124: 185 | I124: 191 | J124: 199.9 | K124: 194.4 | L124: 185.8 | M124: 166.7 | N124: 165 | O124: 171.62 | P124: 151.85 | Q124: 155.15 | R124: 141.75 | S124: 116 | T124: 103.55 | U124: 101.45 | V124: 93.35 | W124: 88.5 | X124: 85.4 | Y124: 92.6 | Z124: 105.33 | AA124: 104 | AB124: 109.7 | AC124: 107.65 | AD124: 96 | AE124: 102.6 | AF124: 104 | AG124: 103.25 | AH124: 92.14 | AI124: 103 | AJ124: 102.9 | AK124: -0.0009708737864 | AL124: -0.00530429872
A125: C/B | B125: KAKE | C125: TOTAL | D125: =SUM(D124) -> 178.7 | E125: 185.05 | F125: 177 | G125: 175.25 | H125: 185 | I125: 191 | J125: 199.9 | K125: 194.4 | L125: 185.8 | M125: 166.7 | N125: 165 | O125: 171.62 | P125: 151.85 | Q125: 155.15 | R125: 141.75 | S125: 116 | T125: 103.55 | U125: =SUM(U124) -> 101.45 | V125: =SUM(V124) -> 93.35 | W125: 88.5 | X125: 85.4 | Y125: 92.6 | Z125: 105.33 | AA125: 104 | AB125: 109.7 | AC125: 107.65 | AD125: 96 | AE125: 102.6 | AF125: =SUM(AF124) -> 104 | AG125: 103.25 | AH125: 92.14 | AI125: =SUM(AI124) -> 103 | AJ125: 102.9 | AK125: -0.0009708737864 | AL125: -0.00530429872
A126: REAA | B126: KASHUNAMIUT | C126: CHEVAK | D126: 181.7 | E126: 191.15 | F126: 191.65 | G126: 207.6 | H126: 229.9 | I126: 244 | J126: 246.95 | K126: 269.85 | L126: 279 | M126: 298.2 | N126: 314 | O126: 321.8 | P126: 350.4 | Q126: 362.25 | R126: 354.65 | S126: 330.55 | T126: 339.2 | U126: 325.55 | V126: 312.5 | W126: 301.75 | X126: 305.95 | Y126: 311.65 | Z126: 302.33 | AA126: 316.7 | AB126: 317.15 | AC126: 331.6 | AD126: 342.35 | AE126: 320.6 | AF126: 317.95 | AG126: 302.15 | AH126: 306.85 | AI126: 307.3 | AJ126: 310.9 | AK126: 0.01171493654 | AL126: -0.001846665116
A127: REAA | B127: KASHUNAMIUT | C127: TOTAL | D127: =SUM(D126) -> 181.7 | E127: 191.15 | F127: 191.65 | G127: 207.6 | H127: 229.9 | I127: 244 | J127: 246.95 | K127: 269.85 | L127: 279 | M127: 298.2 | N127: 314 | O127: 321.8 | P127: 350.4 | Q127: 362.25 | R127: 354.65 | S127: 330.55 | T127: 339.2 | U127: =SUM(U126) -> 325.55 | V127: =SUM(V126) -> 312.5 | W127: 301.75 | X127: 305.95 | Y127: 311.65 | Z127: 302.33 | AA127: 316.7 | AB127: 317.15 | AC127: 331.6 | AD127: 342.35 | AE127: 320.6 | AF127: =SUM(AF126) -> 317.95 | AG127: 302.15 | AH127: =SUM(AH126) -> 306.85 | AI127: =SUM(AI126) -> 307.3 | AJ127: 310.9 | AK127: 0.01171493654 | AL127: -0.001846665116
A128: C/B | B128: KENAI PENINSULA | C128: ANCHOR POINT | D128: 211.12 | E128: 211.25 | F128: 213.3 | G128: 230.6 | H128: 249.35 | I128: 262 | J128: 242.75 | K128: 248.9 | L128: 236.85 | M128: homer | N128: homer | O128: homer | P128: homer | Q128: homer | R128: homer | S128: homer | T128: homer | U128: homer | V128: homer | W128: homer | X128: homer | Y128: homer | Z128: homer | AA128: homer | AB128: homer | AC128: homer | AD128: homer | AE128: homer | AF128: homer | AG128: homer | AH128: homer | AI128: homer | AJ128: homer | AK128: n/a | AL128: n/a
A129: C/B | B129: KENAI PENINSULA | C129: BELUGA | D129: 3 | G129: 8 | H129: 6 | K129: 36 | L129: closed | M129: closed | N129: closed | O129: closed | P129: closed | Q129: closed | R129: closed | S129: closed | T129: closed | U129: closed | V129: closed | W129: closed | X129: closed | Y129: closed | Z129: closed | AA129: closed | AB129: closed | AC129: closed | AD129: closed | AE129: closed | AF129: closed | AG129: closed | AH129: closed | AI129: closed | AJ129: closed | AK129: n/a | AL129: n/a
A130: C/B | B130: KENAI PENINSULA | C130: COOPER LANDING | D130: 30 | E130: 41 | F130: 45.85 | G130: 48.35 | H130: 41.35 | I130: 39.5 | J130: 37 | K130: 37 | L130: 35 | M130: 36.35 | N130: 34.5 | O130: 32.1 | P130: 21.1 | Q130: 13 | R130: 12 | S130: 11 | T130: 10.75 | U130: 11.25 | V130: 11 | W130: 6.25 | X130: 10 | Y130: 10 | Z130: 11.55 | AA130: 17 | AB130: 18.7 | AC130: 14.65 | AD130: 18 | AE130: 15 | AF130: 13.9 | AG130: 13 | AH130: 11 | AI130: 13 | AJ130: 19.25 | AK130: 0.4807692308 | AL130: 0.0270105574
A131: C/B | B131: KENAI PENINSULA | C131: ENGLISH BAY | D131: 60 | E131: 55.95 | F131: 50 | G131: Nanwalek | H131: Nanwalek | I131: Nanwalek | J131: Nanwalek | K131: Nanwalek | L131: Nanwalek | M131: Nanwalek | N131: Nanwalek | O131: Nanwalek | P131: Nanwalek | Q131: Nanwalek | R131: Nanwalek | S131: Nanwalek | T131: Nanwalek | U131: Nanwalek | V131: Nanwalek | W131: Nanwalek | X131: Nanwalek | Y131: Nanwalek | Z131: Nanwalek | AA131: Nanwalek | AB131: Nanwalek | AC131: Nanwalek | AD131: Nanwalek | AE131: Nanwalek | AF131: nanwalek | AG131: nanwalek | AH131: nanwalek | AI131: nanwalek | AJ131: nanwalek | AK131: n/a | AL131: n/a
A132: C/B | B132: KENAI PENINSULA | C132: HOMER | D132: =1214.9+D128+D137+D144 -> 1651.67 | E132: =1237.95+E128+E137+E144 -> 1680.2 | F132: =1238.75+F128+F137+F144 -> 1679.7 | G132: =1280.6+G128+G137+G144 -> 1731.55 | H132: =1314.2+H128+H137+H144 -> 1807.35 | I132: =1339.6+I128+I137+I144 -> 1835.25 | J132: =1387.29+J128+J137+J144 -> 1840.19 | K132: =599.8+834+K128+K137+K144 -> 1872.45 | L132: =310.2+221.55+536.75+213.25+L128+L137+L144 -> 1712.35 | M132: =1778.86-M134 -> 1709.11 | N132: 1637.88 | O132: 1545 | P132: 1557.07 | Q132: 1528.95 | R132: 1564.13 | S132: 1523.78 | T132: =120.9+213.8+496.23+122.25+196.43+36.25+223.85+36.7+66 -> 1512.41 | U132: 1468.71 | V132: 1473.57 | W132: 1440.87 | X132: 1439.43 | Y132: 1442.13 | Z132: 1444.62 | AA132: 1436.01 | AB132: 1442.26 | AC132: 1413.12 | AD132: 1495.31 | AE132: 1525.78 | AF132: 1526.7 | AG132: 1462.89 | AH132: 1211.26 | AI132: 1384.49 | AJ132: 1434.28 | AK132: =IFERROR((AJ132-AI132)/AI132,"n/a") -> 0.03596270107 | AL132: 0.003013987149
A133: C/B | B133: KENAI PENINSULA | C133: HOPE | D133: 23.45 | E133: 30 | F133: 29 | G133: 31.5 | H133: 44.65 | I133: 32.8 | J133: 32 | K133: 20.4 | L133: 25.8 | M133: 17.75 | N133: 15 | O133: 11.95 | P133: 14 | Q133: 18.55 | R133: 14 | S133: 11.2 | T133: 15.15 | U133: 9 | V133: 10.15 | W133: 15.5 | X133: 13 | Y133: 12 | Z133: 16.8 | AA133: 17.25 | AB133: 22 | AC133: 16 | AD133: 17 | AE133: 17 | AF133: 17 | AG133: 16 | AH133: 26.4 | AI133: 19 | AJ133: 20.25 | AK133: 0.06578947368 | AL133: =IFERROR(((AJ133-AI133)/AI133+(AI133-AH133)/AH133+(AH133-AG133)/AG133+(AG133-AF133)/AF133+(AF133-AE133)/AE133+(AE133-AD133)/AD133+(AD133-AC133)/AC133+(AC133-AB133)/AB133)/8,"n/a") -> 0.02080445516
A134: C/B | B134: KENAI PENINSULA | C134: KACHEMAK | E134: 59 | F134: 56.2 | G134: 63.3 | H134: 55.7 | I134: 54 | J134: 58.35 | K134: 66.5 | L134: 65 | M134: 69.75 | N134: 67 | O134: 64 | P134: 79 | Q134: 73.15 | R134: 81.65 | S134: 88 | T134: 81.75 | U134: 86 | V134: 83 | W134: 82.7 | X134: 84.4 | Y134: 75 | Z134: 64 | AA134: 63 | AB134: 57.75 | AC134: 49 | AD134: 48 | AE134: 46.31 | AF134: 43 | AG134: 37.45 | AH134: 30.2 | AI134: 31 | AJ134: 30 | AK134: -0.03225806452 | AL134: -0.07587946407
A135: C/B | B135: KENAI PENINSULA | C135: KASILOF | D135: 262.75 | E135: 280 | F135: 264.6 | G135: 273.75 | H135: 272.5 | I135: 281.95 | J135: 272.76 | K135: 295.7 | L135: 278.65 | M135: soldotna | N135: soldotna | O135: soldotna | P135: soldotna | Q135: soldotna | R135: soldotna | S135: soldotna | T135: soldotna | U135: soldotna | V135: soldotna | W135: soldotna | X135: soldotna | Y135: soldotna | Z135: soldotna | AA135: soldotna | AB135: soldotna | AC135: soldotna | AD135: soldotna | AE135: soldotna | AF135: soldotna | AG135: soldotna | AH135: soldotna | AI135: soldotna | AJ135: soldotna | AK135: n/a | AL135: n/a
A136: C/B | B136: KENAI PENINSULA | C136: KENAI | D136: 1568.33 | E136: 1691.35 | F136: 1736.65 | G136: 1722.55 | H136: 1731.1 | I136: 1767.25 | J136: 1788 | K136: =925.65+831.5 -> 1757.15 | L136: =376.85+413.23+159.45+283.19+512.95+30.05 -> 1775.72 | M136: 1747.53 | N136: 1754.95 | O136: 1718.81 | P136: 1652.71 | Q136: 1606.63 | R136: 1785.71 | S136: 1655.61 | T136: =526.35+387.7+233.4+210.5+86.55+178 -> 1622.5 | U136: 1797.72 | V136: 1839.38 | W136: 1838.86 | X136: 1848.41 | Y136: 1845.21 | Z136: 1869.86 | AA136: 1831.15 | AB136: 1810.34 | AC136: 1825.09 | AD136: 1770.21 | AE136: 1795.92 | AF136: 1817.82 | AG136: 1737.96 | AH136: 1410.61 | AI136: 1664.39 | AJ136: 1722.13 | AK136: 0.03469138844 | AL136: -0.001611185503
A137: C/B | B137: KENAI PENINSULA | C137: MCNEIL CANYON | D137: 195.9 | E137: 194 | F137: 196.65 | G137: 183.9 | H137: 203.8 | I137: 197.7 | J137: 184.4 | K137: 153.6 | L137: 150.95 | M137: homer | N137: homer | O137: homer | P137: homer | Q137: homer | R137: homer | S137: homer | T137: homer | U137: homer | V137: homer | W137: homer | X137: homer | Y137: homer | Z137: homer | AA137: homer | AB137: homer | AC137: homer | AD137: homer | AE137: homer | AF137: homer | AG137: homer | AH137: homer | AI137: homer | AJ137: homer | AK137: n/a | AL137: n/a
A138: C/B | B138: KENAI PENINSULA | C138: MOOSE PASS | D138: 27 | E138: 35.85 | F138: 31.15 | G138: 34 | H138: 35 | I138: 39 | J138: 37 | K138: 37.8 | L138: 34.4 | M138: 42.35 | N138: 40 | O138: 46 | P138: 42.3 | Q138: 35.7 | R138: 34.85 | S138: 31.8 | T138: 28.65 | U138: 28.05 | V138: 29.4 | W138: 15.75 | X138: 15.85 | Y138: 18 | Z138: 17 | AA138: 16.1 | AB138: 13.75 | AC138: 10 | AD138: 11 | AE138: 13.95 | AF138: 17 | AG138: 20.75 | AH138: 18 | AI138: 15 | AJ138: 18.15 | AK138: 0.21 | AL138: 0.0556854983
A139: C/B | B139: KENAI PENINSULA | C139: NANWALEK | G139: 46 | H139: 45.4 | I139: 53 | J139: 59 | K139: 56.7 | L139: 59 | M139: 53.25 | N139: 48 | O139: 70 | P139: 75.7 | Q139: 63 | R139: 63 | S139: 58 | T139: 56.75 | U139: 62.95 | V139: 70 | W139: 70.85 | X139: 79.75 | Y139: 78.25 | Z139: 80.13 | AA139: 78.8 | AB139: 77.3 | AC139: 77.1 | AD139: 82.75 | AE139: 77.2 | AF139: 75.45 | AG139: 78.28 | AH139: 72.4 | AI139: 83.8 | AJ139: 80.85 | AK139: -0.03520286396 | AL139: 0.008200657707
A140: C/B | B140: KENAI PENINSULA | C140: NIKISKI | D140: 1044.05 | E140: 1086.95 | F140: 1101.55 | G140: 1118.5 | H140: 1121.8 | I140: 1126.8 | J140: 1137.35 | K140: =624.7+538.7 -> 1163.4 | L140: =323.45+245.6+533.35 -> 1102.4 | M140: =221.6+520.65+306.05 -> 1048.3 | N140: 989.52 | O140: 962.23 | P140: 956.8 | Q140: 876.75 | R140: 816.88 | S140: 768.73 | T140: =395.75+383.35 -> 779.1 | U140: 762.8 | V140: 727.6 | W140: 742.45 | X140: 773.99 | Y140: 744.29 | Z140: 728.96 | AA140: 744.75 | AB140: 755.76 | AC140: 719.44 | AD140: 734.89 | AE140: 711.65 | AF140: 678.68 | AG140: 659.78 | AH140: 439.85 | AI140: 565.99 | AJ140: 549.3 | AK140: -0.0294881535 | AL140: -0.02605380169
A141: C/B | B141: KENAI PENINSULA | C141: NIKOLAEVSK | D141: 160.95 | E141: 162.5 | F141: 149.1 | G141: 162.9 | H141: 159.25 | I141: 134.9 | J141: 136.05 | K141: 146.65 | L141: 144.85 | M141: 130.25 | N141: 114.75 | O141: 118.9 | P141: 100.05 | Q141: 89 | R141: 69.35 | S141: 65.5 | T141: 59.95 | U141: 55.45 | V141: 73.3 | W141: 72.5 | X141: 70.75 | Y141: 70.5 | Z141: 71 | AA141: 72.1 | AB141: 64 | AC141: 66 | AD141: 65.5 | AE141: 77.85 | AF141: 78.5 | AG141: 48.75 | AH141: 21 | AI141: 16.25 | AJ141: 29.5 | AK141: 0.8153846154 | AL141: -0.01730553389
A142: C/B | B142: KENAI PENINSULA | C142: NINILCHIK | D142: 159.35 | E142: 162.65 | F142: 179.35 | G142: 194.75 | H142: 201.75 | I142: 223.05 | J142: 243 | K142: 236.65 | L142: 234.3 | M142: 212.35 | N142: 198.63 | O142: 204.44 | P142: 185.45 | Q142: 181.75 | R142: 198.3 | S142: 169.4 | T142: 157.75 | U142: 174.5 | V142: 167 | W142: 169.87 | X142: 185.3 | Y142: 164.65 | Z142: 143.59 | AA142: 139.3 | AB142: 155.9 | AC142: 139.6 | AD142: 123 | AE142: 100.5 | AF142: 108.05 | AG142: 112.3 | AH142: 81.9 | AI142: 99.53 | AJ142: 114.75 | AK142: 0.152918718 | AL142: -0.02430705314
A143: C/B | B143: KENAI PENINSULA | C143: PORT GRAHAM | D143: 34 | E143: 34.9 | F143: 35 | G143: 38 | H143: 36 | I143: 35 | J143: 40 | K143: 37.4 | L143: 43.25 | M143: 36.8 | N143: 29 | O143: 34 | P143: 32 | Q143: 29.1 | R143: 29.45 | S143: 21 | T143: 20 | U143: 25 | V143: 20 | W143: 15 | X143: 20 | Y143: 21.4 | Z143: 19 | AA143: 20 | AB143: 27 | AC143: 26.6 | AD143: 36.5 | AE143: 33 | AF143: 37.15 | AG143: 33.95 | AH143: 30.6 | AI143: 27.7 | AJ143: 27 | AK143: -0.02527075812 | AL143: 0.01029737481
A144: C/B | B144: KENAI PENINSULA | C144: RAZDOLNA | D144: 29.75 | E144: 37 | F144: 31 | G144: 36.45 | H144: 40 | I144: 35.95 | J144: 25.75 | K144: 36.15 | L144: 42.8 | M144: homer | N144: homer | O144: homer | P144: homer | Q144: homer | R144: homer | S144: homer | T144: homer | U144: homer | V144: homer | W144: homer | X144: homer | Y144: homer | Z144: homer | AA144: homer | AB144: homer | AC144: homer | AD144: homer | AE144: homer | AF144: homer | AG144: homer | AH144: homer | AI144: homer | AJ144: homer | AK144: n/a | AL144: n/a
A145: C/B | B145: KENAI PENINSULA | C145: SELDOVIA | D145: 97.45 | E145: 90.5 | F145: 85.1 | G145: 96.6 | H145: 84.95 | I145: 98.05 | J145: 90.65 | K145: 96 | L145: 87.95 | M145: 78.75 | N145: 80.05 | O145: 85.95 | P145: 76.17 | Q145: 72.4 | R145: 62.75 | S145: 71.25 | T145: 66.7 | U145: 65.4 | V145: 61.4 | W145: 46 | X145: 49.2 | Y145: 43.5 | Z145: 40.75 | AA145: 48 | AB145: 40.5 | AC145: 45.65 | AD145: 32 | AE145: 34.47 | AF145: 31.53 | AG145: 32 | AH145: 45 | AI145: 48 | AJ145: 53.4 | AK145: 0.1125 | AL145: 0.05254566277
A146: C/B | B146: KENAI PENINSULA | C146: SEWARD | D146: 750.2 | E146: 796.75 | F146: 809.3 | G146: 843.15 | H146: 880.5 | I146: 899.75 | J146: 876.15 | K146: =420.2+433.95 -> 854.15 | L146: =409.9+440.6 -> 850.5 | M146: =410+423.28 -> 833.28 | N146: 807.8 | O146: 767.95 | P146: 760.65 | Q146: 704.2 | R146: 743.35 | S146: 638.6 | T146: =272.15+237.2 -> 509.35 | U146: 566.2 | V146: 549.74 | W146: 550.75 | X146: 530.63 | Y146: 536.33 | Z146: 572.9 | AA146: 570.4 | AB146: 590.75 | AC146: 607.25 | AD146: 597.41 | AE146: 579.23 | AF146: 560.59 | AG146: 566.23 | AH146: 452.8 | AI146: 484.34 | AJ146: 479.78 | AK146: -0.009414873849 | AL146: -0.02261364282
A147: C/B | B147: KENAI PENINSULA | C147: SOLDOTNA | D147: =2901.2+D148+D135 -> 3453.8 | E147: =2819.8+E148+E135 -> 3413.75 | F147: =2918.2+F148+F135 -> 3495.55 | G147: =2940.75+G148+G135 -> 3569 | H147: =3086.1+H148+H135 -> 3744.95 | I147: =3100.6+I148+I135 -> 3764.9 | J147: =3184.36+J148+J135 -> 3803.07 | K147: =1325.83+1895.25+K148+K135 -> 3842.23 | L147: =422.85+420.75+631.75+383.25+576.25+581.4+L148+L135 -> 3607.15 | M147: 3483.56 | N147: 3370.39 | O147: 3382.67 | P147: 3269.71 | Q147: 3171.97 | R147: 3214.27 | S147: 3210.56 | T147: =453.1+385.85+488.37+277.93+572.4+486+183.4+170.1+161 -> 3178.15 | U147: 3077 | V147: 3027.83 | W147: 2924.01 | X147: 2820.47 | Y147: 2881.37 | Z147: 2827.44 | AA147: 2808.45 | AB147: 2904.27 | AC147: 2898.77 | AD147: 2859.9 | AE147: 2823.78 | AF147: 2763.04 | AG147: 2755.22 | AH147: 2022.59 | AI147: 2522.87 | AJ147: 2581.14 | AK147: 0.02309671129 | AL147: -0.005967042075
A148: C/B | B148: KENAI PENINSULA | C148: STERLING | D148: 289.85 | E148: 313.95 | F148: 312.75 | G148: 354.5 | H148: 386.35 | I148: 382.35 | J148: 345.95 | K148: 325.45 | L148: 312.25 | M148: soldotna | N148: soldotna | O148: soldotna | P148: soldotna | Q148: soldotna | R148: soldotna | S148: soldotna | T148: soldotna | U148: soldotna | V148: soldotna | W148: soldotna | X148: soldotna | Y148: soldotna | Z148: soldotna | AA148: soldotna | AB148: soldotna | AC148: soldotna | AD148: soldotna | AE148: soldotna | AF148: soldotna | AG148: soldotna | AH148: soldotna | AI148: soldotna | AJ148: soldotna | AK148: n/a | AL148: n/a
A149: C/B | B149: KENAI PENINSULA | C149: TYONEK | D149: 42 | E149: 42.4 | F149: 30.45 | G149: 34.05 | H149: 39.6 | I149: 43 | J149: 37.45 | K149: 42.11 | L149: 40.3 | M149: 50 | N149: 44.9 | O149: 44.25 | P149: 42.75 | Q149: 39.6 | R149: 42 | S149: 50 | T149: 44.75 | U149: 31.8 | V149: 36.3 | W149: 30 | X149: 34.5 | Y149: 38.65 | Z149: 39.25 | AA149: 35.7 | AB149: 31.5 | AC149: 39 | AD149: 29 | AE149: 28.25 | AF149: 30.4 | AG149: 21 | AH149: 23.15 | AI149: 25 | AJ149: 26.8 | AK149: 0.072 | AL149: -0.002873357452
A150: C/B | B150: KENAI PENINSULA | C150: FRITZ CREEK | D150: 51.6 | E150: 65.55 | F150: 75.05 | G150: 103.85 | H150: 108.65 | I150: 134.45 | J150: 126.7 | K150: 111.25 | L150: 108.5 | M150: 135.25 | N150: 138.3 | O150: 135.55 | P150: 137 | Q150: 137 | R150: 129.75 | S150: 126.35 | T150: 127.1 | U150: 116 | V150: 117.5 | W150: 99.5 | X150: 96.45 | Y150: 102.45 | Z150: 98.78 | AA150: 103.75 | AB150: 111.1 | AC150: 104.25 | AD150: 99.8 | AE150: 97 | AF150: 101 | AG150: 111 | AH150: 105.4 | AI150: 118 | AJ150: 109 | AK150: -0.07627118644 | AL150: 8.398004643e-05
A151: C/B | B151: KENAI PENINSULA | C151: WINDY BAY | D151: 12.05 | E151: closed | F151: closed | G151: closed | H151: closed | I151: closed | J151: closed | K151: closed | L151: closed | M151: closed | N151: closed | O151: closed | P151: closed | Q151: closed | R151: closed | S151: closed | T151: closed | U151: closed | V151: closed | W151: closed | X151: closed | Y151: closed | Z151: closed | AA151: closed | AB151: closed | AC151: closed | AD151: closed | AE151: closed | AF151: closed | AG151: closed | AH151: closed | AI151: closed | AJ151: closed | AK151: n/a | AL151: n/a
A152: C/B | B152: KENAI PENINSULA | C152: TOTAL | D152: =SUM(D128:D151) -> 10158.27 | E152: =SUM(E128:E151) -> 10485.5 | F152: 10607.3 | G152: 10925.25 | H152: 11296 | I152: 11440.65 | J152: 11413.57 | K152: 11473.64 | L152: 10947.97 | M152: 9684.63 | N152: 9370.67 | O152: 9223.8 | P152: 9002.46 | Q152: 8640.75 | R152: 8861.44 | S152: 8500.78 | T152: 8270.81 | U152: 8337.83 | V152: 8297.17 | W152: 8120.86 | X152: 8072.13 | Y152: 8083.73 | Z152: 8045.63 | AA152: 8001.76 | AB152: 8122.88 | AC152: 8051.52 | AD152: 8020.27 | AE152: 7976.89 | AF152: =SUM(AF128:AF151) -> 7899.81 | AG152: =SUM(AG128:AG151) -> 7706.56 | AH152: 6002.16 | AI152: =SUM(AI128:AI151) -> 7118.36 | AJ152: 7295.58 | AK152: 0.02489618395 | AL152: -0.007812537534
A153: C/B | B153: KETCHIKAN | C153: KETCHIKAN | D153: 2693.25 | E153: 2663.5 | F153: 2690.1 | G153: 2735.38 | H153: 2728.93 | I153: 2850.4 | J153: 2856.25 | K153: =1464.7+1266.4 -> 2731.1 | L153: 2396.55 | M153: 2449.1 | N153: 2326.13 | O153: 2259.68 | P153: 2249.55 | Q153: 1988.47 | R153: 2281.6 | S153: 2088.42 | T153: 2225.3 | U153: 2067.7 | V153: 2059.63 | W153: 2088.18 | X153: 2071.16 | Y153: 2092.1 | Z153: 2091.65 | AA153: 2114.28 | AB153: 2143.7 | AC153: 2166.62 | AD153: 2228.24 | AE153: 2227.18 | AF153: 2180.45 | AG153: 2155.84 | AH153: 1905.27 | AI153: 2030.75 | AJ153: 1964.23 | AK153: -0.0327563708 | AL153: -0.009592133922
A154: C/B | B154: KETCHIKAN | C154: TOTAL | D154: =SUM(D153) -> 2693.25 | E154: =SUM(E153) -> 2663.5 | F154: 2690.1 | G154: 2735.38 | H154: 2728.93 | I154: 2850.4 | J154: 2856.25 | K154: 2731.1 | L154: 2396.55 | M154: 2449.1 | N154: 2326.13 | O154: 2259.68 | P154: 2249.55 | Q154: 1988.47 | R154: 2281.6 | S154: 2088.42 | T154: 2225.3 | U154: 2067.7 | V154: 2059.63 | W154: 2088.18 | X154: 2071.16 | Y154: 2092.1 | Z154: 2091.65 | AA154: 2114.28 | AB154: 2143.7 | AC154: 2166.62 | AD154: 2228.24 | AE154: 2227.18 | AF154: =SUM(AF153) -> 2180.45 | AG154: =SUM(AG153) -> 2155.84 | AH154: 1905.27 | AI154: =SUM(AI153) -> 2030.75 | AJ154: 1964.23 | AK154: -0.0327563708 | AL154: -0.009592133922
A155: C/B | B155: KLAWOCK | C155: KLAWOCK | D155: 201.9 | E155: 211.85 | F155: 202 | G155: 210 | H155: 206.95 | I155: 220.15 | J155: 210.3 | K155: 220.85 | L155: 196 | M155: 205 | N155: 194.9 | O155: 174 | P155: 158.9 | Q155: 147.68 | R155: 159.6 | S155: 135.6 | T155: 140.45 | U155: 135.5 | V155: 125.1 | W155: 136.55 | X155: 136.8 | Y155: 135.85 | Z155: 130.5 | AA155: 136.35 | AB155: 122.95 | AC155: 114.55 | AD155: 128.15 | AE155: 125.5 | AF155: 114.65 | AG155: 128.3 | AH155: 116.5 | AI155: 119.45 | AJ155: 123.9 | AK155: 0.03725408121 | AL155: 0.004116743527
A156: C/B | B156: KLAWOCK | C156: TOTAL | D156: =SUM(D155) -> 201.9 | E156: =SUM(E155) -> 211.85 | F156: 202 | G156: 210 | H156: 206.95 | I156: 220.15 | J156: 210.3 | K156: 220.85 | L156: 196 | M156: 205 | N156: 194.9 | O156: 174 | P156: 158.9 | Q156: 147.68 | R156: 159.6 | S156: 135.6 | T156: 140.45 | U156: 135.5 | V156: 125.1 | W156: 136.55 | X156: 136.8 | Y156: 135.85 | Z156: 130.5 | AA156: 136.35 | AB156: 122.95 | AC156: 114.55 | AD156: 128.15 | AE156: 125.5 | AF156: =SUM(AF155) -> 114.65 | AG156: =SUM(AG155) -> 128.3 | AH156: 116.5 | AI156: =SUM(AI155) -> 119.45 | AJ156: 123.9 | AK156: 0.03725408121 | AL156: 0.004116743527
A157: C/B | B157: KODIAK ISLAND | C157: AKHIOK | D157: 25.8 | E157: 26.75 | F157: 22.9 | G157: 30.38 | H157: 20.5 | I157: 21.1 | J157: 20 | K157: 32.85 | L157: 31.2 | M157: 18.5 | N157: 14 | O157: 14 | P157: 16.45 | Q157: 16.45 | R157: 16 | S157: 15 | T157: 11 | U157: 14 | V157: 16 | W157: 18 | X157: 14.8 | Y157: 17 | Z157: 19.25 | AA157: 22 | AB157: 26 | AC157: 23.8 | AD157: 27 | AE157: 19 | AF157: 13.9 | AG157: 16 | AH157: 11 | AI157: 14 | AJ157: 12.25 | AK157: -0.125 | AL157: -0.06607156783
A158: C/B | B158: KODIAK ISLAND | C158: BIG SANDY LAKE | D158: 5.7 | E158: 12.05 | F158: 8.3 | G158: 12 | H158: 14.9 | I158: 22.5 | J158: 19 | K158: 21 | L158: 14.1 | M158: 16 | N158: closed | O158: closed | P158: closed | Q158: closed | R158: closed | S158: closed | T158: closed | U158: closed | V158: closed | W158: closed | X158: closed | Y158: closed | Z158: closed | AA158: closed | AB158: closed | AC158: closed | AD158: closed | AE158: closed | AF158: closed | AG158: closed | AH158: closed | AI158: closed | AJ158: closed | AK158: n/a | AL158: n/a
A159: C/B | B159: KODIAK ISLAND | C159: CHINIAK | D159: 30.5 | E159: 29.95 | F159: 28.35 | G159: 33.2 | H159: 32.8 | I159: 30.63 | J159: 23.31 | K159: 25.5 | L159: 24.55 | M159: 20.5 | N159: 22 | O159: 18 | P159: 17 | Q159: 12 | R159: 11 | S159: 12.2 | T159: 13.3 | U159: 11.4 | V159: closed | W159: closed | X159: 10 | Y159: 15 | Z159: 12 | AA159: 11.3 | AB159: 13 | AC159: 21 | AD159: 25.85 | AE159: 18.2 | AF159: 23 | AG159: 19 | AH159: 19.1 | AI159: 17 | AJ159: 19.65 | AK159: 0.1558823529 | AL159: 0.08642749738
A160: C/B | B160: KODIAK ISLAND | C160: DANGER BAY | D160: 17.5 | E160: 13.18 | F160: 16 | G160: 20 | H160: 13.4 | I160: 18.9 | J160: 19.6 | K160: 15.65 | L160: 0 | N160: 10 | O160: 10.1 | P160: 10 | Q160: 10.25 | R160: 3.15 | S160: closed | T160: closed | U160: 12 | V160: 11.3 | W160: 10 | X160: 10.6 | Y160: 13 | Z160: closed | AA160: closed | AB160: closed | AC160: 14 | AD160: 10 | AE160: closed | AF160: closed | AG160: closed | AH160: closed | AI160: closed | AJ160: closed | AK160: n/a | AL160: n/a
A161: C/B | B161: KODIAK ISLAND | C161: KARLUK | D161: 22 | E161: 18 | F161: 16.48 | G161: 13 | H161: 7.9 | I161: 14.5 | J161: 13 | K161: 9.5 | L161: 7 | M161: 0 | N161: 10 | O161: 10 | P161: 0 | S161: 10.95 | T161: 11.5 | U161: 13 | V161: 12 | W161: 13 | X161: 15 | Y161: 16 | Z161: 12 | AA161: 11 | AB161: 10 | AC161: 7 | AD161: 10 | AE161: 9 | AF161: 7 | AG161: closed | AH161: closed | AI161: closed | AJ161: closed | AK161: n/a | AL161: n/a
A162: C/B | B162: KODIAK ISLAND | C162: KODIAK | D162: 2127.43 | E162: 2225.2 | F162: 2261.65 | G162: 2428.63 | H162: 2392.05 | I162: 2543.13 | J162: 2550.1 | K162: =1409.85+1119.15 -> 2529 | L162: =431.85+261.1+273.2+375.05+364.19+725.7 -> 2431.09 | M162: 2483.75 | N162: 2513 | O162: 2550.74 | P162: 2501.5 | Q162: 2420.58 | R162: =(339.05+826.3+375.15+291.7+299.05+289.2) -> 2420.45 | S162: 2437.82 | T162: =318+818.4+344.55+265.25+303.85+317.47 -> 2367.52 | U162: 2395.35 | V162: 2349.84 | W162: 2338.04 | X162: 2305.62 | Y162: 2239.53 | Z162: 2244.45 | AA162: 2238.54 | AB162: 2190.61 | AC162: 2144.76 | AD162: 2109.97 | AE162: 2094.43 | AF162: 2094 | AG162: 2071.91 | AH162: 1926.58 | AI162: 1939.66 | AJ162: 1932.47 | AK162: -0.003706835219 | AL162: -0.0152914139
A163: C/B | B163: KODIAK ISLAND | C163: LARSEN BAY | D163: 21.65 | E163: 28.1 | F163: 32.7 | G163: 21.8 | H163: 26.4 | I163: 19.75 | J163: 17.65 | K163: 34.5 | L163: 23.75 | M163: 18.8 | N163: 17 | O163: 24 | P163: 24.2 | Q163: 15 | R163: 18.5 | S163: 17.5 | T163: 17 | U163: 21 | V163: 13 | W163: 11 | X163: 15.75 | Y163: 11 | Z163: 11.65 | AA163: 14 | AB163: 16.85 | AC163: 15 | AD163: 16 | AE163: 13.75 | AF163: closed | AG163: closed | AH163: closed | AI163: closed | AJ163: closed | AK163: n/a | AL163: n/a
A164: C/B | B164: KODIAK ISLAND | C164: OLD HARBOR | D164: 64.3 | E164: 77.35 | F164: 78.4 | G164: 86.38 | H164: 91.4 | I164: 91.15 | J164: 94.45 | K164: 83.15 | L164: 70.9 | M164: 67.75 | N164: 61 | O164: 64 | P164: 62.45 | Q164: 57.3 | R164: 55.3 | S164: 58.75 | T164: 55 | U164: 50 | V164: 45 | W164: 45.85 | X164: 42.45 | Y164: 37.5 | Z164: 34.3 | AA164: 31.1 | AB164: 31.35 | AC164: 34.65 | AD164: 30.25 | AE164: 27.5 | AF164: 29.5 | AG164: 23 | AH164: 28.35 | AI164: 32 | AJ164: 27.2 | AK164: -0.15 | AL164: -0.006110659907
A165: C/B | B165: KODIAK ISLAND | C165: OUZINKIE | D165: 36.75 | E165: 41 | F165: 41.05 | G165: 42.5 | H165: 44.5 | I165: 46.1 | J165: 42.2 | K165: 42 | L165: 53 | M165: 49 | N165: 50.85 | O165: 51 | P165: 50.75 | Q165: 45.3 | R165: 53 | S165: 44 | T165: 44 | U165: 46.4 | V165: 34.2 | W165: 30.75 | X165: 29 | Y165: 33.55 | Z165: 43 | AA165: 33 | AB165: 33.8 | AC165: 29.45 | AD165: 19 | AE165: 20 | AF165: 19 | AG165: 16 | AH165: 15.55 | AI165: 15 | AJ165: 13.8 | AK165: -0.08 | AL165: -0.09778685842
A166: C/B | B166: KODIAK ISLAND | C166: PORT LIONS | D166: 52.25 | E166: 53.5 | F166: 58.1 | G166: 59.93 | H166: 67.6 | I166: 64 | J166: 62.7 | K166: 58.15 | L166: 62.75 | M166: 58 | N166: 44.5 | O166: 43 | P166: 48 | Q166: 44 | R166: 47 | S166: 39.25 | T166: 35 | U166: 38 | V166: 32 | W166: 35.45 | X166: 36 | Y166: 26 | Z166: 23.05 | AA166: 20.45 | AB166: 20 | AC166: 18.5 | AD166: 12 | AE166: 6.25 | AF166: 10.3 | AG166: 12 | AH166: 15 | AI166: 14 | AJ166: 17.8 | AK166: 0.2714285714 | AL166: 0.0452865538
A167: C/B | B167: KODIAK ISLAND | C167: TOTAL | D167: =SUM(D157:D166) -> 2403.88 | E167: =SUM(E157:E166) -> 2525.08 | F167: 2563.93 | G167: 2747.82 | H167: 2711.45 | I167: 2871.76 | J167: 2862.01 | K167: 2851.3 | L167: 2718.34 | M167: 2732.3 | N167: 2742.35 | O167: 2784.84 | P167: 2730.35 | Q167: 2620.88 | R167: 2624.4 | S167: 2635.47 | T167: 2554.32 | U167: 2601.15 | V167: 2513.34 | W167: 2502.09 | X167: 2479.22 | Y167: 2408.58 | Z167: 2399.7 | AA167: 2381.39 | AB167: 2341.61 | AC167: 2308.16 | AD167: 2260.07 | AE167: 2208.13 | AF167: =SUM(AF157:AF166) -> 2196.7 | AG167: =SUM(AG157:AG166) -> 2157.91 | AH167: 2015.58 | AI167: =SUM(AI157:AI166) -> 2031.66 | AJ167: 2023.17 | AK167: -0.004178848823 | AL167: -0.01788679696
A168: REAA | B168: KUSPUK | C168: ANIAK | D168: 189.6 | E168: 184.3 | F168: 180 | G168: 168.95 | H168: 176.2 | I168: 185.85 | J168: 189.05 | K168: 173.25 | L168: =78.25+9+23+64.05 -> 174.3 | M168: =59.9+33+85 -> 177.9 | N168: 173.35 | O168: =61.4+32+54.75 -> 148.15 | P168: =37.5+34.95+59.55 -> 132 | Q168: =60.45+74.95 -> 135.4 | R168: =(56.7+71.75) -> 128.45 | S168: 138.1 | T168: =56+72 -> 128 | U168: 119.35 | V168: 112.5 | W168: 112.75 | X168: 122.2 | Y168: 129.2 | Z168: 129.25 | AA168: 122.95 | AB168: 128.4 | AC168: 136.05 | AD168: 139.45 | AE168: 126.6 | AF168: 105.55 | AG168: 134.7 | AH168: 114.4 | AI168: 114.55 | AJ168: 88.55 | AK168: -0.22697512 | AL168: -0.03425574572
A169: REAA | B169: KUSPUK | C169: CHUATHBALUK | D169: 38.15 | E169: 34.05 | F169: 31.35 | G169: 35 | H169: 35.25 | I169: 38.25 | J169: 33.65 | K169: 38.65 | L169: 34.45 | M169: 40.5 | N169: 38.8 | O169: 35 | P169: 32.25 | Q169: 33.55 | R169: 37 | S169: 32.25 | T169: 29.25 | U169: 31 | V169: 31 | W169: 27.4 | X169: 31.75 | Y169: 32.2 | Z169: 22.65 | AA169: 28.05 | AB169: 34 | AC169: 22 | AD169: 19 | AE169: 18 | AF169: 18.25 | AG169: 21.1 | AH169: 22 | AI169: 23.95 | AJ169: 23.55 | AK169: -0.01670146138 | AL169: -0.03216177358
A170: REAA | B170: KUSPUK | C170: CROOKED CREEK | D170: 22.7 | E170: 24.95 | F170: 28.85 | G170: 31.6 | H170: 37.25 | I170: 34.85 | J170: 42.7 | K170: 39.25 | L170: 43.55 | M170: 44.25 | N170: 37.6 | O170: 35.25 | P170: 49 | Q170: 49.35 | R170: 45.1 | S170: 45.4 | T170: 42.4 | U170: 41 | V170: 39.5 | W170: 33.25 | X170: 33.8 | Y170: 25.6 | Z170: 17.6 | AA170: 20 | AB170: 15 | AC170: 20 | AD170: 18.2 | AE170: 22.2 | AF170: 17 | AG170: 18.5 | AH170: 27 | AI170: 25.3 | AJ170: 23.65 | AK170: -0.0652173913 | AL170: 0.08104921477
A171: REAA | B171: KUSPUK | C171: RED DEVIL | D171: 8 | E171: 15 | F171: 13.25 | G171: 25.75 | H171: 15.05 | I171: 17.9 | J171: 13 | K171: 11.5 | L171: 19.55 | M171: 15.4 | N171: 10 | O171: 14 | P171: 14.15 | Q171: 11.75 | R171: 10 | S171: 10.8 | T171: 15 | U171: 13 | V171: 5 | W171: closed | X171: closed | Y171: closed | Z171: closed | AA171: closed | AB171: closed | AC171: closed | AD171: closed | AE171: closed | AF171: closed | AG171: closed | AH171: closed | AI171: closed | AJ171: closed | AK171: n/a | AL171: n/a
A172: REAA | B172: KUSPUK | C172: SLEETMUTE | D172: 15.1 | E172: 25.75 | F172: 22.25 | G172: 22.25 | H172: 21.25 | I172: 28.7 | J172: 23.3 | K172: 17.4 | L172: 22.5 | M172: 23.4 | N172: 19.8 | O172: 23 | P172: 25 | Q172: 15.25 | R172: 21.5 | S172: 16 | T172: 18.1 | U172: 17.45 | V172: 12 | W172: 13 | X172: 15.8 | Y172: 15 | Z172: 18.25 | AA172: 14 | AB172: 17 | AC172: 14.85 | AD172: 10.6 | AE172: 17 | AF172: 12 | AG172: 16.4 | AH172: 18 | AI172: 14.35 | AJ172: 13 | AK172: -0.09407665505 | AL172: 0.008045409108
A173: REAA | B173: KUSPUK | C173: STONY RIVER | D173: 14.3 | E173: 17.8 | F173: 14.3 | G173: 14.5 | H173: 11.15 | I173: 16.05 | J173: 17.25 | K173: 13.6 | L173: 12.75 | M173: 17.1 | N173: 11.4 | O173: 11 | P173: 16 | Q173: 15.2 | R173: 14.4 | S173: 17.15 | T173: 13 | U173: 23.55 | V173: 19 | W173: 20 | X173: 18.95 | Y173: 10 | Z173: 7.85 | AA173: 6.35 | AB173: 14 | AC173: 13 | AD173: 15.5 | AE173: 14 | AF173: 9 | AG173: 14 | AH173: 14 | AI173: 14.7 | AJ173: 11 | AK173: -0.2517006803 | AL173: 0.002602118184
A174: REAA | B174: KUSPUK | C174: UPPER KALSKAG | D174: 73.95 | E174: 52.6 | F174: 87.45 | G174: 95.2 | H174: 95 | I174: 91 | J174: 84.15 | K174: 102 | L174: =70.19+27 -> 97.19 | M174: L. kalskag | N174: L. kalskag | O174: L. kalskag | P174: L. kalskag | Q174: L. kalskag | R174: L. kalskag | S174: L. kalskag | T174: L. kalskag | U174: L. kalskag | V174: L. kalskag | W174: L.Kalskag | X174: L.Kalskag | Y174: L.Kalskag | Z174: L.Kalskag | AA174: 141.75 | AB174: 137.5 | AC174: 141.45 | AD174: 137.8 | AE174: 157.25 | AF174: 145 | AG174: 157.45 | AH174: 155.35 | AI174: 153 | AJ174: 141.1 | AK174: -0.07777777778 | AL174: 0.005723481435
A175: REAA | B175: KUSPUK | C175: LOWER KALSKAG | D175: =65+D174 -> 138.95 | E175: =59+E174 -> 111.6 | F175: =50.3+F174 -> 137.75 | G175: =50.5+G174 -> 145.7 | H175: =53.15+H174 -> 148.15 | I175: =55.75+I174 -> 146.75 | J175: =70.6+J174 -> 154.75 | K175: =75.38+K174 -> 177.38 | L175: =70+L174 -> 167.19 | M175: =64.1+31+80.2 -> 175.3 | N175: 179.2 | O175: =55.1+32.5+79 -> 166.6 | P175: =56.05+17+85.25 -> 158.3 | Q175: =86.6+27+50 -> 163.6 | R175: =(84.45+12+61.15) -> 157.6 | S175: 155.3 | T175: =72.95+11.75+66.15 -> 150.85 | U175: 138.05 | V175: 121.65 | W175: 134.5 | X175: 126.05 | Y175: 133.5 | Z175: 139.8 | AA175: U.Kalskag | AB175: U.Kalskag | AC175: U.Kalskag | AD175: U.Kalskag | AE175: U.Kalskag | AF175: U.Kalskag | AG175: U.Kalskag | AH175: U.Kalskag | AI175: U.Kalskag | AJ175: U.Kalskag | AK175: n/a | AL175: n/a
A176: REAA | B176: KUSPUK | C176: TOTAL | D176: =SUM(D168:D175) -> 500.75 | E176: =SUM(E168:E175) -> 466.05 | F176: 515.2 | G176: 538.95 | H176: 539.3 | I176: 559.35 | J176: 557.85 | K176: 573.03 | L176: 571.48 | M176: 493.85 | N176: 470.15 | O176: 433 | P176: 426.7 | Q176: 424.1 | R176: 414.05 | S176: 415 | T176: 396.6 | U176: 383.4 | V176: 340.65 | W176: 340.9 | X176: 348.55 | Y176: 345.5 | Z176: 335.4 | AA176: 333.1 | AB176: 345.9 | AC176: 347.35 | AD176: 340.55 | AE176: 355.05 | AF176: =SUM(AF168:AF175) -> 306.8 | AG176: =SUM(AG168:AG175) -> 362.15 | AH176: 350.75 | AI176: =SUM(AI168:AI175) -> 345.85 | AJ176: 300.85 | AK176: -0.1301142114 | AL176: -0.01298190707
A177: C/B | B177: LAKE & PENINSULA | C177: CHIGNIK BAY | D177: 34.45 | E177: 39.55 | F177: 31.85 | G177: 32.25 | H177: 21.3 | I177: 21.75 | J177: 29.5 | K177: 17 | L177: 18.05 | M177: 14.55 | N177: 11.2 | O177: 11.1 | P177: 18.4 | Q177: 14.5 | R177: 16.5 | S177: 15 | T177: 11.5 | U177: 11 | V177: 12 | W177: 15 | X177: 18.2 | Y177: 14.14 | Z177: 10.75 | AA177: closed | AB177: 15.6 | AC177: 14 | AD177: 15 | AE177: 12.5 | AF177: 13.4 | AG177: 10 | AH177: 12 | AI177: 10.45 | AJ177: 6 | AK177: -0.4258373206 | AL177: -0.09181719104
A178: C/B | B178: LAKE & PENINSULA | C178: CHIGNIK LAGOON | D178: 15.3 | E178: 19.95 | F178: 27.85 | G178: 25.6 | H178: 27.75 | I178: 33.9 | J178: 35.9 | K178: 30 | L178: 37.6 | M178: 23.5 | N178: 28.5 | O178: 26.6 | P178: 22 | Q178: 19 | R178: 19.05 | S178: 13 | T178: 11.3 | U178: 15.75 | V178: 15.68 | W178: 15 | X178: 14.6 | Y178: 11 | Z178: 11.95 | AA178: 11 | AB178: 10 | AC178: 11 | AD178: 10 | AE178: 10.6 | AF178: 10.55 | AG178: 12 | AH178: 13 | AI178: 15.95 | AJ178: 14.25 | AK178: -0.1065830721 | AL178: 0.05068600305
A179: C/B | B179: LAKE & PENINSULA | C179: CHIGNIK LAKE | D179: 32.3 | E179: 36.2 | F179: 43 | G179: 55 | H179: 53 | I179: 54.75 | J179: 49.25 | K179: 46.75 | L179: 50.5 | M179: 44 | N179: 41.9 | O179: 41 | P179: 38 | Q179: 35.8 | R179: 31.65 | S179: 33.95 | T179: 36.2 | U179: 28.2 | V179: 23.3 | W179: 18.05 | X179: 19.6 | Y179: 21.65 | Z179: 15.95 | AA179: 17.35 | AB179: 15.4 | AC179: 11.5 | AD179: 19.08 | AE179: 15.5 | AF179: 10.6 | AG179: 11.85 | AH179: 13.55 | AI179: 13.65 | AJ179: 16 | AK179: 0.1721611722 | AL179: 0.04288116399
A180: C/B | B180: LAKE & PENINSULA | C180: EGEGIK | D180: 17.15 | E180: 25 | F180: 18 | G180: 25 | H180: 26 | I180: 18.55 | J180: 17 | K180: 20.85 | L180: 17.45 | M180: 22 | N180: 17.25 | O180: 12.75 | P180: 10 | Q180: 11 | R180: 13.7 | S180: 11.25 | T180: 10.5 | U180: 10 | V180: 12 | W180: 12 | X180: 10 | Y180: 10 | Z180: 14.25 | AA180: 11.65 | AB180: 10.15 | AC180: closed | AD180: closed | AE180: closed | AF180: closed | AG180: closed | AH180: closed | AI180: closed | AJ180: closed | AK180: n/a | AL180: n/a
A181: C/B | B181: LAKE & PENINSULA | C181: IGIUGIG | D181: 5 | E181: 6 | F181: 8 | G181: 11 | H181: 13 | I181: 14 | J181: 15 | K181: 16 | L181: 16 | M181: 13.5 | N181: 15 | O181: 14 | P181: 14.5 | Q181: 13 | R181: 15 | S181: 15.15 | T181: 16.95 | U181: 12 | V181: 13 | W181: 13 | X181: 14.35 | Y181: 11 | Z181: 18.701 | AA181: 14.5 | AB181: 14 | AC181: 18.75 | AD181: 18 | AE181: 18 | AF181: 17.85 | AG181: 18 | AH181: 19.25 | AI181: 23 | AJ181: 24.95 | AK181: 0.0847826087 | AL181: 0.08104849878
A182: C/B | B182: LAKE & PENINSULA | C182: IVANOF BAY | D182: 6.35 | E182: 8.7 | F182: 12.8 | G182: 11 | H182: 14 | I182: 10 | J182: 11 | K182: 11 | L182: 13.5 | M182: 10 | N182: closed | O182: closed | P182: closed | Q182: closed | R182: closed | S182: closed | T182: closed | U182: closed | V182: closed | W182: closed | X182: closed | Y182: closed | Z182: closed | AA182: closed | AB182: closed | AC182: closed | AD182: closed | AE182: closed | AF182: closed | AG182: closed | AH182: closed | AI182: closed | AJ182: closed | AK182: n/a | AL182: n/a
A183: C/B | B183: LAKE & PENINSULA | C183: KOKHANOK | D183: 38.85 | E183: 36.55 | F183: 40 | G183: 45.5 | H183: 48.2 | I183: 48.7 | J183: 58 | K183: 58.75 | L183: 66.75 | M183: 58.05 | N183: 55 | O183: 47 | P183: 45.05 | Q183: 39.95 | R183: 39.7 | S183: 46.25 | T183: 42.95 | U183: 44.35 | V183: 46.05 | W183: 35 | X183: 33.5 | Y183: 22.95 | Z183: 25.5 | AA183: 27.2 | AB183: 24 | AC183: 26.5 | AD183: 31.95 | AE183: 30.75 | AF183: 29.5 | AG183: 30.25 | AH183: 40.7 | AI183: 38 | AJ183: 28 | AK183: -0.2631578947 | AL183: 0.03412490816
A184: C/B | B184: LAKE & PENINSULA | C184: LEVELOCK | D184: 23 | E184: 18 | F184: 22.55 | G184: 26 | H184: 28.13 | I184: 25.25 | J184: 25 | K184: 22 | L184: 22 | M184: 22 | N184: 28.05 | O184: 18.8 | P184: 16.5 | Q184: 20.65 | R184: 19 | S184: 20.35 | T184: 19.8 | U184: 18 | V184: 26.25 | W184: 19.75 | X184: 16.75 | Y184: 22.6 | Z184: 18.6 | AA184: 17.65 | AB184: 27 | AC184: 24.85 | AD184: 22.35 | AE184: 17.05 | AF184: 17.4 | AG184: 18 | AH184: 10 | AI184: 11.25 | AJ184: 10.15 | AK184: -0.09777777778 | AL184: -0.09744766513
A185: C/B | B185: LAKE & PENINSULA | C185: NEWHALEN | D185: 73.35 | E185: 77 | F185: 78.6 | G185: 81.75 | H185: 89.8 | I185: 82.5 | J185: 96.6 | K185: 101.2 | L185: 93 | M185: 83 | N185: 68.35 | O185: 78.55 | P185: 78.05 | Q185: 72.48 | R185: 78.6 | S185: 68.45 | T185: 76.7 | U185: 71.25 | V185: 76.75 | W185: 74.07 | X185: 67.5 | Y185: 66.8 | Z185: 59.65 | AA185: 54.25 | AB185: 49.65 | AC185: 51.45 | AD185: 58.65 | AE185: 54.75 | AF185: 69.95 | AG185: 76.6 | AH185: 73.3 | AI185: 74.75 | AJ185: 74.55 | AK185: -0.002675585284 | AL185: 0.05705224673
A186: C/B | B186: LAKE & PENINSULA | C186: NONDALTON | D186: 59 | E186: 57 | F186: 62 | G186: 61.45 | H186: 65.55 | I186: 66.65 | J186: 73.1 | K186: 75.2 | L186: 79.9 | M186: 71.7 | N186: 69.25 | O186: 64.4 | P186: 59 | Q186: 61 | R186: 51 | S186: 48.6 | T186: 51.75 | U186: 41.9 | V186: 37 | W186: 32.9 | X186: 28.75 | Y186: 33 | Z186: 38.3 | AA186: 30.6 | AB186: 25 | AC186: 35 | AD186: 26.5 | AE186: 26 | AF186: 23 | AG186: 23.5 | AH186: 27.5 | AI186: 23 | AJ186: 17 | AK186: -0.2608695652 | AL186: -0.0262079644
A187: C/B | B187: LAKE & PENINSULA | C187: PEDRO BAY | D187: 12 | E187: 22.05 | F187: 20.75 | G187: 18.65 | H187: 9 | I187: 17 | J187: 10.25 | K187: 12 | L187: 18 | M187: 12 | N187: 14.35 | O187: 14 | P187: 12.6 | Q187: 17 | R187: 17.85 | S187: 16 | T187: 13 | U187: 13 | V187: 12 | W187: 10.95 | X187: 9 | Y187: closed | Z187: closed | AA187: closed | AB187: closed | AC187: closed | AD187: closed | AE187: closed | AF187: closed | AG187: closed | AH187: closed | AI187: closed | AJ187: closed | AK187: n/a | AL187: n/a
A188: C/B | B188: LAKE & PENINSULA | C188: PERRYVILLE | D188: 36.95 | E188: 36.7 | F188: 33 | G188: 34 | H188: 35 | I188: 28.85 | J188: 36.85 | K188: 36.8 | L188: 39.1 | M188: 35 | N188: 28.7 | O188: 33.25 | P188: 28.75 | Q188: 39.85 | R188: 34.57 | S188: 36.1 | T188: 29.25 | U188: 28.9 | V188: 25.25 | W188: 21 | X188: 22.2 | Y188: 22.44 | Z188: 24.25 | AA188: 25.6 | AB188: 27 | AC188: 22.5 | AD188: 16 | AE188: 19 | AF188: 23.6 | AG188: 23.25 | AH188: 22.95 | AI188: 19 | AJ188: 20 | AK188: 0.05263157895 | AL188: -0.02164571719
A189: C/B | B189: LAKE & PENINSULA | C189: PILOT POINT | D189: 13 | E189: 17.3 | F189: 22 | G189: 23 | H189: 25.95 | I189: 27 | J189: 25.5 | K189: 28.5 | L189: 26.85 | M189: 23.85 | N189: 22.2 | O189: 16.5 | P189: 23.7 | Q189: 20.45 | R189: 17 | S189: 12 | T189: 10.75 | U189: 18.9 | V189: 14 | W189: 11.5 | X189: 12.85 | Y189: 12.08 | Z189: 15 | AA189: 10 | AB189: 13.5 | AC189: 12 | AD189: 12 | AE189: 13 | AF189: 12.95 | AG189: 12.75 | AH189: 13.65 | AI189: 15 | AJ189: 8 | AK189: -0.4666666667 | AL189: -0.04303065994
A190: C/B | B190: LAKE & PENINSULA | C190: PORT ALSWORTH | D190: 19 | E190: 15 | F190: 11.5 | G190: 14 | H190: 24.4 | I190: 21.5 | J190: 16 | K190: 12.85 | L190: 15 | M190: 17.8 | N190: 18.93 | O190: 15.85 | P190: 16 | Q190: 19 | R190: 22.5 | S190: 25 | T190: 21.05 | U190: 29 | V190: 34 | W190: 41 | X190: 33.95 | Y190: 33 | Z190: 38.7 | AA190: 55.8 | AB190: 54.25 | AC190: 64.05 | AD190: 57.5 | AE190: 53.75 | AF190: 53 | AG190: 54.2 | AH190: 47.95 | AI190: 39 | AJ190: 41 | AK190: 0.05128205128 | AL190: -0.02860405381
A191: C/B | B191: LAKE & PENINSULA | C191: PORT HEIDEN | D191: 27.5 | E191: 31.7 | F191: 30.95 | G191: 33.2 | H191: 26.55 | I191: 27.25 | J191: 24.6 | K191: 34.05 | L191: 34.15 | M191: 30 | N191: 40 | O191: 34 | P191: 30 | Q191: 31.55 | R191: 22.45 | S191: 25.32 | T191: 26.75 | U191: 25.5 | V191: 21.4 | W191: 24 | X191: 23 | Y191: 28.28 | Z191: 26 | AA191: 20 | AB191: 19 | AC191: 17 | AD191: 15.25 | AE191: 22.25 | AF191: 19.55 | AG191: 18.5 | AH191: 18.7 | AI191: 16.7 | AJ191: 26.1 | AK191: 0.5628742515 | AL191: 0.0678110619
A192: C/B | B192: LAKE & PENINSULA | C192: TOTAL | D192: =SUM(D177:D191) -> 413.2 | E192: =SUM(E177:E191) -> 446.7 | F192: 462.85 | G192: 497.4 | H192: 507.63 | I192: 497.65 | J192: 523.55 | K192: 522.95 | L192: 547.85 | M192: 480.95 | N192: 458.68 | O192: 427.8 | P192: 412.55 | Q192: 415.23 | R192: 398.57 | S192: 386.42 | T192: 378.45 | U192: 367.75 | V192: 368.68 | W192: 343.22 | X192: 324.25 | Y192: 308.94 | Z192: 317.601 | AA192: 295.6 | AB192: 304.55 | AC192: 308.6 | AD192: 302.28 | AE192: 293.15 | AF192: =SUM(AF177:AF191) -> 301.35 | AG192: =SUM(AG177:AG191) -> 308.9 | AH192: 312.55 | AI192: =SUM(AI177:AI191) -> 299.75 | AJ192: 286 | AK192: -0.04587155963 | AL192: -0.007420999274
A193: REAA | B193: LOWER KUSKOKWIM | C193: AKIUK | D193: 63 | E193: 69 | F193: 74 | G193: 70 | H193: 70.5 | I193: 67.8 | J193: 69 | K193: 85.65 | L193: 77 | M193: kasigluk | N193: kasigluk | O193: kasigluk | P193: kasigluk | Q193: kasigluk | R193: kasigluk | S193: kasigluk | T193: kasigluk | U193: kasigluk | V193: kasigluk | W193: kasigluk | X193: Kasigluk | Y193: Kasigluk | Z193: Kasigluk | AA193: Kasigluk | AB193: Kasigluk | AC193: Kasigluk | AD193: Kasigluk | AE193: Kasigluk | AF193: Kasigluk | AG193: Kasigluk | AH193: Kasigluk | AI193: Kasigluk | AJ193: Kasigluk | AK193: n/a | AL193: n/a
A194: REAA | B194: LOWER KUSKOKWIM | C194: AKULA | D194: 70.25 | E194: 69.35 | F194: 70.7 | G194: 70.6 | H194: 72.65 | I194: 77 | J194: 93 | K194: 67 | L194: 89.5 | M194: kasigluk | N194: kasigluk | O194: kasigluk | P194: kasigluk | Q194: kasigluk | R194: kasigluk | S194: kasigluk | T194: kasigluk | U194: kasigluk | V194: kasigluk | W194: kasigluk | X194: Kasigluk | Y194: Kasigluk | Z194: Kasigluk | AA194: Kasigluk | AB194: Kasigluk | AC194: Kasigluk | AD194: Kasigluk | AE194: Kasigluk | AF194: Kasigluk | AG194: Kasigluk | AH194: Kasigluk | AI194: Kasigluk | AJ194: Kasigluk | AK194: n/a | AL194: n/a
A195: REAA | B195: LOWER KUSKOKWIM | C195: ATMAUTLUAK | D195: 80.75 | E195: 81.3 | F195: 80.4 | G195: 76.5 | H195: 76.5 | I195: 72.25 | J195: 84.35 | K195: 78.05 | L195: 84.45 | M195: 88.7 | N195: 86.35 | O195: 74.1 | P195: 78.3 | Q195: 76.05 | R195: 82.4 | S195: 91.4 | T195: 90.6 | U195: 88.5 | V195: 92.6 | W195: 96 | X195: 98.35 | Y195: 106.1 | Z195: 108.25 | AA195: 105.3 | AB195: 100.5 | AC195: 109.85 | AD195: 109.35 | AE195: 107.95 | AF195: 110.8 | AG195: 99.15 | AH195: 98.1 | AI195: 89 | AJ195: 90.95 | AK195: 0.02191011236 | AL195: -0.01056318058
A196: REAA | B196: LOWER KUSKOKWIM | C196: BETHEL | D196: 999.9 | E196: 1014.8 | F196: 1079.25 | G196: 1125 | H196: 1124.1 | I196: 1227.6 | J196: 1245.4 | K196: =813.65+468.95 -> 1282.6 | L196: =504.2+351.1+447.05 -> 1302.35 | M196: =229+417.2+455.5+148.45 -> 1250.15 | N196: =457.55+245.78+370.9+175.2 -> 1249.43 | O196: =472.3+339.75+254.33+185.65 -> 1252.03 | P196: 1272.02 | Q196: 1344.75 | R196: 1344.18 | S196: 1298.3 | T196: =499.25+325.25+311.8+142.6+34.8+18 -> 1331.7 | U196: 1256.35 | V196: 1239.05 | W196: 1247.2 | X196: 1220.2 | Y196: 1234.8 | Z196: 1258.75 | AA196: 1284.35 | AB196: 1234.4 | AC196: 1225.1 | AD196: 1218.7 | AE196: 1235.3 | AF196: 1102.8 | AG196: 1093.15 | AH196: 1080.1 | AI196: 1043 | AJ196: 1015.1 | AK196: =IFERROR((AJ196-AI196)/AI196,"n/a") -> -0.02674976031 | AL196: -0.02352315911
A197: REAA | B197: LOWER KUSKOKWIM | C197: CHEFORNAK | D197: 85.8 | E197: 94 | F197: 93.7 | G197: 98.28 | H197: 110.5 | I197: 125.6 | J197: 130 | K197: 123.9 | L197: 135.95 | M197: 133.95 | N197: 133.75 | O197: 127.15 | P197: 147.1 | Q197: 148.05 | R197: 156 | S197: 163.1 | T197: 164.25 | U197: 165.75 | V197: 155 | W197: 176 | X197: 163.2 | Y197: 170 | Z197: 156.85 | AA197: 151.95 | AB197: 146.8 | AC197: 152.8 | AD197: 145.2 | AE197: 146.7 | AF197: 142.95 | AG197: 154.2 | AH197: 147.7 | AI197: 148.7 | AJ197: 145.65 | AK197: -0.02051109617 | AL197: =IFERROR(((AJ197-AI197)/AI197+(AI197-AH197)/AH197+(AH197-AG197)/AG197+(AG197-AF197)/AF197+(AF197-AE197)/AE197+(AE197-AD197)/AD197+(AD197-AC197)/AC197+(AC197-AB197)/AB197)/8,"n/a") -> -0.0001616120835
A198: REAA | B198: LOWER KUSKOKWIM | C198: EEK | D198: 60.75 | E198: 68.2 | F198: 65.65 | G198: 57.5 | H198: 59.05 | I198: 72.15 | J198: 78.45 | K198: 83.95 | L198: 76.2 | M198: 85.25 | N198: 85.8 | O198: 81.4 | P198: 76 | Q198: 88.05 | R198: 86.5 | S198: 84.2 | T198: 88.7 | U198: 88.5 | V198: 88 | W198: 86 | X198: 87.45 | Y198: 87.5 | Z198: 103.6 | AA198: 101.3 | AB198: 109.05 | AC198: 101.7 | AD198: 104.5 | AE198: 109.5 | AF198: 105.75 | AG198: 112.8 | AH198: 111.95 | AI198: 101.8 | AJ198: 107.4 | AK198: 0.05500982318 | AL198: -0.00034905632
A199: REAA | B199: LOWER KUSKOKWIM | C199: GOODNEWS BAY | D199: 49.1 | E199: 51.95 | F199: 51.45 | G199: 61.4 | H199: 66.7 | I199: 65.55 | J199: 82.6 | K199: 83.45 | L199: 79.7 | M199: 70.4 | N199: 68.2 | O199: 70.55 | P199: 63.5 | Q199: 57.5 | R199: 66.85 | S199: 69 | T199: 61.5 | U199: 50.6 | V199: 63.5 | W199: 53 | X199: 57.15 | Y199: 47 | Z199: 52.7 | AA199: 53.75 | AB199: 56.65 | AC199: 51.95 | AD199: 53.1 | AE199: 60.95 | AF199: 63.3 | AG199: 71.65 | AH199: 67.55 | AI199: 64.15 | AJ199: 78.9 | AK199: 0.2299298519 | AL199: 0.04748090601
A200: REAA | B200: LOWER KUSKOKWIM | C200: KASIGLUK | D200: =D194+D193 -> 133.25 | E200: 138.35 | F200: 144.7 | G200: 140.6 | H200: 143.15 | I200: 144.8 | J200: 162 | K200: 152.65 | L200: 166.5 | M200: =65.8+99.75 -> 165.55 | N200: =69.2+103.6 -> 172.8 | O200: =66+89.65 -> 155.65 | P200: =69.95+96.95 -> 166.9 | Q200: =60.5+96 -> 156.5 | R200: =(57+89.8) -> 146.8 | S200: 151.95 | T200: =69.3+87 -> 156.3 | U200: 180.8 | V200: 185.05 | W200: 182 | X200: 186.7 | Y200: 190.1 | Z200: 190.9 | AA200: 194.15 | AB200: 192.5 | AC200: 186.25 | AD200: 199.15 | AE200: 212.5 | AF200: 211.45 | AG200: 213.95 | AH200: 194.1 | AI200: 197.05 | AJ200: 198.75 | AK200: 0.008627251967 | AL200: 0.005219747138
... 165 more rows
